Body Name,Body,Service Label,Service Code,CIPFA Detailed Expenditure Type,CIPFA Detailed Expenditure Code,Date,Transaction Number,Net Amount,Supplier Name
Nottinghamshire County Council,1111/1001,Children and Young People,CYP,Premises Related,BAA,01/09/2023,06-10138,"7,152.00",ARC Property Services Partnership L
Nottinghamshire County Council,1111/1001,Children and Young People,CYP,Premises Related,BAA,01/09/2023,06-10146,3206.34,ARC Property Services Partnership L
Nottinghamshire County Council,1111/1001,Children and Young People,CYP,Premises Related,BAA,18/09/2023,06-12930,5574.35,ARC Property Services Partnership L
Nottinghamshire County Council,1111/1001,Children and Young People,CYP,Premises Related,BAA,18/09/2023,06-12936,2723.09,ARC Property Services Partnership L
Nottinghamshire County Council,1111/1001,Children and Young People,CYP,Premises Related,BAA,18/09/2023,06-12941,3665.94,ARC Property Services Partnership L
Nottinghamshire County Council,1111/1001,Children and Young People,CYP,Premises Related,BAA,26/09/2023,06-16483,"3,514.20",ARC Property Services Partnership L
Nottinghamshire County Council,1111/1001,Children and Young People,CYP,Premises Related,BCA,14/09/2023,06-18040,800,High Park Industries Ltd
Nottinghamshire County Council,1111/1001,Children and Young People,CYP,Premises Related,BCA,14/09/2023,06-18043,800,High Park Industries Ltd
Nottinghamshire County Council,1111/1001,Children and Young People,CYP,Premises Related,BCA,25/09/2023,06-18120,"3,245.32",Bassetlaw Food Bank
Nottinghamshire County Council,1111/1001,Children and Young People,CYP,Premises Related,BDA,01/09/2023,06-17604,3363.03,More Leisure Community Trust Ltd
Nottinghamshire County Council,1111/1001,Children and Young People,CYP,Premises Related,BDA,04/09/2023,06-17578,"1,845.50",Active4Today Ltd
Nottinghamshire County Council,1111/1001,Children and Young People,CYP,Premises Related,BDA,04/09/2023,06-17579,1054.5,Active4Today Ltd
Nottinghamshire County Council,1111/1001,Children and Young People,CYP,Premises Related,BDA,04/09/2023,06-17731,557.19,Healdswood Infant & Nursery School
Nottinghamshire County Council,1111/1001,Children and Young People,CYP,Premises Related,BDA,05/09/2023,06-10016,2000,Royal Society for the Prot. of Bird
Nottinghamshire County Council,1111/1001,Children and Young People,CYP,Premises Related,BDA,05/09/2023,06-10928,"2,262.17",Calder Conferences Ltd
Nottinghamshire County Council,1111/1001,Children and Young People,CYP,Premises Related,BDA,05/09/2023,06-17692,1170,Walk the Walk Family Support Servic
Nottinghamshire County Council,1111/1001,Children and Young People,CYP,Premises Related,BDA,06/09/2023,06-17780,3281.63,SLM Fitness & Health Ltd (Everyone
Nottinghamshire County Council,1111/1001,Children and Young People,CYP,Premises Related,BDA,08/09/2023,06-17882,"4,458.34",Liberty Leisure Ltd
Nottinghamshire County Council,1111/1001,Children and Young People,CYP,Premises Related,BDA,18/09/2023,06-10019,10981.13,Ekmw Summit Centre
Nottinghamshire County Council,1111/1001,Children and Young People,CYP,Premises Related,BDA,18/09/2023,06-18117,4319,SLM Fitness & Health Ltd (Everyone
Nottinghamshire County Council,1111/1001,Children and Young People,CYP,Premises Related,BDA,18/09/2023,06-18134,4463,SLM Fitness & Health Ltd (Everyone
Nottinghamshire County Council,1111/1001,Children and Young People,CYP,Premises Related,BEA,04/09/2023,06-10446,237685,Gedling Borough Council (Bus Rates
Nottinghamshire County Council,1111/1001,Children and Young People,CYP,Premises Related,BEA,04/09/2023,06-10451,"338,175.00",Mansfield District Council
Nottinghamshire County Council,1111/1001,Children and Young People,CYP,Premises Related,BEA,04/09/2023,06-10455,"200,380.00",Newark & Sherwood District Council
Nottinghamshire County Council,1111/1001,Children and Young People,CYP,Premises Related,BEA,04/09/2023,06-10458,199259,Rushcliffe Borough Council
Nottinghamshire County Council,1111/1001,Children and Young People,CYP,Premises Related,BEA,04/09/2023,06-10462,"374,785.00",Att Of Earn/Bus Rates Bassetlaw D C
Nottinghamshire County Council,1111/1001,Children and Young People,CYP,Premises Related,BEA,04/09/2023,06-10467,"263,708.00",Ashfield District Council
Nottinghamshire County Council,1111/1001,Children and Young People,CYP,Premises Related,BEA,04/09/2023,06-10473,"243,444.00",Broxtowe Borough Council
Nottinghamshire County Council,1111/1001,Children and Young People,CYP,Premises Related,BEA,20/09/2023,06-13437,9825,Att Of Earn/Bus Rates Bassetlaw D C
Nottinghamshire County Council,1111/1001,Children and Young People,CYP,Premises Related,BEA,25/09/2023,06-16054,"4,304.30",Ashfield District Council
Nottinghamshire County Council,1111/1001,Children and Young People,CYP,Premises Related,BJA,26/09/2023,06-16479,1671,Enva England Ltd
Nottinghamshire County Council,1111/1001,Children and Young People,CYP,Transport Related,CAA,05/09/2023,06-10912,572.92,UK Fuels Ltd
Nottinghamshire County Council,1111/1001,Children and Young People,CYP,Transport Related,CAA,06/09/2023,06-11012,612.68,UK Fuels Ltd
Nottinghamshire County Council,1111/1001,Children and Young People,CYP,Transport Related,CAA,06/09/2023,06-11020,678.9,Via East Midlands Ltd
Nottinghamshire County Council,1111/1001,Children and Young People,CYP,Transport Related,CAA,06/09/2023,06-11028,1015.8,Via East Midlands Ltd
Nottinghamshire County Council,1111/1001,Children and Young People,CYP,Transport Related,CAA,13/09/2023,06-10901,565.6,UK Fuels Ltd
Nottinghamshire County Council,1111/1001,Children and Young People,CYP,Transport Related,CAA,26/09/2023,06-18292,621.34,Lovers Leap Garage
Nottinghamshire County Council,1111/1001,Children and Young People,CYP,Transport Related,CAA,27/09/2023,06-11316,471.04,UK Fuels Ltd
Nottinghamshire County Council,1111/1001,Children and Young People,CYP,Transport Related,CCA,04/09/2023,06-10051,1456.6,AJ's Travel
Nottinghamshire County Council,1111/1001,Children and Young People,CYP,Transport Related,CCA,05/09/2023,06-10937,"4,659.00",Freeway Coaches Ltd
Nottinghamshire County Council,1111/1001,Children and Young People,CYP,Transport Related,CCA,05/09/2023,06-10938,"4,410.22",Freeway Coaches Ltd
Nottinghamshire County Council,1111/1001,Children and Young People,CYP,Transport Related,CCA,06/09/2023,06-11044,4964.76,F4Control Ltd (t/a First4care)
Nottinghamshire County Council,1111/1001,Children and Young People,CYP,Transport Related,CCA,06/09/2023,06-11045,2535.12,F4Control Ltd (t/a First4care)
Nottinghamshire County Council,1111/1001,Children and Young People,CYP,Transport Related,CCA,06/09/2023,06-11046,4093.8,F4Control Ltd (t/a First4care)
Nottinghamshire County Council,1111/1001,Children and Young People,CYP,Transport Related,CCA,06/09/2023,06-11047,"2,474.90",F4Control Ltd (t/a First4care)
Nottinghamshire County Council,1111/1001,Children and Young People,CYP,Transport Related,CCA,06/09/2023,06-11054,"2,483.62",Marshalls Of Sutton On Trent Ltd
Nottinghamshire County Council,1111/1001,Children and Young People,CYP,Transport Related,CCA,07/09/2023,06-11074,2633.76,Marshalls Of Sutton On Trent Ltd
Nottinghamshire County Council,1111/1001,Children and Young People,CYP,Transport Related,CCA,07/09/2023,06-11077,"3,205.05",K Matthews Travel
Nottinghamshire County Council,1111/1001,Children and Young People,CYP,Transport Related,CCA,07/09/2023,06-11078,"4,467.60",K Matthews Travel
Nottinghamshire County Council,1111/1001,Children and Young People,CYP,Transport Related,CCA,07/09/2023,06-11084,2541.5,Rushcliffe Travel Ltd
Nottinghamshire County Council,1111/1001,Children and Young People,CYP,Transport Related,CCA,07/09/2023,06-11085,"3,391.50",Rushcliffe Travel Ltd
Nottinghamshire County Council,1111/1001,Children and Young People,CYP,Transport Related,CCA,07/09/2023,06-11086,2371.5,Rushcliffe Travel Ltd
Nottinghamshire County Council,1111/1001,Children and Young People,CYP,Transport Related,CCA,07/09/2023,06-11087,2881.5,Rushcliffe Travel Ltd
Nottinghamshire County Council,1111/1001,Children and Young People,CYP,Transport Related,CCA,07/09/2023,06-11088,"1,861.50",Rushcliffe Travel Ltd
Nottinghamshire County Council,1111/1001,Children and Young People,CYP,Transport Related,CCA,07/09/2023,06-11089,2614.94,Rushcliffe Travel Ltd
Nottinghamshire County Council,1111/1001,Children and Young People,CYP,Transport Related,CCA,07/09/2023,06-11090,"3,051.50",Rushcliffe Travel Ltd
Nottinghamshire County Council,1111/1001,Children and Young People,CYP,Transport Related,CCA,07/09/2023,06-11091,3051.5,Rushcliffe Travel Ltd
Nottinghamshire County Council,1111/1001,Children and Young People,CYP,Transport Related,CCA,07/09/2023,06-11097,592,A1 Private Hire Ltd
Nottinghamshire County Council,1111/1001,Children and Young People,CYP,Transport Related,CCA,07/09/2023,06-11098,2520.93,A1 Private Hire Ltd
Nottinghamshire County Council,1111/1001,Children and Young People,CYP,Transport Related,CCA,07/09/2023,06-11099,1495.8,A1 Private Hire Ltd
Nottinghamshire County Council,1111/1001,Children and Young People,CYP,Transport Related,CCA,07/09/2023,06-11100,2685,A1 Private Hire Ltd
Nottinghamshire County Council,1111/1001,Children and Young People,CYP,Transport Related,CCA,07/09/2023,06-11101,"1,350.00",A1 Private Hire Ltd
Nottinghamshire County Council,1111/1001,Children and Young People,CYP,Transport Related,CCA,07/09/2023,06-11102,1944,A1 Private Hire Ltd
Nottinghamshire County Council,1111/1001,Children and Young People,CYP,Transport Related,CCA,07/09/2023,06-11103,"1,888.00",A1 Private Hire Ltd
Nottinghamshire County Council,1111/1001,Children and Young People,CYP,Transport Related,CCA,07/09/2023,06-11104,1860,A1 Private Hire Ltd
Nottinghamshire County Council,1111/1001,Children and Young People,CYP,Transport Related,CCA,07/09/2023,06-11105,1984,A1 Private Hire Ltd
Nottinghamshire County Council,1111/1001,Children and Young People,CYP,Transport Related,CCA,07/09/2023,06-11106,"2,192.00",A1 Private Hire Ltd
Nottinghamshire County Council,1111/1001,Children and Young People,CYP,Transport Related,CCA,07/09/2023,06-11107,2296,A1 Private Hire Ltd
Nottinghamshire County Council,1111/1001,Children and Young People,CYP,Transport Related,CCA,07/09/2023,06-11108,1768,A1 Private Hire Ltd
Nottinghamshire County Council,1111/1001,Children and Young People,CYP,Transport Related,CCA,07/09/2023,06-11109,2520,A1 Private Hire Ltd
Nottinghamshire County Council,1111/1001,Children and Young People,CYP,Transport Related,CCA,07/09/2023,06-11110,1718.55,A1 Private Hire Ltd
Nottinghamshire County Council,1111/1001,Children and Young People,CYP,Transport Related,CCA,07/09/2023,06-11111,1110,A1 Private Hire Ltd
Nottinghamshire County Council,1111/1001,Children and Young People,CYP,Transport Related,CCA,07/09/2023,06-11115,520,A1 Private Hire Ltd
Nottinghamshire County Council,1111/1001,Children and Young People,CYP,Transport Related,CCA,20/09/2023,06-13558,3982.36,BN Gibson Ltd
Nottinghamshire County Council,1111/1001,Children and Young People,CYP,Transport Related,CCA,20/09/2023,06-13570,3003.68,Stagecoach Services Ltd
Nottinghamshire County Council,1111/1001,Children and Young People,CYP,Transport Related,CCA,20/09/2023,06-13572,6377.12,Stagecoach Services Ltd
Nottinghamshire County Council,1111/1001,Children and Young People,CYP,Transport Related,CCA,20/09/2023,06-13580,4609.97,Stagecoach Services Ltd
Nottinghamshire County Council,1111/1001,Children and Young People,CYP,Transport Related,CCA,20/09/2023,06-13623,1220.94,Vectare Ltd
Nottinghamshire County Council,1111/1001,Children and Young People,CYP,Transport Related,CCA,20/09/2023,06-13627,1158.36,A1 Private Hire Ltd
Nottinghamshire County Council,1111/1001,Children and Young People,CYP,Transport Related,CCA,20/09/2023,06-13628,744,A1 Private Hire Ltd
Nottinghamshire County Council,1111/1001,Children and Young People,CYP,Transport Related,CCA,20/09/2023,06-13629,1994.4,A1 Private Hire Ltd
Nottinghamshire County Council,1111/1001,Children and Young People,CYP,Transport Related,CCA,20/09/2023,06-13630,3150,A1 Private Hire Ltd
Nottinghamshire County Council,1111/1001,Children and Young People,CYP,Transport Related,CCA,20/09/2023,06-13632,2090,JK Transport Ltd
Nottinghamshire County Council,1111/1001,Children and Young People,CYP,Transport Related,CCA,20/09/2023,06-13633,2065,JK Transport Ltd
Nottinghamshire County Council,1111/1001,Children and Young People,CYP,Transport Related,CCA,20/09/2023,06-13634,1864,JK Transport Ltd
Nottinghamshire County Council,1111/1001,Children and Young People,CYP,Transport Related,CCA,20/09/2023,06-13635,2771,JK Transport Ltd
Nottinghamshire County Council,1111/1001,Children and Young People,CYP,Transport Related,CCA,21/09/2023,06-13649,560,Arrow Specialised Transport Ltd
Nottinghamshire County Council,1111/1001,Children and Young People,CYP,Transport Related,CCA,21/09/2023,06-13650,700,Arrow Specialised Transport Ltd
Nottinghamshire County Council,1111/1001,Children and Young People,CYP,Transport Related,CCA,21/09/2023,06-13651,5228.9,Arrow Specialised Transport Ltd
Nottinghamshire County Council,1111/1001,Children and Young People,CYP,Transport Related,CCA,21/09/2023,06-13652,5317.4,Arrow Specialised Transport Ltd
Nottinghamshire County Council,1111/1001,Children and Young People,CYP,Transport Related,CCA,21/09/2023,06-13653,5116.25,Stagecoach Services Ltd
Nottinghamshire County Council,1111/1001,Children and Young People,CYP,Transport Related,CCA,21/09/2023,06-13656,2469.44,SM Travel Yorkshire Ltd
Nottinghamshire County Council,1111/1001,Children and Young People,CYP,Transport Related,CCA,21/09/2023,06-13658,3040.2,SM Travel Yorkshire Ltd
Nottinghamshire County Council,1111/1001,Children and Young People,CYP,Transport Related,CCA,21/09/2023,06-13659,1526,SM Travel Yorkshire Ltd
Nottinghamshire County Council,1111/1001,Children and Young People,CYP,Transport Related,CCA,21/09/2023,06-13661,2344.5,SM Travel Yorkshire Ltd
Nottinghamshire County Council,1111/1001,Children and Young People,CYP,Transport Related,CCA,21/09/2023,06-13662,788.8,SM Travel Yorkshire Ltd
Nottinghamshire County Council,1111/1001,Children and Young People,CYP,Transport Related,CCA,21/09/2023,06-13663,2601.57,SM Travel Yorkshire Ltd
Nottinghamshire County Council,1111/1001,Children and Young People,CYP,Transport Related,CCA,21/09/2023,06-13665,2616.11,SM Travel Yorkshire Ltd
Nottinghamshire County Council,1111/1001,Children and Young People,CYP,Transport Related,CCA,21/09/2023,06-13666,2280.15,SM Travel Yorkshire Ltd
Nottinghamshire County Council,1111/1001,Children and Young People,CYP,Transport Related,CCA,21/09/2023,06-13667,2542.5,SM Travel Yorkshire Ltd
Nottinghamshire County Council,1111/1001,Children and Young People,CYP,Transport Related,CCA,21/09/2023,06-13668,3539.91,SM Travel Yorkshire Ltd
Nottinghamshire County Council,1111/1001,Children and Young People,CYP,Transport Related,CCA,21/09/2023,06-13669,3161.6,SM Travel Yorkshire Ltd
Nottinghamshire County Council,1111/1001,Children and Young People,CYP,Transport Related,CCA,21/09/2023,06-13670,2674.5,SM Travel Yorkshire Ltd
Nottinghamshire County Council,1111/1001,Children and Young People,CYP,Transport Related,CCA,21/09/2023,06-13671,2644.5,SM Travel Yorkshire Ltd
Nottinghamshire County Council,1111/1001,Children and Young People,CYP,Transport Related,CCA,21/09/2023,06-13672,3017.5,SM Travel Yorkshire Ltd
Nottinghamshire County Council,1111/1001,Children and Young People,CYP,Transport Related,CCA,21/09/2023,06-13673,2484.38,SM Travel Yorkshire Ltd
Nottinghamshire County Council,1111/1001,Children and Young People,CYP,Transport Related,CCA,21/09/2023,06-13675,1836,A1 Private Hire Ltd
Nottinghamshire County Council,1111/1001,Children and Young People,CYP,Transport Related,CCA,22/09/2023,06-16023,1565.85,SM Travel Yorkshire Ltd
Nottinghamshire County Council,1111/1001,Children and Young People,CYP,Transport Related,CCA,22/09/2023,06-16024,2031.75,SM Travel Yorkshire Ltd
Nottinghamshire County Council,1111/1001,Children and Young People,CYP,Transport Related,CCA,22/09/2023,06-16025,1774.5,SM Travel Yorkshire Ltd
Nottinghamshire County Council,1111/1001,Children and Young People,CYP,Transport Related,CCA,22/09/2023,06-16026,2074.5,SM Travel Yorkshire Ltd
Nottinghamshire County Council,1111/1001,Children and Young People,CYP,Transport Related,CCA,22/09/2023,06-16027,3004.05,SM Travel Yorkshire Ltd
Nottinghamshire County Council,1111/1001,Children and Young People,CYP,Transport Related,CCA,22/09/2023,06-16028,1624.5,SM Travel Yorkshire Ltd
Nottinghamshire County Council,1111/1001,Children and Young People,CYP,Transport Related,CCA,22/09/2023,06-16029,2837.1,SM Travel Yorkshire Ltd
Nottinghamshire County Council,1111/1001,Children and Young People,CYP,Transport Related,CCA,22/09/2023,06-16030,1679.04,SM Travel Yorkshire Ltd
Nottinghamshire County Council,1111/1001,Children and Young People,CYP,Transport Related,CCA,22/09/2023,06-16033,956.7,SM Travel Yorkshire Ltd
Nottinghamshire County Council,1111/1001,Children and Young People,CYP,Transport Related,CCA,22/09/2023,06-16034,827.73,SM Travel Yorkshire Ltd
Nottinghamshire County Council,1111/1001,Children and Young People,CYP,Transport Related,CCA,22/09/2023,06-16035,"1,632.40",SM Travel Yorkshire Ltd
Nottinghamshire County Council,1111/1001,Children and Young People,CYP,Transport Related,CCA,22/09/2023,06-16036,2886.29,SM Travel Yorkshire Ltd
Nottinghamshire County Council,1111/1001,Children and Young People,CYP,Transport Related,CCA,22/09/2023,06-16037,1348.1,SM Travel Yorkshire Ltd
Nottinghamshire County Council,1111/1001,Children and Young People,CYP,Transport Related,CCA,22/09/2023,06-16038,"1,339.94",SM Travel Yorkshire Ltd
Nottinghamshire County Council,1111/1001,Children and Young People,CYP,Transport Related,CCA,22/09/2023,06-16039,"1,230.00",SM Travel Yorkshire Ltd
Nottinghamshire County Council,1111/1001,Children and Young People,CYP,Transport Related,CCA,22/09/2023,06-16040,1556.35,SM Travel Yorkshire Ltd
Nottinghamshire County Council,1111/1001,Children and Young People,CYP,Transport Related,CCA,22/09/2023,06-16041,1399.5,SM Travel Yorkshire Ltd
Nottinghamshire County Council,1111/1001,Children and Young People,CYP,Transport Related,CCA,22/09/2023,06-16042,"1,474.50",SM Travel Yorkshire Ltd
Nottinghamshire County Council,1111/1001,Children and Young People,CYP,Transport Related,CCA,22/09/2023,06-16043,"1,486.20",SM Travel Yorkshire Ltd
Nottinghamshire County Council,1111/1001,Children and Young People,CYP,Transport Related,CCA,22/09/2023,06-16044,1365.1,SM Travel Yorkshire Ltd
Nottinghamshire County Council,1111/1001,Children and Young People,CYP,Transport Related,CCA,22/09/2023,06-16045,1348.1,SM Travel Yorkshire Ltd
Nottinghamshire County Council,1111/1001,Children and Young People,CYP,Transport Related,CCA,22/09/2023,06-16048,1144.5,SM Travel Yorkshire Ltd
Nottinghamshire County Council,1111/1001,Children and Young People,CYP,Transport Related,CCA,26/09/2023,06-16494,"1,120.68",Sharpes Of Nottingham
Nottinghamshire County Council,1111/1001,Children and Young People,CYP,Transport Related,CCA,26/09/2023,06-16500,"2,145.24",Skills Motor Coaches Ltd
Nottinghamshire County Council,1111/1001,Children and Young People,CYP,Transport Related,CCA,26/09/2023,06-16504,544.41,Nottingham Cars Ltd
Nottinghamshire County Council,1111/1001,Children and Young People,CYP,Transport Related,CCA,26/09/2023,06-16505,3387.7,SM Travel Yorkshire Ltd
Nottinghamshire County Council,1111/1001,Children and Young People,CYP,Transport Related,CCA,26/09/2023,06-16507,"3,413.55",24 x 7 (Nottingham) Ltd
Nottinghamshire County Council,1111/1001,Children and Young People,CYP,Transport Related,CCA,26/09/2023,06-16508,738.92,24 x 7 (Nottingham) Ltd
Nottinghamshire County Council,1111/1001,Children and Young People,CYP,Transport Related,CCA,27/09/2023,06-13607,"3,900.00",Rushcliffe Travel Ltd
Nottinghamshire County Council,1111/1001,Children and Young People,CYP,Transport Related,CCA,27/09/2023,06-13608,"3,900.00",Rushcliffe Travel Ltd
Nottinghamshire County Council,1111/1001,Children and Young People,CYP,Transport Related,CCA,27/09/2023,06-13609,"2,697.15",Rushcliffe Travel Ltd
Nottinghamshire County Council,1111/1001,Children and Young People,CYP,Transport Related,CCA,27/09/2023,06-13611,4194,Rushcliffe Travel Ltd
Nottinghamshire County Council,1111/1001,Children and Young People,CYP,Transport Related,CCA,27/09/2023,06-13612,"1,625.00",Rushcliffe Travel Ltd
Nottinghamshire County Council,1111/1001,Children and Young People,CYP,Transport Related,CCA,27/09/2023,06-13613,797.5,Rushcliffe Travel Ltd
Nottinghamshire County Council,1111/1001,Children and Young People,CYP,Transport Related,CCA,27/09/2023,06-13614,3015.3,Rushcliffe Travel Ltd
Nottinghamshire County Council,1111/1001,Children and Young People,CYP,Transport Related,CCA,27/09/2023,06-13615,"4,492.50",Rushcliffe Travel Ltd
Nottinghamshire County Council,1111/1001,Children and Young People,CYP,Transport Related,CCA,27/09/2023,06-13616,2519.4,Rushcliffe Travel Ltd
Nottinghamshire County Council,1111/1001,Children and Young People,CYP,Transport Related,CCA,27/09/2023,06-13617,"3,220.50",Rushcliffe Travel Ltd
Nottinghamshire County Council,1111/1001,Children and Young People,CYP,Transport Related,CCA,27/09/2023,06-13618,3493,Rushcliffe Travel Ltd
Nottinghamshire County Council,1111/1001,Children and Young People,CYP,Transport Related,CCA,27/09/2023,06-13619,"2,242.50",Rushcliffe Travel Ltd
Nottinghamshire County Council,1111/1001,Children and Young People,CYP,Transport Related,CCA,27/09/2023,06-13620,2992.5,Rushcliffe Travel Ltd
Nottinghamshire County Council,1111/1001,Children and Young People,CYP,Transport Related,CCA,29/09/2023,06-16971,1400,6 Five 2s
Nottinghamshire County Council,1111/1001,Children and Young People,CYP,Transport Related,CCA,29/09/2023,06-16972,1009.01,6 Five 2s
Nottinghamshire County Council,1111/1001,Children and Young People,CYP,Transport Related,CCA,29/09/2023,06-16973,1151.03,6 Five 2s
Nottinghamshire County Council,1111/1001,Children and Young People,CYP,Transport Related,CCA,29/09/2023,06-16974,1302,6 Five 2s
Nottinghamshire County Council,1111/1001,Children and Young People,CYP,Transport Related,CCA,29/09/2023,06-16975,"1,855.00",6 Five 2s
Nottinghamshire County Council,1111/1001,Children and Young People,CYP,Transport Related,CDA,06/09/2023,06-11004,35.75,Brightside Care Solutions Ltd
Nottinghamshire County Council,1111/1001,Children and Young People,CYP,Transport Related,CDA,07/09/2023,06-11079,2560,K Matthews Travel
Nottinghamshire County Council,1111/1001,Children and Young People,CYP,Transport Related,CDA,07/09/2023,06-11080,2232,Rushcliffe Travel Ltd
Nottinghamshire County Council,1111/1001,Children and Young People,CYP,Transport Related,CDA,07/09/2023,06-11114,2624,A1 Private Hire Ltd
Nottinghamshire County Council,1111/1001,Children and Young People,CYP,Transport Related,CDA,19/09/2023,06-18160,1080,Derby City Council
Nottinghamshire County Council,1111/1001,Children and Young People,CYP,Transport Related,CDA,20/09/2023,06-13597,741,Ideal Cars (Private Hire) Ltd
Nottinghamshire County Council,1111/1001,Children and Young People,CYP,Transport Related,CDA,21/09/2023,06-13663,867.18,SM Travel Yorkshire Ltd
Nottinghamshire County Council,1111/1001,Children and Young People,CYP,Transport Related,CDA,22/09/2023,06-16047,"2,980.50",SM Travel Yorkshire Ltd
Nottinghamshire County Council,1111/1001,Children and Young People,CYP,Transport Related,CDA,27/09/2023,06-13610,"2,072.00",Rushcliffe Travel Ltd
Nottinghamshire County Council,1111/1001,Children and Young People,CYP,Transport Related,CDA,27/09/2023,06-13655,"1,495.00",Rushcliffe Travel Ltd
Nottinghamshire County Council,1111/1001,Children and Young People,CYP,Transport Related,CEA,05/09/2023,06-10919,6197,Reed Employment Ltd
Nottinghamshire County Council,1111/1001,Children and Young People,CYP,Transport Related,CEA,11/09/2023,06-11122,"3,154.48",Reed Employment Ltd
Nottinghamshire County Council,1111/1001,Children and Young People,CYP,Transport Related,CEA,18/09/2023,06-12880,"5,137.06",Reed Employment Ltd
Nottinghamshire County Council,1111/1001,Children and Young People,CYP,Transport Related,CEA,25/09/2023,06-13690,4362.23,Reed Employment Ltd
Nottinghamshire County Council,1111/1001,Children and Young People,CYP,Supplies & Services,DAA,04/09/2023,06-17597,1236.23,National Autistic Society
Nottinghamshire County Council,1111/1001,Children and Young People,CYP,Supplies & Services,DAA,14/09/2023,06-12863,453912.56,Woodland View Primary School (Acade
Nottinghamshire County Council,1111/1001,Children and Young People,CYP,Supplies & Services,DAA,15/09/2023,06-18073,2127.62,Prism Medical UK Ltd
Nottinghamshire County Council,1111/1001,Children and Young People,CYP,Supplies & Services,DAA,26/09/2023,06-16478,"96,459.32",Holy Family Catholic Primary School
Nottinghamshire County Council,1111/1001,Children and Young People,CYP,Supplies & Services,DBA,01/09/2023,06-10134,405.62,M Maloney Country Butchers & B Ltd
Nottinghamshire County Council,1111/1001,Children and Young People,CYP,Supplies & Services,DBA,05/09/2023,06-10932,"1,801.53",John Palin (Wholesale) Ltd
Nottinghamshire County Council,1111/1001,Children and Young People,CYP,Supplies & Services,DBA,11/09/2023,06-11324,303.28,M Maloney Country Butchers & B Ltd
Nottinghamshire County Council,1111/1001,Children and Young People,CYP,Supplies & Services,DBA,15/09/2023,06-12865,342.83,M Maloney Country Butchers & B Ltd
Nottinghamshire County Council,1111/1001,Children and Young People,CYP,Supplies & Services,DBA,20/09/2023,06-10923,559.25,Brake Bros Ltd
Nottinghamshire County Council,1111/1001,Children and Young People,CYP,Supplies & Services,DBA,20/09/2023,06-13458,299.68,M Maloney Country Butchers & B Ltd
Nottinghamshire County Council,1111/1001,Children and Young People,CYP,Supplies & Services,DBA,28/09/2023,06-16613,310.32,M Maloney Country Butchers & B Ltd
Nottinghamshire County Council,1111/1001,Children and Young People,CYP,Supplies & Services,DEA,01/09/2023,06-17560,990,[Redacted]
Nottinghamshire County Council,1111/1001,Children and Young People,CYP,Supplies & Services,DEA,01/09/2023,06-17631,550,Sarah Mann Shaw Ltd
Nottinghamshire County Council,1111/1001,Children and Young People,CYP,Supplies & Services,DEA,01/09/2023,06-17667,770,Sarah Mann Shaw Ltd
Nottinghamshire County Council,1111/1001,Children and Young People,CYP,Supplies & Services,DEA,04/09/2023,06-17565,560,Imageskool Ltd
Nottinghamshire County Council,1111/1001,Children and Young People,CYP,Supplies & Services,DEA,04/09/2023,06-17582,"3,600.00",[Redacted]
Nottinghamshire County Council,1111/1001,Children and Young People,CYP,Supplies & Services,DEA,04/09/2023,06-17707,"1,200.00",Rose Callan Education Services
Nottinghamshire County Council,1111/1001,Children and Young People,CYP,Supplies & Services,DEA,05/09/2023,06-17765,620,[Redacted]
Nottinghamshire County Council,1111/1001,Children and Young People,CYP,Supplies & Services,DEA,05/09/2023,06-17777,500,Lotus Therapy Ltd
Nottinghamshire County Council,1111/1001,Children and Young People,CYP,Supplies & Services,DEA,06/09/2023,06-11004,264.94,Brightside Care Solutions Ltd
Nottinghamshire County Council,1111/1001,Children and Young People,CYP,Supplies & Services,DEA,06/09/2023,06-17825,575,Lotus Therapy Ltd
Nottinghamshire County Council,1111/1001,Children and Young People,CYP,Supplies & Services,DEA,07/09/2023,06-11066,"1,720.24",[Redacted]
Nottinghamshire County Council,1111/1001,Children and Young People,CYP,Supplies & Services,DEA,07/09/2023,06-17843,538,Sensory Learning & Play CIC
Nottinghamshire County Council,1111/1001,Children and Young People,CYP,Supplies & Services,DEA,07/09/2023,06-17844,608.5,Sensory Learning & Play CIC
Nottinghamshire County Council,1111/1001,Children and Young People,CYP,Supplies & Services,DEA,07/09/2023,06-17860,720,TW Educational Consultancy
Nottinghamshire County Council,1111/1001,Children and Young People,CYP,Supplies & Services,DEA,07/09/2023,06-17864,720,Sends Support CIC
Nottinghamshire County Council,1111/1001,Children and Young People,CYP,Supplies & Services,DEA,11/09/2023,06-17826,750,[Redacted]
Nottinghamshire County Council,1111/1001,Children and Young People,CYP,Supplies & Services,DEA,11/09/2023,06-17927,500,Lotus Therapy Ltd
Nottinghamshire County Council,1111/1001,Children and Young People,CYP,Supplies & Services,DEA,11/09/2023,06-17928,600,Lotus Therapy Ltd
Nottinghamshire County Council,1111/1001,Children and Young People,CYP,Supplies & Services,DEA,11/09/2023,06-17929,680,Lotus Therapy Ltd
Nottinghamshire County Council,1111/1001,Children and Young People,CYP,Supplies & Services,DEA,11/09/2023,06-17948,"1,110.00",[Redacted]
Nottinghamshire County Council,1111/1001,Children and Young People,CYP,Supplies & Services,DEA,12/09/2023,06-17964,812,Jump Start Centre Ltd
Nottinghamshire County Council,1111/1001,Children and Young People,CYP,Supplies & Services,DEA,12/09/2023,06-17984,"13,995.00",Global Mediation Ltd
Nottinghamshire County Council,1111/1001,Children and Young People,CYP,Supplies & Services,DEA,13/09/2023,06-12747,"6,554.55",Phs Group Plc
Nottinghamshire County Council,1111/1001,Children and Young People,CYP,Supplies & Services,DEA,13/09/2023,06-12847,722.73,Acorns Day Nursery
Nottinghamshire County Council,1111/1001,Children and Young People,CYP,Supplies & Services,DEA,13/09/2023,06-18010,"2,426.00",Childrens Sensory Therapy Ltd
Nottinghamshire County Council,1111/1001,Children and Young People,CYP,Supplies & Services,DEA,14/09/2023,06-18045,910,Oakdale Therapies Ltd
Nottinghamshire County Council,1111/1001,Children and Young People,CYP,Supplies & Services,DEA,14/09/2023,06-18062,"13,995.00",Global Mediation Ltd
Nottinghamshire County Council,1111/1001,Children and Young People,CYP,Supplies & Services,DEA,15/09/2023,06-18067,"1,395.60",Randox Laboratories Ltd T/A Randox
Nottinghamshire County Council,1111/1001,Children and Young People,CYP,Supplies & Services,DEA,15/09/2023,06-18082,"1,700.00",Chrysalis Associates Ltd
Nottinghamshire County Council,1111/1001,Children and Young People,CYP,Supplies & Services,DEA,15/09/2023,06-18115,906.3,[Redacted]
Nottinghamshire County Council,1111/1001,Children and Young People,CYP,Supplies & Services,DEA,20/09/2023,06-18138,"1,600.00","Inspire, Culture,Learning,Libraries"
Nottinghamshire County Council,1111/1001,Children and Young People,CYP,Supplies & Services,DEA,21/09/2023,06-18225,526.5,Child Psychology Service CIC
Nottinghamshire County Council,1111/1001,Children and Young People,CYP,Supplies & Services,DEA,22/09/2023,06-17644,"1,250.00",Bright Light Therapy
Nottinghamshire County Council,1111/1001,Children and Young People,CYP,Supplies & Services,DEA,22/09/2023,06-18241,800,Sensory Learning & Play CIC
Nottinghamshire County Council,1111/1001,Children and Young People,CYP,Supplies & Services,DEA,25/09/2023,06-17668,750,Bright Light Therapy
Nottinghamshire County Council,1111/1001,Children and Young People,CYP,Supplies & Services,DEA,25/09/2023,06-17689,600,Ann Lugering Education Services
Nottinghamshire County Council,1111/1001,Children and Young People,CYP,Supplies & Services,DEA,25/09/2023,06-17733,650,Synchrony Psychology Ltd
Nottinghamshire County Council,1111/1001,Children and Young People,CYP,Supplies & Services,DEA,25/09/2023,06-17744,562.5,Child Psychology Service CIC
Nottinghamshire County Council,1111/1001,Children and Young People,CYP,Supplies & Services,DEA,25/09/2023,06-17862,600,[Redacted]
Nottinghamshire County Council,1111/1001,Children and Young People,CYP,Supplies & Services,DEA,25/09/2023,06-17863,525,[Redacted]
Nottinghamshire County Council,1111/1001,Children and Young People,CYP,Supplies & Services,DEA,25/09/2023,06-17982,"1,657.50",Support & Supervised Family Contact
Nottinghamshire County Council,1111/1001,Children and Young People,CYP,Supplies & Services,DEA,25/09/2023,06-18056,"13,995.00",Global Mediation Ltd
Nottinghamshire County Council,1111/1001,Children and Young People,CYP,Supplies & Services,DEA,26/09/2023,06-18267,"1,364.00",Lextox Drug & Alcohol Testing
Nottinghamshire County Council,1111/1001,Children and Young People,CYP,Supplies & Services,DEA,28/09/2023,06-17806,880,LMS Social Work Services Ltd
Nottinghamshire County Council,1111/1001,Children and Young People,CYP,Supplies & Services,DEA,28/09/2023,06-17807,880,LMS Social Work Services Ltd
Nottinghamshire County Council,1111/1001,Children and Young People,CYP,Supplies & Services,DEA,28/09/2023,06-17808,550,LMS Social Work Services Ltd
Nottinghamshire County Council,1111/1001,Children and Young People,CYP,Supplies & Services,DEA,28/09/2023,06-18025,"1,202.10",Carter Brown - The Expert Service L
Nottinghamshire County Council,1111/1001,Children and Young People,CYP,Supplies & Services,DEA,29/09/2023,06-17842,550,LMS Social Work Services Ltd
Nottinghamshire County Council,1111/1001,Children and Young People,CYP,Supplies & Services,DFA,13/09/2023,06-12845,129.99,Brightside Care Solutions Ltd
Nottinghamshire County Council,1111/1001,Children and Young People,CYP,Supplies & Services,DGA,06/09/2023,06-11007,513.9,Inspire Care (Uk) Ltd
Nottinghamshire County Council,1111/1001,Children and Young People,CYP,Supplies & Services,DGA,20/09/2023,06-13455,465.12,Positive Independence Ltd (Placemen
Nottinghamshire County Council,1111/1001,Children and Young People,CYP,Supplies & Services,DHA,21/09/2023,06-18201,"7,514.53",Fostering Network
Nottinghamshire County Council,1111/1001,Children and Young People,CYP,Supplies & Services,DKA,04/09/2023,06-17574,560,Imageskool Ltd
Nottinghamshire County Council,1111/1001,Children and Young People,CYP,Supplies & Services,DKA,06/09/2023,06-11002,891.08,Mansfield District Council
Nottinghamshire County Council,1111/1001,Children and Young People,CYP,Supplies & Services,DKA,06/09/2023,06-11004,209.4,Brightside Care Solutions Ltd
Nottinghamshire County Council,1111/1001,Children and Young People,CYP,Supplies & Services,DKA,12/09/2023,06-17873,591.08,Progressive Care Ltd
Nottinghamshire County Council,1111/1001,Children and Young People,CYP,Supplies & Services,DKA,13/09/2023,06-12751,850,Norman Galloway Ltd
Nottinghamshire County Council,1111/1001,Children and Young People,CYP,Supplies & Services,DKA,13/09/2023,06-12752,550,Mansfield Property Services LtdT/A
Nottinghamshire County Council,1111/1001,Children and Young People,CYP,Supplies & Services,DKA,13/09/2023,06-12753,500,[Redacted]
Nottinghamshire County Council,1111/1001,Children and Young People,CYP,Supplies & Services,DKA,20/09/2023,06-13453,878.88,Brightside Care Solutions Ltd
Nottinghamshire County Council,1111/1001,Children and Young People,CYP,Supplies & Services,DKA,20/09/2023,06-13455,139.6,Positive Independence Ltd (Placemen
Nottinghamshire County Council,1111/1001,Children and Young People,CYP,Supplies & Services,DKA,22/09/2023,06-18270,"10,583.93",East Leake Schools Ltd
Nottinghamshire County Council,1111/1001,Children and Young People,CYP,Supplies & Services,DKA,22/09/2023,06-18271,"1,038.89",Transform Schools (Bassetlaw) Ltd
Nottinghamshire County Council,1111/1001,Children and Young People,CYP,Supplies & Services,DKA,22/09/2023,06-18272,"1,038.89",Transform Schools (Bassetlaw) Ltd
Nottinghamshire County Council,1111/1001,Children and Young People,CYP,Supplies & Services,DKA,25/09/2023,06-16475,"19,088.82",Lowdham C Of E Primary School
Nottinghamshire County Council,1111/1001,Children and Young People,CYP,Supplies & Services,DKA,25/09/2023,06-18273,"1,038.89",Transform Schools (Bassetlaw) Ltd
Nottinghamshire County Council,1111/1001,Children and Young People,CYP,Supplies & Services,DKA,25/09/2023,06-18274,"1,038.89",Transform Schools (Bassetlaw) Ltd
Nottinghamshire County Council,1111/1001,Children and Young People,CYP,Supplies & Services,DKA,25/09/2023,06-18275,"1,038.89",Transform Schools (Bassetlaw) Ltd
Nottinghamshire County Council,1111/1001,Children and Young People,CYP,Supplies & Services,DKA,26/09/2023,06-18298,"1,038.89",Transform Schools (Bassetlaw) Ltd
Nottinghamshire County Council,1111/1001,Children and Young People,CYP,Supplies & Services,DKA,26/09/2023,06-18299,"1,038.89",Transform Schools (Bassetlaw) Ltd
Nottinghamshire County Council,1111/1001,Children and Young People,CYP,Supplies & Services,DKA,26/09/2023,06-18300,"1,038.89",Transform Schools (Bassetlaw) Ltd
Nottinghamshire County Council,1111/1001,Children and Young People,CYP,Supplies & Services,DKA,27/09/2023,06-16521,750,[Redacted]
Nottinghamshire County Council,1111/1001,Children and Young People,CYP,Third Party Payments,EBA,01/09/2023,06-10056,700,Shires at Oakham (Hopscotch Solutio
Nottinghamshire County Council,1111/1001,Children and Young People,CYP,Third Party Payments,EBA,01/09/2023,06-10060,700,Mount C of E Primary School (Academ
Nottinghamshire County Council,1111/1001,Children and Young People,CYP,Third Party Payments,EBA,01/09/2023,06-10061,700,Wyre Forest School
Nottinghamshire County Council,1111/1001,Children and Young People,CYP,Third Party Payments,EBA,01/09/2023,06-10072,700,Bythams Primary School
Nottinghamshire County Council,1111/1001,Children and Young People,CYP,Third Party Payments,EBA,01/09/2023,06-10074,"1,400.00",Scarcliffe Primary School
Nottinghamshire County Council,1111/1001,Children and Young People,CYP,Third Party Payments,EBA,01/09/2023,06-10075,"1,850.00",Redlands Community Primary School
Nottinghamshire County Council,1111/1001,Children and Young People,CYP,Third Party Payments,EBA,01/09/2023,06-10076,700,Sir John Sherbrooke Junior Academy
Nottinghamshire County Council,1111/1001,Children and Young People,CYP,Third Party Payments,EBA,01/09/2023,06-10079,"1,200.00",St John's C of E Primary & Nursery
Nottinghamshire County Council,1111/1001,Children and Young People,CYP,Third Party Payments,EBA,01/09/2023,06-10081,"1,390.00",Lincolnshire County Council
Nottinghamshire County Council,1111/1001,Children and Young People,CYP,Third Party Payments,EBA,01/09/2023,06-10082,"1,400.00",Ecclesbourne School
Nottinghamshire County Council,1111/1001,Children and Young People,CYP,Third Party Payments,EBA,01/09/2023,06-10085,570,Gonerby Hill Foot Primary School
Nottinghamshire County Council,1111/1001,Children and Young People,CYP,Third Party Payments,EBA,01/09/2023,06-10088,700,Hinckley Academy & John Cleveland S
Nottinghamshire County Council,1111/1001,Children and Young People,CYP,Third Party Payments,EBA,01/09/2023,06-10089,700,Marston Thorold's Charity Cof E Sch
Nottinghamshire County Council,1111/1001,Children and Young People,CYP,Third Party Payments,EBA,01/09/2023,06-10092,700,New Leake Primary School
Nottinghamshire County Council,1111/1001,Children and Young People,CYP,Third Party Payments,EBA,01/09/2023,06-10097,"1,000.00",Fountaindale Academy (Nexus Trust)
Nottinghamshire County Council,1111/1001,Children and Young People,CYP,Third Party Payments,EBA,01/09/2023,06-10101,650,Coppice School
Nottinghamshire County Council,1111/1001,Children and Young People,CYP,Third Party Payments,EBA,01/09/2023,06-10102,700,Candleby Lane School
Nottinghamshire County Council,1111/1001,Children and Young People,CYP,Third Party Payments,EBA,01/09/2023,06-10103,500,Dinnington High School
Nottinghamshire County Council,1111/1001,Children and Young People,CYP,Third Party Payments,EBA,01/09/2023,06-10104,700,Colonel Frank Seeley Academy(Redhil
Nottinghamshire County Council,1111/1001,Children and Young People,CYP,Third Party Payments,EBA,01/09/2023,06-10105,650,Brackenfield School & Specialist Co
Nottinghamshire County Council,1111/1001,Children and Young People,CYP,Third Party Payments,EBA,01/09/2023,06-10106,600,Bramley Care Ltd T/A Apple Orchard
Nottinghamshire County Council,1111/1001,Children and Young People,CYP,Third Party Payments,EBA,01/09/2023,06-10108,700,Acorn Free School
Nottinghamshire County Council,1111/1001,Children and Young People,CYP,Third Party Payments,EBA,01/09/2023,06-10110,500,Active Support (Luton) Ltd
Nottinghamshire County Council,1111/1001,Children and Young People,CYP,Third Party Payments,EBA,01/09/2023,06-10116,700,Derbyshire County Council
Nottinghamshire County Council,1111/1001,Children and Young People,CYP,Third Party Payments,EBA,01/09/2023,06-10118,"1,370.00",Beeston Fields Primary(Flying High
Nottinghamshire County Council,1111/1001,Children and Young People,CYP,Third Party Payments,EBA,01/09/2023,06-10119,700,Belmont Community Primary School
Nottinghamshire County Council,1111/1001,Children and Young People,CYP,Third Party Payments,EBA,01/09/2023,06-10124,500,Canklow Woods Infant School
Nottinghamshire County Council,1111/1001,Children and Young People,CYP,Third Party Payments,EBA,01/09/2023,06-10125,700,Cannock Chase High School
Nottinghamshire County Council,1111/1001,Children and Young People,CYP,Third Party Payments,EBA,01/09/2023,06-10132,700,Church Gresley Infant & Nursery  (J
Nottinghamshire County Council,1111/1001,Children and Young People,CYP,Third Party Payments,EBA,01/09/2023,06-10133,700,De Aston School
Nottinghamshire County Council,1111/1001,Children and Young People,CYP,Third Party Payments,EBA,01/09/2023,06-17576,"8,544.00",Nottm Community Housing Assoc (Head
Nottinghamshire County Council,1111/1001,Children and Young People,CYP,Third Party Payments,EBA,04/09/2023,06-17588,"58,963.75",Framework Housing Association(Head
Nottinghamshire County Council,1111/1001,Children and Young People,CYP,Third Party Payments,EBA,06/09/2023,06-17785,"51,919.94",Bright Futures Accom Ltd(Inv Paymt
Nottinghamshire County Council,1111/1001,Children and Young People,CYP,Third Party Payments,EBA,11/09/2023,06-17917,"32,443.77",Bright Futures Accom Ltd(Inv Paymt
Nottinghamshire County Council,1111/1001,Children and Young People,CYP,Third Party Payments,EBA,11/09/2023,06-17922,"64,887.67",Bright Futures Accom Ltd(Inv Paymt
Nottinghamshire County Council,1111/1001,Children and Young People,CYP,Third Party Payments,EBA,14/09/2023,06-12858,"1,400.00",Thorner CofE Prim Sch (Elevate MAT)
Nottinghamshire County Council,1111/1001,Children and Young People,CYP,Third Party Payments,EBA,14/09/2023,06-12861,700,Moorside High School(Consilium Acad
Nottinghamshire County Council,1111/1001,Children and Young People,CYP,Third Party Payments,EBA,20/09/2023,06-12860,700,Marriotts School
Nottinghamshire County Council,1111/1001,Children and Young People,CYP,Third Party Payments,EBA,22/09/2023,06-18269,"220,855.91",Transform Schools (Bassetlaw) Ltd
Nottinghamshire County Council,1111/1001,Children and Young People,CYP,Third Party Payments,EBA,25/09/2023,06-17968,"27,011.25",YMCA Robin Hood Group(Head Office)
Nottinghamshire County Council,1111/1001,Children and Young People,CYP,Third Party Payments,EBA,25/09/2023,06-17969,"34,166.08",YMCA Robin Hood Group(Head Office)
Nottinghamshire County Council,1111/1001,Children and Young People,CYP,Third Party Payments,EBA,25/09/2023,06-18287,"51,919.94",Bright Futures Accom Ltd(Inv Paymt
Nottinghamshire County Council,1111/1001,Children and Young People,CYP,Third Party Payments,EBA,25/09/2023,06-18289,"51,919.94",Bright Futures Accom Ltd(Inv Paymt
Nottinghamshire County Council,1111/1001,Children and Young People,CYP,Third Party Payments,EBA,27/09/2023,06-18278,"3,412.50",Signis Ltd
Nottinghamshire County Council,1111/1001,Children and Young People,CYP,Third Party Payments,EBA,29/09/2023,06-12862,700,Jump Primary School
Nottinghamshire County Council,1111/1001,Children and Young People,CYP,Third Party Payments,EDA,01/09/2023,06-10054,700,West Park Academy
Nottinghamshire County Council,1111/1001,Children and Young People,CYP,Third Party Payments,EDA,01/09/2023,06-10055,"1,700.00",Suthers School
Nottinghamshire County Council,1111/1001,Children and Young People,CYP,Third Party Payments,EDA,01/09/2023,06-10057,"1,000.00",Priory Ruskin Academy
Nottinghamshire County Council,1111/1001,Children and Young People,CYP,Third Party Payments,EDA,01/09/2023,06-10058,630,South Wolds Academy & Sixth Form
Nottinghamshire County Council,1111/1001,Children and Young People,CYP,Third Party Payments,EDA,01/09/2023,06-10059,700,Quarrydale Academy
Nottinghamshire County Council,1111/1001,Children and Young People,CYP,Third Party Payments,EDA,01/09/2023,06-10063,"2,100.00",Kimberley School Academy
Nottinghamshire County Council,1111/1001,Children and Young People,CYP,Third Party Payments,EDA,01/09/2023,06-10064,695,Sir Robert Pattinson Academy
Nottinghamshire County Council,1111/1001,Children and Young People,CYP,Third Party Payments,EDA,01/09/2023,06-10066,"1,400.00",Beech Academy (Nexus Multi AcademyT
Nottinghamshire County Council,1111/1001,Children and Young People,CYP,Third Party Payments,EDA,01/09/2023,06-10067,"1,400.00",Greenwood Academies Trust
Nottinghamshire County Council,1111/1001,Children and Young People,CYP,Third Party Payments,EDA,01/09/2023,06-10071,"1,400.00",Dukeries Academy
Nottinghamshire County Council,1111/1001,Children and Young People,CYP,Third Party Payments,EDA,01/09/2023,06-10077,"1,400.00",Sparken Hill Academy
Nottinghamshire County Council,1111/1001,Children and Young People,CYP,Third Party Payments,EDA,01/09/2023,06-10078,600,Springwood Junior Academy
Nottinghamshire County Council,1111/1001,Children and Young People,CYP,Third Party Payments,EDA,01/09/2023,06-10080,500,Sutton Community Academy
Nottinghamshire County Council,1111/1001,Children and Young People,CYP,Third Party Payments,EDA,01/09/2023,06-10083,"4,260.00",Elizabethan Academy
Nottinghamshire County Council,1111/1001,Children and Young People,CYP,Third Party Payments,EDA,01/09/2023,06-10084,"3,500.00",Garibaldi School (Academy)
Nottinghamshire County Council,1111/1001,Children and Young People,CYP,Third Party Payments,EDA,01/09/2023,06-10086,700,Holgate Academy
Nottinghamshire County Council,1111/1001,Children and Young People,CYP,Third Party Payments,EDA,01/09/2023,06-10087,"3,265.00",Joseph Whittaker Academy
Nottinghamshire County Council,1111/1001,Children and Young People,CYP,Third Party Payments,EDA,01/09/2023,06-10090,700,National C of E Academy (Minster Tr
Nottinghamshire County Council,1111/1001,Children and Young People,CYP,Third Party Payments,EDA,01/09/2023,06-10093,"2,300.00",Newark Academy
Nottinghamshire County Council,1111/1001,Children and Young People,CYP,Third Party Payments,EDA,01/09/2023,06-10095,"1,200.00",Parkgate Academy (Forge Trust)
Nottinghamshire County Council,1111/1001,Children and Young People,CYP,Third Party Payments,EDA,01/09/2023,06-10098,"2,008.33",George Spencer Academy
Nottinghamshire County Council,1111/1001,Children and Young People,CYP,Third Party Payments,EDA,01/09/2023,06-10100,"1,400.00",Quarrydale Academy
Nottinghamshire County Council,1111/1001,Children and Young People,CYP,Third Party Payments,EDA,01/09/2023,06-10112,700,Aegir -A Specialist Academy(Mayflow
Nottinghamshire County Council,1111/1001,Children and Young People,CYP,Third Party Payments,EDA,01/09/2023,06-10113,"3,350.00",Arnold Hill Academy (Spencer Academ
Nottinghamshire County Council,1111/1001,Children and Young People,CYP,Third Party Payments,EDA,01/09/2023,06-10114,500,Alderman White School
Nottinghamshire County Council,1111/1001,Children and Young People,CYP,Third Party Payments,EDA,01/09/2023,06-10115,916,All Saints Catholic Voluntary Acade
Nottinghamshire County Council,1111/1001,Children and Young People,CYP,Third Party Payments,EDA,01/09/2023,06-10117,900,Barnby Road Academy Prim & Nursery
Nottinghamshire County Council,1111/1001,Children and Young People,CYP,Third Party Payments,EDA,01/09/2023,06-10120,"1,800.00",Blidworth Oaks Primary Academy
Nottinghamshire County Council,1111/1001,Children and Young People,CYP,Third Party Payments,EDA,01/09/2023,06-10121,745,Bluecoat Wollaton Academy
Nottinghamshire County Council,1111/1001,Children and Young People,CYP,Third Party Payments,EDA,01/09/2023,06-10123,621,Buxton Junior School
Nottinghamshire County Council,1111/1001,Children and Young People,CYP,Third Party Payments,EDA,01/09/2023,06-10126,976,Carlton Academy (Redhill Academy Tr
Nottinghamshire County Council,1111/1001,Children and Young People,CYP,Third Party Payments,EDA,01/09/2023,06-10127,"2,790.00",Carlton Le Willows Academy
Nottinghamshire County Council,1111/1001,Children and Young People,CYP,Third Party Payments,EDA,01/09/2023,06-10128,"1,400.00",Carlton Rd Academy (Voyage Educatio
Nottinghamshire County Council,1111/1001,Children and Young People,CYP,Third Party Payments,EDA,01/09/2023,06-10130,700,Christ Church Saint Peter's CofE Pr
Nottinghamshire County Council,1111/1001,Children and Young People,CYP,Third Party Payments,EDA,01/09/2023,06-10131,"1,040.00",Christ The King Catholic Voluntary
Nottinghamshire County Council,1111/1001,Children and Young People,CYP,Third Party Payments,EDA,04/09/2023,06-17696,"754,624.00",Nottingham City Council
Nottinghamshire County Council,1111/1001,Children and Young People,CYP,Third Party Payments,EDA,05/09/2023,06-10909,"59,793.33",Redgate Primary Academy
Nottinghamshire County Council,1111/1001,Children and Young People,CYP,Third Party Payments,EDA,07/09/2023,06-11065,"1,944.08",Awsworth Primary & Nursery Academy
Nottinghamshire County Council,1111/1001,Children and Young People,CYP,Third Party Payments,EDA,11/09/2023,06-11328,"2,500.00",Fountaindale Academy (Nexus Trust)
Nottinghamshire County Council,1111/1001,Children and Young People,CYP,Third Party Payments,EDA,11/09/2023,06-11329,900,Yeoman Park Academy
Nottinghamshire County Council,1111/1001,Children and Young People,CYP,Third Party Payments,EDA,11/09/2023,06-11330,"3,333.33",Foxwood Academy
Nottinghamshire County Council,1111/1001,Children and Young People,CYP,Third Party Payments,EDA,11/09/2023,06-11331,"4,166.67",Beech Academy (Nexus Multi AcademyT
Nottinghamshire County Council,1111/1001,Children and Young People,CYP,Third Party Payments,EDA,11/09/2023,06-11332,"2,214.00",Redgate Primary Academy
Nottinghamshire County Council,1111/1001,Children and Young People,CYP,Third Party Payments,EDA,11/09/2023,06-11333,"150,520.33",Fountaindale Academy (Nexus Trust)
Nottinghamshire County Council,1111/1001,Children and Young People,CYP,Third Party Payments,EDA,11/09/2023,06-11334,"104,240.25",Beech Academy (Nexus Multi AcademyT
Nottinghamshire County Council,1111/1001,Children and Young People,CYP,Third Party Payments,EDA,11/09/2023,06-11335,"139,202.08",Yeoman Park Academy
Nottinghamshire County Council,1111/1001,Children and Young People,CYP,Third Party Payments,EDA,11/09/2023,06-11336,"132,544.08",Foxwood Academy
Nottinghamshire County Council,1111/1001,Children and Young People,CYP,Third Party Payments,EDA,18/09/2023,06-12889,"1,116.00",Brierley Forest Primary & Nursery A
Nottinghamshire County Council,1111/1001,Children and Young People,CYP,Third Party Payments,EDA,18/09/2023,06-12890,"2,238.00",St Augustine's Academy (The Forge T
Nottinghamshire County Council,1111/1001,Children and Young People,CYP,Third Party Payments,EDA,18/09/2023,06-12891,992.4,Mansfield Primary Academy
Nottinghamshire County Council,1111/1001,Children and Young People,CYP,Third Party Payments,EDA,18/09/2023,06-12892,"1,641.60",Wainwright Primary Academy (DALP)
Nottinghamshire County Council,1111/1001,Children and Young People,CYP,Third Party Payments,EDA,18/09/2023,06-12893,670.8,Kingston Park Academy
Nottinghamshire County Council,1111/1001,Children and Young People,CYP,Third Party Payments,EDA,18/09/2023,06-12894,"1,432.80",Kirkby Woodhouse Academy School
Nottinghamshire County Council,1111/1001,Children and Young People,CYP,Third Party Payments,EDA,18/09/2023,06-12895,"1,549.20",Peafield Lane Academy
Nottinghamshire County Council,1111/1001,Children and Young People,CYP,Third Party Payments,EDA,18/09/2023,06-12896,"1,335.60",Mapplewells Primary & Nursery Acade
Nottinghamshire County Council,1111/1001,Children and Young People,CYP,Third Party Payments,EDA,18/09/2023,06-12897,"2,365.20",Leamington Primary & Nursery Academ
Nottinghamshire County Council,1111/1001,Children and Young People,CYP,Third Party Payments,EDA,18/09/2023,06-12898,"1,358.40",Woodland View Primary School (Acade
Nottinghamshire County Council,1111/1001,Children and Young People,CYP,Third Party Payments,EDA,18/09/2023,06-12899,957.6,Birklands Primary (Academy)
Nottinghamshire County Council,1111/1001,Children and Young People,CYP,Third Party Payments,EDA,18/09/2023,06-12900,"2,225.52",Richard Bonnington Primary Academy(
Nottinghamshire County Council,1111/1001,Children and Young People,CYP,Third Party Payments,EDA,18/09/2023,06-12901,"1,337.52",Robert Mellors Primary & Nursery Ac
Nottinghamshire County Council,1111/1001,Children and Young People,CYP,Third Party Payments,EDA,18/09/2023,06-12902,520.8,Haddon Primary School (Academy)
Nottinghamshire County Council,1111/1001,Children and Young People,CYP,Third Party Payments,EDA,18/09/2023,06-12903,"1,586.40",Parkdale Primary Academy
Nottinghamshire County Council,1111/1001,Children and Young People,CYP,Third Party Payments,EDA,18/09/2023,06-12904,627.6,John Clifford School
Nottinghamshire County Council,1111/1001,Children and Young People,CYP,Third Party Payments,EDA,18/09/2023,06-12905,"1,940.40",Alderman Pounder Academy(Flying Hig
Nottinghamshire County Council,1111/1001,Children and Young People,CYP,Third Party Payments,EDA,18/09/2023,06-12906,"1,527.60",Thrumpton Primary Academy
Nottinghamshire County Council,1111/1001,Children and Young People,CYP,Third Party Payments,EDA,18/09/2023,06-12907,"1,333.20",Bracken Lane Primary Academy
Nottinghamshire County Council,1111/1001,Children and Young People,CYP,Third Party Payments,EDA,18/09/2023,06-12908,"1,178.40",Forest Glade Primary School (Academ
Nottinghamshire County Council,1111/1001,Children and Young People,CYP,Third Party Payments,EDA,18/09/2023,06-12909,"1,832.40",Hillocks Primary Academy
Nottinghamshire County Council,1111/1001,Children and Young People,CYP,Third Party Payments,EDA,18/09/2023,06-12910,"1,849.20",Heymann Primary School
Nottinghamshire County Council,1111/1001,Children and Young People,CYP,Third Party Payments,EDA,18/09/2023,06-12911,655.2,Haggonfields Primary Academy
Nottinghamshire County Council,1111/1001,Children and Young People,CYP,Third Party Payments,EDA,18/09/2023,06-12912,"2,517.60",Norbridge Academy(Delta Academies T
Nottinghamshire County Council,1111/1001,Children and Young People,CYP,Third Party Payments,EDA,18/09/2023,06-12913,"1,321.20",John Hunt Academy
Nottinghamshire County Council,1111/1001,Children and Young People,CYP,Third Party Payments,EDA,18/09/2023,06-12914,"1,419.60",Hawthorne Primary Academy(Flying Hi
Nottinghamshire County Council,1111/1001,Children and Young People,CYP,Third Party Payments,EDA,18/09/2023,06-12915,"1,685.04",Samuel Barlow Primary Academy
Nottinghamshire County Council,1111/1001,Children and Young People,CYP,Third Party Payments,EDA,18/09/2023,06-12916,"2,034.60",Parkgate Academy (Forge Trust)
Nottinghamshire County Council,1111/1001,Children and Young People,CYP,Third Party Payments,EDA,18/09/2023,06-12917,603.16,Lowes Wong Infants (Academy)
Nottinghamshire County Council,1111/1001,Children and Young People,CYP,Third Party Payments,EDA,18/09/2023,06-12918,"1,285.20",Tuxford Primary Academy
Nottinghamshire County Council,1111/1001,Children and Young People,CYP,Third Party Payments,EDA,18/09/2023,06-12919,865.24,Ranskill Primary Academy
Nottinghamshire County Council,1111/1001,Children and Young People,CYP,Third Party Payments,EDA,18/09/2023,06-12920,"1,250.40",Kimberley Primary & Nursery Acadamy
Nottinghamshire County Council,1111/1001,Children and Young People,CYP,Third Party Payments,EDA,18/09/2023,06-12921,"2,415.60",Greenwood Primary & Nursery School
Nottinghamshire County Council,1111/1001,Children and Young People,CYP,Third Party Payments,EDA,18/09/2023,06-12922,"1,023.60",West Park Academy
Nottinghamshire County Council,1111/1001,Children and Young People,CYP,Third Party Payments,EDA,18/09/2023,06-12923,"2,950.80",Barnby Road Academy Prim & Nursery
Nottinghamshire County Council,1111/1001,Children and Young People,CYP,Third Party Payments,EDA,18/09/2023,06-12924,"2,188.80",Sparken Hill Academy
Nottinghamshire County Council,1111/1001,Children and Young People,CYP,Third Party Payments,EDA,18/09/2023,06-12925,"1,152.00",Bilsthorpe Flying High Academy (Fly
Nottinghamshire County Council,1111/1001,Children and Young People,CYP,Third Party Payments,EDA,18/09/2023,06-12926,"1,664.40",Beeston Fields Primary(Flying High
Nottinghamshire County Council,1111/1001,Children and Young People,CYP,Third Party Payments,EDA,18/09/2023,06-12927,925.8,Selston C of E Infant & Nursery Aca
Nottinghamshire County Council,1111/1001,Children and Young People,CYP,Third Party Payments,EDA,18/09/2023,06-12928,774,Keyworth Primary & Nursery School (
Nottinghamshire County Council,1111/1001,Children and Young People,CYP,Third Party Payments,EDA,18/09/2023,06-12929,524.4,Bramble Academy
Nottinghamshire County Council,1111/1001,Children and Young People,CYP,Third Party Payments,EDA,18/09/2023,06-13349,864,Bishop Alexander LEAD Academy
Nottinghamshire County Council,1111/1001,Children and Young People,CYP,Third Party Payments,EDA,18/09/2023,06-13350,724.72,Sunnyside Spencer Academy (Spencer
Nottinghamshire County Council,1111/1001,Children and Young People,CYP,Third Party Payments,EDA,18/09/2023,06-13351,"1,632.00",Carlton Infant Academy (Redhill Aca
Nottinghamshire County Council,1111/1001,Children and Young People,CYP,Third Party Payments,EDA,19/09/2023,06-13353,507.36,Holy Trinity Catholic Voluntary Aca
Nottinghamshire County Council,1111/1001,Children and Young People,CYP,Third Party Payments,EDA,19/09/2023,06-13354,879.84,Hucknall Flying High Academy
Nottinghamshire County Council,1111/1001,Children and Young People,CYP,Third Party Payments,EDA,19/09/2023,06-13355,544.8,Kimberley Primary & Nursery Acadamy
Nottinghamshire County Council,1111/1001,Children and Young People,CYP,Third Party Payments,EDA,19/09/2023,06-13356,523.44,Kirkby Woodhouse Academy School
Nottinghamshire County Council,1111/1001,Children and Young People,CYP,Third Party Payments,EDA,19/09/2023,06-13357,829.2,Leamington Primary & Nursery Academ
Nottinghamshire County Council,1111/1001,Children and Young People,CYP,Third Party Payments,EDA,19/09/2023,06-13358,855.6,Mapplewells Primary & Nursery Acade
Nottinghamshire County Council,1111/1001,Children and Young People,CYP,Third Party Payments,EDA,19/09/2023,06-13359,"1,249.20",Netherfield Primary School (Academy
Nottinghamshire County Council,1111/1001,Children and Young People,CYP,Third Party Payments,EDA,19/09/2023,06-13360,"1,512.00",Norbridge Academy(Delta Academies T
Nottinghamshire County Council,1111/1001,Children and Young People,CYP,Third Party Payments,EDA,19/09/2023,06-13361,594.24,Parkdale Primary Academy
Nottinghamshire County Council,1111/1001,Children and Young People,CYP,Third Party Payments,EDA,19/09/2023,06-13362,993.6,Peafield Lane Academy
Nottinghamshire County Council,1111/1001,Children and Young People,CYP,Third Party Payments,EDA,19/09/2023,06-13363,"1,142.40",Richard Bonnington Primary Academy(
Nottinghamshire County Council,1111/1001,Children and Young People,CYP,Third Party Payments,EDA,19/09/2023,06-13364,564.24,Robert Mellors Primary & Nursery Ac
Nottinghamshire County Council,1111/1001,Children and Young People,CYP,Third Party Payments,EDA,19/09/2023,06-13365,725.52,Samuel Barlow Primary Academy
Nottinghamshire County Council,1111/1001,Children and Young People,CYP,Third Party Payments,EDA,19/09/2023,06-13366,514.4,Selston C of E Infant & Nursery Aca
Nottinghamshire County Council,1111/1001,Children and Young People,CYP,Third Party Payments,EDA,19/09/2023,06-13367,667.2,Serlby Park Academy
Nottinghamshire County Council,1111/1001,Children and Young People,CYP,Third Party Payments,EDA,19/09/2023,06-13368,660,Sparken Hill Academy
Nottinghamshire County Council,1111/1001,Children and Young People,CYP,Third Party Payments,EDA,19/09/2023,06-13369,626.4,Springbank Primary Academy
Nottinghamshire County Council,1111/1001,Children and Young People,CYP,Third Party Payments,EDA,19/09/2023,06-13370,898.61,St Augustine's Academy (The Forge T
Nottinghamshire County Council,1111/1001,Children and Young People,CYP,Third Party Payments,EDA,19/09/2023,06-13371,805.2,St Johns C of E Academy
Nottinghamshire County Council,1111/1001,Children and Young People,CYP,Third Party Payments,EDA,19/09/2023,06-13372,595.6,St Josephs Catholic Primary Sch Aca
Nottinghamshire County Council,1111/1001,Children and Young People,CYP,Third Party Payments,EDA,19/09/2023,06-13373,540,St Patricks Catholic Voluntary Acad
Nottinghamshire County Council,1111/1001,Children and Young People,CYP,Third Party Payments,EDA,19/09/2023,06-13374,848.4,St Philip Neri with St Bede Vol Aca
Nottinghamshire County Council,1111/1001,Children and Young People,CYP,Third Party Payments,EDA,19/09/2023,06-13375,886.72,Candleby Lane School
Nottinghamshire County Council,1111/1001,Children and Young People,CYP,Third Party Payments,EDA,19/09/2023,06-13376,970.8,Good Shephard Prim Catholic Vol Aca
Nottinghamshire County Council,1111/1001,Children and Young People,CYP,Third Party Payments,EDA,19/09/2023,06-13377,666,Parkgate Academy (Forge Trust)
Nottinghamshire County Council,1111/1001,Children and Young People,CYP,Third Party Payments,EDA,19/09/2023,06-13378,802.8,Sir Donald Bailey Academy (Forge Tr
Nottinghamshire County Council,1111/1001,Children and Young People,CYP,Third Party Payments,EDA,19/09/2023,06-13379,606,Thrumpton Primary Academy
Nottinghamshire County Council,1111/1001,Children and Young People,CYP,Third Party Payments,EDA,19/09/2023,06-13380,541.2,Tuxford Primary Academy
Nottinghamshire County Council,1111/1001,Children and Young People,CYP,Third Party Payments,EDA,19/09/2023,06-13381,740.4,Hawthorne Primary Academy(Flying Hi
Nottinghamshire County Council,1111/1001,Children and Young People,CYP,Third Party Payments,EDA,19/09/2023,06-13382,526.8,Heathlands Primary School Academy
Nottinghamshire County Council,1111/1001,Children and Young People,CYP,Third Party Payments,EDA,19/09/2023,06-13383,804.96,Heymann Primary School
Nottinghamshire County Council,1111/1001,Children and Young People,CYP,Third Party Payments,EDA,19/09/2023,06-13384,663.6,Hillocks Primary Academy
Nottinghamshire County Council,1111/1001,Children and Young People,CYP,Third Party Payments,EDA,19/09/2023,06-13385,"1,213.20",Hillside Academy (Flying High Trust
Nottinghamshire County Council,1111/1001,Children and Young People,CYP,Third Party Payments,EDA,19/09/2023,06-13386,548.4,Carlton Infant Academy (Redhill Aca
Nottinghamshire County Council,1111/1001,Children and Young People,CYP,Third Party Payments,EDA,19/09/2023,06-13387,"1,320.00",Witham St Hughs Primary School
Nottinghamshire County Council,1111/1001,Children and Young People,CYP,Third Party Payments,EDA,19/09/2023,06-13388,"2,671.20",Sir Donald Bailey Academy (Forge Tr
Nottinghamshire County Council,1111/1001,Children and Young People,CYP,Third Party Payments,EDA,19/09/2023,06-13389,"1,089.60",Langold Dyscarr Community Academy
Nottinghamshire County Council,1111/1001,Children and Young People,CYP,Third Party Payments,EDA,19/09/2023,06-13390,830.4,Heathlands Primary School Academy
Nottinghamshire County Council,1111/1001,Children and Young People,CYP,Third Party Payments,EDA,19/09/2023,06-13391,"1,144.64",St Peters C of E Academy Mansfield
Nottinghamshire County Council,1111/1001,Children and Young People,CYP,Third Party Payments,EDA,19/09/2023,06-13392,"1,758.00",Abbey Primary Academy
Nottinghamshire County Council,1111/1001,Children and Young People,CYP,Third Party Payments,EDA,19/09/2023,06-13393,"1,264.80",Springbank Primary Academy
Nottinghamshire County Council,1111/1001,Children and Young People,CYP,Third Party Payments,EDA,19/09/2023,06-13394,739.2,St Swithuns C of E Primary Academy
Nottinghamshire County Council,1111/1001,Children and Young People,CYP,Third Party Payments,EDA,19/09/2023,06-13395,540,St Mary's C of E Primary Academy
Nottinghamshire County Council,1111/1001,Children and Young People,CYP,Third Party Payments,EDA,19/09/2023,06-13396,711.6,Sacred Heart Catholic Voluntary Aca
Nottinghamshire County Council,1111/1001,Children and Young People,CYP,Third Party Payments,EDA,19/09/2023,06-13397,"1,398.00",Good Shephard Prim Catholic Vol Aca
Nottinghamshire County Council,1111/1001,Children and Young People,CYP,Third Party Payments,EDA,19/09/2023,06-13398,"1,026.00",St Joseph's Catholic Primary School
Nottinghamshire County Council,1111/1001,Children and Young People,CYP,Third Party Payments,EDA,19/09/2023,06-13399,"1,257.60",Holy Trinity Catholic Voluntary Aca
Nottinghamshire County Council,1111/1001,Children and Young People,CYP,Third Party Payments,EDA,19/09/2023,06-13400,723.6,St Patricks Catholic Voluntary Acad
Nottinghamshire County Council,1111/1001,Children and Young People,CYP,Third Party Payments,EDA,19/09/2023,06-13401,766.8,Holy Family Catholic Primary School
Nottinghamshire County Council,1111/1001,Children and Young People,CYP,Third Party Payments,EDA,19/09/2023,06-13402,"2,175.60",St Philip Neri with St Bede Vol Aca
Nottinghamshire County Council,1111/1001,Children and Young People,CYP,Third Party Payments,EDA,19/09/2023,06-13403,936,St Josephs Catholic Primary Sch Aca
Nottinghamshire County Council,1111/1001,Children and Young People,CYP,Third Party Payments,EDA,19/09/2023,06-13404,920.4,Worksop Priory CE Primary Academy
Nottinghamshire County Council,1111/1001,Children and Young People,CYP,Third Party Payments,EDA,19/09/2023,06-13405,"1,348.80",Huthwaite All Saints C ofE Infant S
Nottinghamshire County Council,1111/1001,Children and Young People,CYP,Third Party Payments,EDA,19/09/2023,06-13406,"1,178.40",Oak Tree Lane Primary Academy
Nottinghamshire County Council,1111/1001,Children and Young People,CYP,Third Party Payments,EDA,19/09/2023,06-13407,"1,098.00",Awsworth Primary & Nursery Academy
Nottinghamshire County Council,1111/1001,Children and Young People,CYP,Third Party Payments,EDA,19/09/2023,06-13408,"1,049.52",Python Hill Academy (Forge Trust)
Nottinghamshire County Council,1111/1001,Children and Young People,CYP,Third Party Payments,EDA,19/09/2023,06-13409,"2,290.80",Netherfield Primary School (Academy
Nottinghamshire County Council,1111/1001,Children and Young People,CYP,Third Party Payments,EDA,19/09/2023,06-13410,"1,788.00",Florence Nightingale Academy
Nottinghamshire County Council,1111/1001,Children and Young People,CYP,Third Party Payments,EDA,19/09/2023,06-13411,"1,834.40",Candleby Lane School
Nottinghamshire County Council,1111/1001,Children and Young People,CYP,Third Party Payments,EDA,19/09/2023,06-13412,"2,126.40",Hillside Academy (Flying High Trust
Nottinghamshire County Council,1111/1001,Children and Young People,CYP,Third Party Payments,EDA,19/09/2023,06-13413,"2,149.92",Blidworth Oaks Primary Academy
Nottinghamshire County Council,1111/1001,Children and Young People,CYP,Third Party Payments,EDA,19/09/2023,06-13414,"2,037.60",Flying High Academy
Nottinghamshire County Council,1111/1001,Children and Young People,CYP,Third Party Payments,EDA,19/09/2023,06-13415,"1,484.40",Serlby Park Academy
Nottinghamshire County Council,1111/1001,Children and Young People,CYP,Third Party Payments,EDA,19/09/2023,06-13416,"1,557.12",Hucknall Flying High Academy
Nottinghamshire County Council,1111/1001,Children and Young People,CYP,Third Party Payments,EDA,19/09/2023,06-13417,"1,248.00",Rosecliffe Spencer Academy
Nottinghamshire County Council,1111/1001,Children and Young People,CYP,Third Party Payments,EDA,19/09/2023,06-13418,634.8,Rivendell Flying High Academy
Nottinghamshire County Council,1111/1001,Children and Young People,CYP,Third Party Payments,EDA,19/09/2023,06-13419,741.6,Abbey Primary Academy
Nottinghamshire County Council,1111/1001,Children and Young People,CYP,Third Party Payments,EDA,19/09/2023,06-13420,759.6,Alderman Pounder Academy(Flying Hig
Nottinghamshire County Council,1111/1001,Children and Young People,CYP,Third Party Payments,EDA,19/09/2023,06-13421,742.8,Bilsthorpe Flying High Academy (Fly
Nottinghamshire County Council,1111/1001,Children and Young People,CYP,Third Party Payments,EDA,19/09/2023,06-13422,501.6,Birklands Primary (Academy)
Nottinghamshire County Council,1111/1001,Children and Young People,CYP,Third Party Payments,EDA,19/09/2023,06-13423,862.8,Blidworth Oaks Primary Academy
Nottinghamshire County Council,1111/1001,Children and Young People,CYP,Third Party Payments,EDA,19/09/2023,06-13424,621.36,Bracken Lane Primary Academy
Nottinghamshire County Council,1111/1001,Children and Young People,CYP,Third Party Payments,EDA,19/09/2023,06-13425,507.68,Flying High Academy
Nottinghamshire County Council,1111/1001,Children and Young People,CYP,Third Party Payments,EDA,19/09/2023,06-13426,"1,046.40",Greenwood Primary & Nursery School
Nottinghamshire County Council,1111/1001,Children and Young People,CYP,Third Party Payments,EDA,19/09/2023,06-13427,696,Mount C of E Primary School (Academ
Nottinghamshire County Council,1111/1001,Children and Young People,CYP,Third Party Payments,EDA,19/09/2023,06-13428,"1,381.20",St Johns C of E Academy
Nottinghamshire County Council,1111/1001,Children and Young People,CYP,Third Party Payments,EDA,19/09/2023,06-13429,905.28,St Peters C of E Academy
Nottinghamshire County Council,1111/1001,Children and Young People,CYP,Third Party Payments,EDA,19/09/2023,06-13430,682.8,Leverton C of E Academy
Nottinghamshire County Council,1111/1001,Children and Young People,CYP,Third Party Payments,EDA,20/09/2023,06-13440,"13,818.00",Oak Tree Lane Primary Academy
Nottinghamshire County Council,1111/1001,Children and Young People,CYP,Third Party Payments,EDA,20/09/2023,06-13441,"7,599.90",Awsworth Primary & Nursery Academy
Nottinghamshire County Council,1111/1001,Children and Young People,CYP,Third Party Payments,EDA,20/09/2023,06-13442,"10,639.86",Python Hill Academy (Forge Trust)
Nottinghamshire County Council,1111/1001,Children and Young People,CYP,Third Party Payments,EDA,20/09/2023,06-13443,"29,017.80",Netherfield Primary School (Academy
Nottinghamshire County Council,1111/1001,Children and Young People,CYP,Third Party Payments,EDA,20/09/2023,06-13444,"20,036.10",Florence Nightingale Academy
Nottinghamshire County Council,1111/1001,Children and Young People,CYP,Third Party Payments,EDA,20/09/2023,06-13445,"21,417.90",Candleby Lane School
Nottinghamshire County Council,1111/1001,Children and Young People,CYP,Third Party Payments,EDA,20/09/2023,06-13446,"29,708.70",Hillside Academy (Flying High Trust
Nottinghamshire County Council,1111/1001,Children and Young People,CYP,Third Party Payments,EDA,20/09/2023,06-13447,"28,326.90",Blidworth Oaks Primary Academy
Nottinghamshire County Council,1111/1001,Children and Young People,CYP,Third Party Payments,EDA,20/09/2023,06-13448,"24,872.40",Flying High Academy
Nottinghamshire County Council,1111/1001,Children and Young People,CYP,Third Party Payments,EDA,20/09/2023,06-13449,"17,272.50",Serlby Park Academy
Nottinghamshire County Council,1111/1001,Children and Young People,CYP,Third Party Payments,EDA,20/09/2023,06-13450,"17,963.40",Hucknall Flying High Academy
Nottinghamshire County Council,1111/1001,Children and Young People,CYP,Third Party Payments,EDA,20/09/2023,06-13451,"18,654.30",Rosecliffe Spencer Academy
Nottinghamshire County Council,1111/1001,Children and Young People,CYP,Third Party Payments,EDA,20/09/2023,06-13452,"10,363.50",Rivendell Flying High Academy
Nottinghamshire County Council,1111/1001,Children and Young People,CYP,Third Party Payments,EDA,20/09/2023,06-13463,"9,672.60",Brierley Forest Primary & Nursery A
Nottinghamshire County Council,1111/1001,Children and Young People,CYP,Third Party Payments,EDA,20/09/2023,06-13464,"5,527.20",Kings C of E Primary Academy
Nottinghamshire County Council,1111/1001,Children and Young People,CYP,Third Party Payments,EDA,20/09/2023,06-13465,"28,326.90",St Augustine's Academy (The Forge T
Nottinghamshire County Council,1111/1001,Children and Young People,CYP,Third Party Payments,EDA,20/09/2023,06-13466,"13,818.00",Mansfield Primary Academy
Nottinghamshire County Council,1111/1001,Children and Young People,CYP,Third Party Payments,EDA,20/09/2023,06-13467,"18,654.30",Wainwright Primary Academy (DALP)
Nottinghamshire County Council,1111/1001,Children and Young People,CYP,Third Party Payments,EDA,20/09/2023,06-13468,"6,909.00",Kingston Park Academy
Nottinghamshire County Council,1111/1001,Children and Young People,CYP,Third Party Payments,EDA,20/09/2023,06-13469,"14,508.90",Kirkby Woodhouse Academy School
Nottinghamshire County Council,1111/1001,Children and Young People,CYP,Third Party Payments,EDA,20/09/2023,06-13470,"17,272.50",Peafield Lane Academy
Nottinghamshire County Council,1111/1001,Children and Young People,CYP,Third Party Payments,EDA,20/09/2023,06-13471,"18,654.30",Mapplewells Primary & Nursery Acade
Nottinghamshire County Council,1111/1001,Children and Young People,CYP,Third Party Payments,EDA,20/09/2023,06-13472,"29,017.80",Leamington Primary & Nursery Academ
Nottinghamshire County Council,1111/1001,Children and Young People,CYP,Third Party Payments,EDA,20/09/2023,06-13473,"15,199.80",Woodland View Primary School (Acade
Nottinghamshire County Council,1111/1001,Children and Young People,CYP,Third Party Payments,EDA,20/09/2023,06-13474,"13,127.10",Birklands Primary (Academy)
Nottinghamshire County Council,1111/1001,Children and Young People,CYP,Third Party Payments,EDA,20/09/2023,06-13475,"27,083.28",Richard Bonnington Primary Academy(
Nottinghamshire County Council,1111/1001,Children and Young People,CYP,Third Party Payments,EDA,20/09/2023,06-13476,"17,134.32",Robert Mellors Primary & Nursery Ac
Nottinghamshire County Council,1111/1001,Children and Young People,CYP,Third Party Payments,EDA,20/09/2023,06-13477,"3,454.50",Haddon Primary School (Academy)
Nottinghamshire County Council,1111/1001,Children and Young People,CYP,Third Party Payments,EDA,20/09/2023,06-13478,"18,654.30",Parkdale Primary Academy
Nottinghamshire County Council,1111/1001,Children and Young People,CYP,Third Party Payments,EDA,20/09/2023,06-13479,"6,909.00",John Clifford School
Nottinghamshire County Council,1111/1001,Children and Young People,CYP,Third Party Payments,EDA,20/09/2023,06-13480,"20,727.00",Alderman Pounder Academy(Flying Hig
Nottinghamshire County Council,1111/1001,Children and Young People,CYP,Third Party Payments,EDA,20/09/2023,06-13481,"20,727.00",Thrumpton Primary Academy
Nottinghamshire County Council,1111/1001,Children and Young People,CYP,Third Party Payments,EDA,20/09/2023,06-13482,"14,508.90",Bracken Lane Primary Academy
Nottinghamshire County Council,1111/1001,Children and Young People,CYP,Third Party Payments,EDA,20/09/2023,06-13483,"13,127.10",Forest Glade Primary School (Academ
Nottinghamshire County Council,1111/1001,Children and Young People,CYP,Third Party Payments,EDA,20/09/2023,06-13484,"23,490.60",Hillocks Primary Academy
Nottinghamshire County Council,1111/1001,Children and Young People,CYP,Third Party Payments,EDA,20/09/2023,06-13485,"24,181.50",Heymann Primary School
Nottinghamshire County Council,1111/1001,Children and Young People,CYP,Third Party Payments,EDA,20/09/2023,06-13486,"7,047.18",Haggonfields Primary Academy
Nottinghamshire County Council,1111/1001,Children and Young People,CYP,Third Party Payments,EDA,20/09/2023,06-13487,"31,090.50",Norbridge Academy(Delta Academies T
Nottinghamshire County Council,1111/1001,Children and Young People,CYP,Third Party Payments,EDA,20/09/2023,06-13488,"15,199.80",John Hunt Academy
Nottinghamshire County Council,1111/1001,Children and Young People,CYP,Third Party Payments,EDA,20/09/2023,06-13489,"15,890.70",Hawthorne Primary Academy(Flying Hi
Nottinghamshire County Council,1111/1001,Children and Young People,CYP,Third Party Payments,EDA,20/09/2023,06-13490,"20,036.10",Samuel Barlow Primary Academy
Nottinghamshire County Council,1111/1001,Children and Young People,CYP,Third Party Payments,EDA,20/09/2023,06-13491,"1,381.80",Flintham Primary Academy School
Nottinghamshire County Council,1111/1001,Children and Young People,CYP,Third Party Payments,EDA,20/09/2023,06-13492,"20,727.00",Parkgate Academy (Forge Trust)
Nottinghamshire County Council,1111/1001,Children and Young People,CYP,Third Party Payments,EDA,20/09/2023,06-13493,"15,199.80",Tuxford Primary Academy
Nottinghamshire County Council,1111/1001,Children and Young People,CYP,Third Party Payments,EDA,20/09/2023,06-13494,"8,843.52",Ranskill Primary Academy
Nottinghamshire County Council,1111/1001,Children and Young People,CYP,Third Party Payments,EDA,20/09/2023,06-13495,"14,508.90",Kimberley Primary & Nursery Acadamy
Nottinghamshire County Council,1111/1001,Children and Young People,CYP,Third Party Payments,EDA,20/09/2023,06-13496,"32,472.30",Greenwood Primary & Nursery School
Nottinghamshire County Council,1111/1001,Children and Young People,CYP,Third Party Payments,EDA,20/09/2023,06-13497,"11,745.30",West Park Academy
Nottinghamshire County Council,1111/1001,Children and Young People,CYP,Third Party Payments,EDA,20/09/2023,06-13498,"36,963.15",Barnby Road Academy Prim & Nursery
Nottinghamshire County Council,1111/1001,Children and Young People,CYP,Third Party Payments,EDA,20/09/2023,06-13499,"9,672.60",Keyworth Primary & Nursery School (
Nottinghamshire County Council,1111/1001,Children and Young People,CYP,Third Party Payments,EDA,20/09/2023,06-13500,"24,872.40",Sparken Hill Academy
Nottinghamshire County Council,1111/1001,Children and Young People,CYP,Third Party Payments,EDA,20/09/2023,06-13501,"12,436.20",Bilsthorpe Flying High Academy (Fly
Nottinghamshire County Council,1111/1001,Children and Young People,CYP,Third Party Payments,EDA,20/09/2023,06-13502,"18,654.30",Beeston Fields Primary(Flying High
Nottinghamshire County Council,1111/1001,Children and Young People,CYP,Third Party Payments,EDA,20/09/2023,06-13503,"5,527.20",Bramble Academy
Nottinghamshire County Council,1111/1001,Children and Young People,CYP,Third Party Payments,EDA,20/09/2023,06-13504,"11,054.40",Selston C of E Infant & Nursery Aca
Nottinghamshire County Council,1111/1001,Children and Young People,CYP,Third Party Payments,EDA,20/09/2023,06-13505,"8,290.80",Mount C of E Primary School (Academ
Nottinghamshire County Council,1111/1001,Children and Young People,CYP,Third Party Payments,EDA,20/09/2023,06-13506,"20,727.00",St Johns C of E Academy
Nottinghamshire County Council,1111/1001,Children and Young People,CYP,Third Party Payments,EDA,20/09/2023,06-13507,"10,893.19",St Peters C of E Academy
Nottinghamshire County Council,1111/1001,Children and Young People,CYP,Third Party Payments,EDA,20/09/2023,06-13508,"9,672.60",Leverton C of E Academy
Nottinghamshire County Council,1111/1001,Children and Young People,CYP,Third Party Payments,EDA,20/09/2023,06-13509,"30,399.60",Sir Donald Bailey Academy (Forge Tr
Nottinghamshire County Council,1111/1001,Children and Young People,CYP,Third Party Payments,EDA,20/09/2023,06-13510,"6,218.10",Langold Dyscarr Community Academy
Nottinghamshire County Council,1111/1001,Children and Young People,CYP,Third Party Payments,EDA,20/09/2023,06-13511,"10,363.50",Heathlands Primary School Academy
Nottinghamshire County Council,1111/1001,Children and Young People,CYP,Third Party Payments,EDA,20/09/2023,06-13512,"15,890.70",St Peters C of E Academy Mansfield
Nottinghamshire County Council,1111/1001,Children and Young People,CYP,Third Party Payments,EDA,20/09/2023,06-13513,"22,108.80",Abbey Primary Academy
Nottinghamshire County Council,1111/1001,Children and Young People,CYP,Third Party Payments,EDA,20/09/2023,06-13514,"13,818.00",Springbank Primary Academy
Nottinghamshire County Council,1111/1001,Children and Young People,CYP,Third Party Payments,EDA,20/09/2023,06-13515,"2,072.70",Burntstump Seely CofE Primary Acade
Nottinghamshire County Council,1111/1001,Children and Young People,CYP,Third Party Payments,EDA,20/09/2023,06-13516,"10,363.50",St Swithuns C of E Primary Academy
Nottinghamshire County Council,1111/1001,Children and Young People,CYP,Third Party Payments,EDA,20/09/2023,06-13517,"3,454.50",Cotgrave C of E Primary Academy(Dio
Nottinghamshire County Council,1111/1001,Children and Young People,CYP,Third Party Payments,EDA,20/09/2023,06-13518,"6,909.00",St Mary's C of E Primary Academy
Nottinghamshire County Council,1111/1001,Children and Young People,CYP,Third Party Payments,EDA,20/09/2023,06-13519,"2,349.06",Gamston St Peter�s C Of E Primary S
Nottinghamshire County Council,1111/1001,Children and Young People,CYP,Third Party Payments,EDA,20/09/2023,06-13520,"2,671.48",Gunthorpe C OF E Primary Academy
Nottinghamshire County Council,1111/1001,Children and Young People,CYP,Third Party Payments,EDA,20/09/2023,06-13521,"9,258.06",Sacred Heart Catholic Voluntary Aca
Nottinghamshire County Council,1111/1001,Children and Young People,CYP,Third Party Payments,EDA,20/09/2023,06-13522,"17,963.40",Good Shephard Prim Catholic Vol Aca
Nottinghamshire County Council,1111/1001,Children and Young People,CYP,Third Party Payments,EDA,20/09/2023,06-13523,"10,363.50",St Joseph's Catholic Primary School
Nottinghamshire County Council,1111/1001,Children and Young People,CYP,Third Party Payments,EDA,20/09/2023,06-13524,"4,007.22",Holy Cross Catholic Voluntary Acade
Nottinghamshire County Council,1111/1001,Children and Young People,CYP,Third Party Payments,EDA,20/09/2023,06-13525,"2,763.60",St Patrick's Catholic Primary Acade
Nottinghamshire County Council,1111/1001,Children and Young People,CYP,Third Party Payments,EDA,20/09/2023,06-13526,"12,781.65",Holy Trinity Catholic Voluntary Aca
Nottinghamshire County Council,1111/1001,Children and Young People,CYP,Third Party Payments,EDA,20/09/2023,06-13527,"10,363.50",St Patricks Catholic Voluntary Acad
Nottinghamshire County Council,1111/1001,Children and Young People,CYP,Third Party Payments,EDA,20/09/2023,06-13528,"6,909.00",Holy Family Catholic Primary School
Nottinghamshire County Council,1111/1001,Children and Young People,CYP,Third Party Payments,EDA,20/09/2023,06-13529,"31,090.50",St Philip Neri with St Bede Vol Aca
Nottinghamshire County Council,1111/1001,Children and Young People,CYP,Third Party Payments,EDA,20/09/2023,06-13530,"11,054.40",St Josephs Catholic Primary Sch Aca
Nottinghamshire County Council,1111/1001,Children and Young People,CYP,Third Party Payments,EDA,20/09/2023,06-13531,"10,363.50",Worksop Priory CE Primary Academy
Nottinghamshire County Council,1111/1001,Children and Young People,CYP,Third Party Payments,EDA,20/09/2023,06-13532,"18,654.30",Huthwaite All Saints C ofE Infant S
Nottinghamshire County Council,1111/1001,Children and Young People,CYP,Third Party Payments,EDA,20/09/2023,06-13639,"10,363.50",Bishop Alexander LEAD Academy
Nottinghamshire County Council,1111/1001,Children and Young People,CYP,Third Party Payments,EDA,20/09/2023,06-13640,"22,108.80",Carlton Infant Academy (Redhill Aca
Nottinghamshire County Council,1111/1001,Children and Young People,CYP,Third Party Payments,EDA,20/09/2023,06-17986,"6,000.00",CB XP School (Doncaster) Ltd
Nottinghamshire County Council,1111/1001,Children and Young People,CYP,Third Party Payments,EDA,22/09/2023,06-16053,700,Hall Cross Academy/Exceed Learning
Nottinghamshire County Council,1111/1001,Children and Young People,CYP,Third Party Payments,EDA,25/09/2023,06-17706,875,Richard Bonnington Primary Academy(
Nottinghamshire County Council,1111/1001,Children and Young People,CYP,Third Party Payments,EDA,25/09/2023,06-17987,"2,500.00",CB XP School (Doncaster) Ltd
Nottinghamshire County Council,1111/1001,Children and Young People,CYP,Third Party Payments,EDA,25/09/2023,06-18033,"1,000.00",St Peters C of E Academy
Nottinghamshire County Council,1111/1001,Children and Young People,CYP,Third Party Payments,EDA,25/09/2023,06-18189,875,Archbishop Cranmer C of E Academy
Nottinghamshire County Council,1111/1001,Children and Young People,CYP,Third Party Payments,EFA,01/09/2023,06-10065,"1,350.00",Swanwick School & Sports College
Nottinghamshire County Council,1111/1001,Children and Young People,CYP,Third Party Payments,EFA,01/09/2023,06-10122,"2,800.00",Bramcote College
Nottinghamshire County Council,1111/1001,Children and Young People,CYP,Third Party Payments,EFA,01/09/2023,06-10129,"1,167.00",Casterton College Rutland
Nottinghamshire County Council,1111/1001,Children and Young People,CYP,Third Party Payments,EFA,01/09/2023,06-17561,"3,403.20",Notts County FC Community Programme
Nottinghamshire County Council,1111/1001,Children and Young People,CYP,Third Party Payments,EFA,01/09/2023,06-17569,"1,072.80",Switch Up CIC
Nottinghamshire County Council,1111/1001,Children and Young People,CYP,Third Party Payments,EFA,01/09/2023,06-17595,"1,628.00",Switch Up CIC
Nottinghamshire County Council,1111/1001,Children and Young People,CYP,Third Party Payments,EFA,01/09/2023,06-17609,"9,333.34",Acorn Care & Education Ltd
Nottinghamshire County Council,1111/1001,Children and Young People,CYP,Third Party Payments,EFA,01/09/2023,06-17610,"19,100.39",Acorn Care & Education Ltd
Nottinghamshire County Council,1111/1001,Children and Young People,CYP,Third Party Payments,EFA,01/09/2023,06-17611,"9,333.34",Acorn Care & Education Ltd
Nottinghamshire County Council,1111/1001,Children and Young People,CYP,Third Party Payments,EFA,01/09/2023,06-17612,"9,333.34",Acorn Care & Education Ltd
Nottinghamshire County Council,1111/1001,Children and Young People,CYP,Third Party Payments,EFA,01/09/2023,06-17613,"9,333.34",Acorn Care & Education Ltd
Nottinghamshire County Council,1111/1001,Children and Young People,CYP,Third Party Payments,EFA,01/09/2023,06-17614,"9,333.34",Acorn Care & Education Ltd
Nottinghamshire County Council,1111/1001,Children and Young People,CYP,Third Party Payments,EFA,01/09/2023,06-17615,"9,333.34",Acorn Care & Education Ltd
Nottinghamshire County Council,1111/1001,Children and Young People,CYP,Third Party Payments,EFA,01/09/2023,06-17616,"9,333.34",Acorn Care & Education Ltd
Nottinghamshire County Council,1111/1001,Children and Young People,CYP,Third Party Payments,EFA,01/09/2023,06-17617,"9,333.34",Acorn Care & Education Ltd
Nottinghamshire County Council,1111/1001,Children and Young People,CYP,Third Party Payments,EFA,01/09/2023,06-17618,"9,333.34",Acorn Care & Education Ltd
Nottinghamshire County Council,1111/1001,Children and Young People,CYP,Third Party Payments,EFA,01/09/2023,06-17619,"9,333.34",Acorn Care & Education Ltd
Nottinghamshire County Council,1111/1001,Children and Young People,CYP,Third Party Payments,EFA,01/09/2023,06-17620,"9,333.34",Acorn Care & Education Ltd
Nottinghamshire County Council,1111/1001,Children and Young People,CYP,Third Party Payments,EFA,01/09/2023,06-17621,"9,333.34",Acorn Care & Education Ltd
Nottinghamshire County Council,1111/1001,Children and Young People,CYP,Third Party Payments,EFA,01/09/2023,06-17622,"9,333.34",Acorn Care & Education Ltd
Nottinghamshire County Council,1111/1001,Children and Young People,CYP,Third Party Payments,EFA,01/09/2023,06-17623,"9,333.34",Acorn Care & Education Ltd
Nottinghamshire County Council,1111/1001,Children and Young People,CYP,Third Party Payments,EFA,01/09/2023,06-17624,"9,333.34",Acorn Care & Education Ltd
Nottinghamshire County Council,1111/1001,Children and Young People,CYP,Third Party Payments,EFA,01/09/2023,06-17625,"9,333.34",Acorn Care & Education Ltd
Nottinghamshire County Council,1111/1001,Children and Young People,CYP,Third Party Payments,EFA,01/09/2023,06-17627,"9,333.34",Acorn Care & Education Ltd
Nottinghamshire County Council,1111/1001,Children and Young People,CYP,Third Party Payments,EFA,01/09/2023,06-17628,"9,333.34",Acorn Care & Education Ltd
Nottinghamshire County Council,1111/1001,Children and Young People,CYP,Third Party Payments,EFA,01/09/2023,06-17632,"9,333.34",Acorn Care & Education Ltd
Nottinghamshire County Council,1111/1001,Children and Young People,CYP,Third Party Payments,EFA,01/09/2023,06-17633,"9,333.34",Acorn Care & Education Ltd
Nottinghamshire County Council,1111/1001,Children and Young People,CYP,Third Party Payments,EFA,01/09/2023,06-17634,"9,333.34",Acorn Care & Education Ltd
Nottinghamshire County Council,1111/1001,Children and Young People,CYP,Third Party Payments,EFA,01/09/2023,06-17635,"9,333.34",Acorn Care & Education Ltd
Nottinghamshire County Council,1111/1001,Children and Young People,CYP,Third Party Payments,EFA,01/09/2023,06-17641,"9,333.34",Acorn Care & Education Ltd
Nottinghamshire County Council,1111/1001,Children and Young People,CYP,Third Party Payments,EFA,01/09/2023,06-17645,"19,006.66",Acorn Care & Education Ltd
Nottinghamshire County Council,1111/1001,Children and Young People,CYP,Third Party Payments,EFA,01/09/2023,06-17646,"19,006.66",Acorn Care & Education Ltd
Nottinghamshire County Council,1111/1001,Children and Young People,CYP,Third Party Payments,EFA,04/09/2023,06-17581,"18,008.51",Wings School (Kedleston (Wings Educ
Nottinghamshire County Council,1111/1001,Children and Young People,CYP,Third Party Payments,EFA,04/09/2023,06-17583,"25,400.00",New College Worcester
Nottinghamshire County Council,1111/1001,Children and Young People,CYP,Third Party Payments,EFA,04/09/2023,06-17584,"23,700.00",New College Worcester
Nottinghamshire County Council,1111/1001,Children and Young People,CYP,Third Party Payments,EFA,04/09/2023,06-17594,"58,499.67",Woodside Lodge Learning Centre
Nottinghamshire County Council,1111/1001,Children and Young People,CYP,Third Party Payments,EFA,04/09/2023,06-17669,"3,280.00",Childrens Sensory Therapy Ltd
Nottinghamshire County Council,1111/1001,Children and Young People,CYP,Third Party Payments,EFA,04/09/2023,06-17673,881.5,Childrens Sensory Therapy Ltd
Nottinghamshire County Council,1111/1001,Children and Young People,CYP,Third Party Payments,EFA,04/09/2023,06-17676,"19,006.66",Acorn Care & Education Ltd
Nottinghamshire County Council,1111/1001,Children and Young People,CYP,Third Party Payments,EFA,04/09/2023,06-17677,"19,006.66",Acorn Care & Education Ltd
Nottinghamshire County Council,1111/1001,Children and Young People,CYP,Third Party Payments,EFA,04/09/2023,06-17678,767.03,Childrens Sensory Therapy Ltd
Nottinghamshire County Council,1111/1001,Children and Young People,CYP,Third Party Payments,EFA,04/09/2023,06-17702,"52,815.74",Longboat Special Education Ltd
Nottinghamshire County Council,1111/1001,Children and Young People,CYP,Third Party Payments,EFA,05/09/2023,06-17724,868,Talking 2 Ltd
Nottinghamshire County Council,1111/1001,Children and Young People,CYP,Third Party Payments,EFA,05/09/2023,06-17737,"1,000.00",[Redacted]
Nottinghamshire County Council,1111/1001,Children and Young People,CYP,Third Party Payments,EFA,05/09/2023,06-17766,"1,386.70",May's Hub Ltd T/A My Therapy Servic
Nottinghamshire County Council,1111/1001,Children and Young People,CYP,Third Party Payments,EFA,05/09/2023,06-17781,"65,268.40",A Place To Call Our Own Ltd
Nottinghamshire County Council,1111/1001,Children and Young People,CYP,Third Party Payments,EFA,06/09/2023,06-11037,500,[Redacted]
Nottinghamshire County Council,1111/1001,Children and Young People,CYP,Third Party Payments,EFA,06/09/2023,06-17767,"1,245.69",Ruskin Mill Trust
Nottinghamshire County Council,1111/1001,Children and Young People,CYP,Third Party Payments,EFA,06/09/2023,06-17788,"9,487.01",Royal School For The Deaf
Nottinghamshire County Council,1111/1001,Children and Young People,CYP,Third Party Payments,EFA,06/09/2023,06-17793,"13,971.45",Speech and Language UK Services Ltd
Nottinghamshire County Council,1111/1001,Children and Young People,CYP,Third Party Payments,EFA,06/09/2023,06-17794,"13,971.45",Speech and Language UK Services Ltd
Nottinghamshire County Council,1111/1001,Children and Young People,CYP,Third Party Payments,EFA,06/09/2023,06-17795,"13,971.45",Speech and Language UK Services Ltd
Nottinghamshire County Council,1111/1001,Children and Young People,CYP,Third Party Payments,EFA,06/09/2023,06-17798,"19,006.66",Acorn Care & Education Ltd
Nottinghamshire County Council,1111/1001,Children and Young People,CYP,Third Party Payments,EFA,06/09/2023,06-17799,"19,006.66",Acorn Care & Education Ltd
Nottinghamshire County Council,1111/1001,Children and Young People,CYP,Third Party Payments,EFA,06/09/2023,06-17801,"13,153.25",Speech and Language UK Services Ltd
Nottinghamshire County Council,1111/1001,Children and Young People,CYP,Third Party Payments,EFA,06/09/2023,06-17820,"19,006.66",Acorn Care & Education Ltd
Nottinghamshire County Council,1111/1001,Children and Young People,CYP,Third Party Payments,EFA,06/09/2023,06-17821,"19,006.66",Acorn Care & Education Ltd
Nottinghamshire County Council,1111/1001,Children and Young People,CYP,Third Party Payments,EFA,07/09/2023,06-17853,"2,497.60",Fresh Start in Education Ltd
Nottinghamshire County Council,1111/1001,Children and Young People,CYP,Third Party Payments,EFA,07/09/2023,06-17854,"2,497.60",Fresh Start in Education Ltd
Nottinghamshire County Council,1111/1001,Children and Young People,CYP,Third Party Payments,EFA,08/09/2023,06-17726,859.17,Childrens Therapy Solutions Ltd
Nottinghamshire County Council,1111/1001,Children and Young People,CYP,Third Party Payments,EFA,08/09/2023,06-17728,858.89,Childrens Therapy Solutions Ltd
Nottinghamshire County Council,1111/1001,Children and Young People,CYP,Third Party Payments,EFA,08/09/2023,06-17729,"1,634.77",Childrens Therapy Solutions Ltd
Nottinghamshire County Council,1111/1001,Children and Young People,CYP,Third Party Payments,EFA,08/09/2023,06-17887,"13,971.45",Speech and Language UK Services Ltd
Nottinghamshire County Council,1111/1001,Children and Young People,CYP,Third Party Payments,EFA,08/09/2023,06-17894,"18,907.20",Demeter House Ltd
Nottinghamshire County Council,1111/1001,Children and Young People,CYP,Third Party Payments,EFA,11/09/2023,06-11689,"3,531.54",[Redacted]
Nottinghamshire County Council,1111/1001,Children and Young People,CYP,Third Party Payments,EFA,11/09/2023,06-17956,"102,643.25",First Class Tailored Solutions Ltd
Nottinghamshire County Council,1111/1001,Children and Young People,CYP,Third Party Payments,EFA,11/09/2023,06-17957,520,Targeted Provision Ltd
Nottinghamshire County Council,1111/1001,Children and Young People,CYP,Third Party Payments,EFA,13/09/2023,06-17818,"13,860.00",A Nature to Nurture
Nottinghamshire County Council,1111/1001,Children and Young People,CYP,Third Party Payments,EFA,14/09/2023,06-12859,700,Highfields College
Nottinghamshire County Council,1111/1001,Children and Young People,CYP,Third Party Payments,EFA,14/09/2023,06-18053,"8,425.75",Crisp Vocational Provision Ltd
Nottinghamshire County Council,1111/1001,Children and Young People,CYP,Third Party Payments,EFA,15/09/2023,06-18083,"2,441.34",Teaching Personnel Ltd
Nottinghamshire County Council,1111/1001,Children and Young People,CYP,Third Party Payments,EFA,15/09/2023,06-18085,"68,254.30",First Class Tailored Solutions Ltd
Nottinghamshire County Council,1111/1001,Children and Young People,CYP,Third Party Payments,EFA,18/09/2023,06-18141,"3,403.61",Teaching Personnel Ltd
Nottinghamshire County Council,1111/1001,Children and Young People,CYP,Third Party Payments,EFA,19/09/2023,06-13433,"5,300.00",[Redacted]
Nottinghamshire County Council,1111/1001,Children and Young People,CYP,Third Party Payments,EFA,20/09/2023,06-18102,"19,006.66",Acorn Care & Education Ltd
Nottinghamshire County Council,1111/1001,Children and Young People,CYP,Third Party Payments,EFA,20/09/2023,06-18118,"19,006.66",Acorn Care & Education Ltd
Nottinghamshire County Council,1111/1001,Children and Young People,CYP,Third Party Payments,EFA,20/09/2023,06-18119,"19,006.66",Acorn Care & Education Ltd
Nottinghamshire County Council,1111/1001,Children and Young People,CYP,Third Party Payments,EFA,20/09/2023,06-18168,"15,678.00",I-Pegasus CIC
Nottinghamshire County Council,1111/1001,Children and Young People,CYP,Third Party Payments,EFA,20/09/2023,06-18170,516.36,Teaching Personnel Ltd
Nottinghamshire County Council,1111/1001,Children and Young People,CYP,Third Party Payments,EFA,20/09/2023,06-18171,516.36,Teaching Personnel Ltd
Nottinghamshire County Council,1111/1001,Children and Young People,CYP,Third Party Payments,EFA,20/09/2023,06-18174,"19,006.66",Acorn Care & Education Ltd
Nottinghamshire County Council,1111/1001,Children and Young People,CYP,Third Party Payments,EFA,20/09/2023,06-18175,"19,006.66",Acorn Care & Education Ltd
Nottinghamshire County Council,1111/1001,Children and Young People,CYP,Third Party Payments,EFA,20/09/2023,06-18176,"19,006.66",Acorn Care & Education Ltd
Nottinghamshire County Council,1111/1001,Children and Young People,CYP,Third Party Payments,EFA,20/09/2023,06-18190,"14,560.00",Rainbow Horses Learning Centre
Nottinghamshire County Council,1111/1001,Children and Young People,CYP,Third Party Payments,EFA,20/09/2023,06-18192,"5,625.00",Equip Education & Support Services
Nottinghamshire County Council,1111/1001,Children and Young People,CYP,Third Party Payments,EFA,21/09/2023,06-18218,"19,006.66",Acorn Care & Education Ltd
Nottinghamshire County Council,1111/1001,Children and Young People,CYP,Third Party Payments,EFA,21/09/2023,06-18229,"29,168.88",Aspris Children's Services Ltd
Nottinghamshire County Council,1111/1001,Children and Young People,CYP,Third Party Payments,EFA,22/09/2023,06-13707,"1,685.29",Jamie Smith Trust
Nottinghamshire County Council,1111/1001,Children and Young People,CYP,Third Party Payments,EFA,22/09/2023,06-18237,"24,228.90",First Class Tailored Solutions Ltd
Nottinghamshire County Council,1111/1001,Children and Young People,CYP,Third Party Payments,EFA,22/09/2023,06-18238,"14,672.50",First Class Tailored Solutions Ltd
Nottinghamshire County Council,1111/1001,Children and Young People,CYP,Third Party Payments,EFA,22/09/2023,06-18239,"15,125.21",Speech and Language UK Services Ltd
Nottinghamshire County Council,1111/1001,Children and Young People,CYP,Third Party Payments,EFA,22/09/2023,06-18242,516.36,Teaching Personnel Ltd
Nottinghamshire County Council,1111/1001,Children and Young People,CYP,Third Party Payments,EFA,22/09/2023,06-18243,516.36,Teaching Personnel Ltd
Nottinghamshire County Council,1111/1001,Children and Young People,CYP,Third Party Payments,EFA,22/09/2023,06-18263,"11,212.50",Pollyteach Ltd
Nottinghamshire County Council,1111/1001,Children and Young People,CYP,Third Party Payments,EFA,25/09/2023,06-17674,"100,936.45",Hardwick House School Ltd
Nottinghamshire County Council,1111/1001,Children and Young People,CYP,Third Party Payments,EFA,25/09/2023,06-17675,"100,936.45",Hardwick House School Ltd
Nottinghamshire County Council,1111/1001,Children and Young People,CYP,Third Party Payments,EFA,25/09/2023,06-17727,932.52,Childrens Therapy Solutions Ltd
Nottinghamshire County Council,1111/1001,Children and Young People,CYP,Third Party Payments,EFA,25/09/2023,06-18193,"168,905.45",Real Education Ltd
Nottinghamshire County Council,1111/1001,Children and Young People,CYP,Third Party Payments,EFA,25/09/2023,06-18194,"3,157.67",Real Education Ltd
Nottinghamshire County Council,1111/1001,Children and Young People,CYP,Third Party Payments,EFA,25/09/2023,06-18196,"3,157.67",Real Education Ltd
Nottinghamshire County Council,1111/1001,Children and Young People,CYP,Third Party Payments,EFA,25/09/2023,06-18197,"168,905.45",Real Education Ltd
Nottinghamshire County Council,1111/1001,Children and Young People,CYP,Third Party Payments,EFA,25/09/2023,06-18198,"23,128.18",Real Education Ltd
Nottinghamshire County Council,1111/1001,Children and Young People,CYP,Third Party Payments,EFA,25/09/2023,06-18199,"23,128.18",Real Education Ltd
Nottinghamshire County Council,1111/1001,Children and Young People,CYP,Third Party Payments,EFA,25/09/2023,06-18230,"20,749.42",Integrated Provision-Witherslack Gr
Nottinghamshire County Council,1111/1001,Children and Young People,CYP,Third Party Payments,EFA,26/09/2023,06-18144,708.5,Let's Talk Speech Therapy
Nottinghamshire County Council,1111/1001,Children and Young People,CYP,Third Party Payments,EFA,26/09/2023,06-18248,"36,518.33",High Grange School
Nottinghamshire County Council,1111/1001,Children and Young People,CYP,Third Party Payments,EFA,26/09/2023,06-18251,"6,374.34",Childrens Sensory Therapy Ltd
Nottinghamshire County Council,1111/1001,Children and Young People,CYP,Third Party Payments,EFA,26/09/2023,06-18290,"17,887.33",Ruskin Mill Trust
Nottinghamshire County Council,1111/1001,Children and Young People,CYP,Third Party Payments,EFA,26/09/2023,06-18294,"7,827.50",Buxton Training Enterprises Ltd
Nottinghamshire County Council,1111/1001,Children and Young People,CYP,Third Party Payments,EFA,27/09/2023,06-17880,"2,880.00",R. Brackley Tutorial
Nottinghamshire County Council,1111/1001,Children and Young People,CYP,Third Party Payments,EFA,27/09/2023,06-18246,"36,518.33",High Grange School
Nottinghamshire County Council,1111/1001,Children and Young People,CYP,Third Party Payments,EFA,27/09/2023,06-18247,"36,518.33",High Grange School
Nottinghamshire County Council,1111/1001,Children and Young People,CYP,Third Party Payments,EFA,28/09/2023,06-16617,503.3,Jamie Smith Trust
Nottinghamshire County Council,1111/1001,Children and Young People,CYP,Third Party Payments,EFA,29/09/2023,06-17827,840,Thalamus Training & Assessment Ltd
Nottinghamshire County Council,1111/1001,Children and Young People,CYP,Third Party Payments,EGA,01/09/2023,06-17580,"25,000.00",Childrens Society
Nottinghamshire County Council,1111/1001,Children and Young People,CYP,Third Party Payments,EGA,01/09/2023,06-17639,"111,813.69",Pontville School (Witherslack Group
Nottinghamshire County Council,1111/1001,Children and Young People,CYP,Third Party Payments,EGA,01/09/2023,06-17640,"111,813.69",Pontville School (Witherslack Group
Nottinghamshire County Council,1111/1001,Children and Young People,CYP,Third Party Payments,EGA,01/09/2023,06-17650,"4,057.24",Fusion Fostering Ltd
Nottinghamshire County Council,1111/1001,Children and Young People,CYP,Third Party Payments,EGA,01/09/2023,06-17651,"4,057.24",Fusion Fostering Ltd
Nottinghamshire County Council,1111/1001,Children and Young People,CYP,Third Party Payments,EGA,01/09/2023,06-17652,"4,057.24",Fusion Fostering Ltd
Nottinghamshire County Council,1111/1001,Children and Young People,CYP,Third Party Payments,EGA,04/09/2023,06-17589,"23,571.42",Bright Path Care Ltd
Nottinghamshire County Council,1111/1001,Children and Young People,CYP,Third Party Payments,EGA,04/09/2023,06-17591,"1,316.40",DKM Healthcare Ltd
Nottinghamshire County Council,1111/1001,Children and Young People,CYP,Third Party Payments,EGA,04/09/2023,06-17592,"10,285.71",TJY Care Ltd
Nottinghamshire County Council,1111/1001,Children and Young People,CYP,Third Party Payments,EGA,04/09/2023,06-17593,"26,571.43",TJY Care Ltd
Nottinghamshire County Council,1111/1001,Children and Young People,CYP,Third Party Payments,EGA,04/09/2023,06-17603,"4,324.72",Thornbury Community Services
Nottinghamshire County Council,1111/1001,Children and Young People,CYP,Third Party Payments,EGA,04/09/2023,06-17680,"2,525.00",Dudley Lodge
Nottinghamshire County Council,1111/1001,Children and Young People,CYP,Third Party Payments,EGA,04/09/2023,06-17681,"15,150.00",Dudley Lodge
Nottinghamshire County Council,1111/1001,Children and Young People,CYP,Third Party Payments,EGA,04/09/2023,06-17682,"3,840.00",Dudley Lodge
Nottinghamshire County Council,1111/1001,Children and Young People,CYP,Third Party Payments,EGA,04/09/2023,06-17683,"3,214.20",True Fostering Ltd
Nottinghamshire County Council,1111/1001,Children and Young People,CYP,Third Party Payments,EGA,04/09/2023,06-17684,"25,829.47",Keys PCE Ltd
Nottinghamshire County Council,1111/1001,Children and Young People,CYP,Third Party Payments,EGA,04/09/2023,06-17685,"25,829.47",Keys PCE Ltd
Nottinghamshire County Council,1111/1001,Children and Young People,CYP,Third Party Payments,EGA,04/09/2023,06-17686,"25,829.47",Keys PCE Ltd
Nottinghamshire County Council,1111/1001,Children and Young People,CYP,Third Party Payments,EGA,04/09/2023,06-17695,"9,998.10",Jigsaw Therapeutic Care Ltd
Nottinghamshire County Council,1111/1001,Children and Young People,CYP,Third Party Payments,EGA,05/09/2023,06-10942,919.04,Alphabet House Day Nurseries Ltd-Lo
Nottinghamshire County Council,1111/1001,Children and Young People,CYP,Third Party Payments,EGA,05/09/2023,06-10943,970.1,Attenborough Church Pre-School
Nottinghamshire County Council,1111/1001,Children and Young People,CYP,Third Party Payments,EGA,05/09/2023,06-10944,919.04,Beacon Hill Day Nursery
Nottinghamshire County Council,1111/1001,Children and Young People,CYP,Third Party Payments,EGA,05/09/2023,06-10945,"3,012.42",Busy Bees (Daybrook)
Nottinghamshire County Council,1111/1001,Children and Young People,CYP,Third Party Payments,EGA,05/09/2023,06-10946,765.87,Buttercross Pre School
Nottinghamshire County Council,1111/1001,Children and Young People,CYP,Third Party Payments,EGA,05/09/2023,06-10947,816.93,Carnarvon Pre-School
Nottinghamshire County Council,1111/1001,Children and Young People,CYP,Third Party Payments,EGA,05/09/2023,06-10948,561.64,Cedar House Day Nursery
Nottinghamshire County Council,1111/1001,Children and Young People,CYP,Third Party Payments,EGA,05/09/2023,06-10949,700.22,Cherubs Day Nursery
Nottinghamshire County Council,1111/1001,Children and Young People,CYP,Third Party Payments,EGA,05/09/2023,06-10950,919.04,Child First (Welbeck) Nursery
Nottinghamshire County Council,1111/1001,Children and Young People,CYP,Third Party Payments,EGA,05/09/2023,06-10951,"1,684.92",Children 1st @ Breedon House (Plumt
Nottinghamshire County Council,1111/1001,Children and Young People,CYP,Third Party Payments,EGA,05/09/2023,06-10952,612.7,Collingham & District Pre-School
Nottinghamshire County Council,1111/1001,Children and Young People,CYP,Third Party Payments,EGA,05/09/2023,06-10953,919.04,CB Coteswood House School
Nottinghamshire County Council,1111/1001,Children and Young People,CYP,Third Party Payments,EGA,05/09/2023,06-10954,838.81,Country Kids Day Nursery (Farndon)
Nottinghamshire County Council,1111/1001,Children and Young People,CYP,Third Party Payments,EGA,05/09/2023,06-10955,510.58,Edwalton Day Nursery
Nottinghamshire County Council,1111/1001,Children and Young People,CYP,Third Party Payments,EGA,05/09/2023,06-10956,919.04,Farnsfield Pre-School
Nottinghamshire County Council,1111/1001,Children and Young People,CYP,Third Party Payments,EGA,05/09/2023,06-10957,"1,684.91",Fernwood Day Nursery Ltd
Nottinghamshire County Council,1111/1001,Children and Young People,CYP,Third Party Payments,EGA,05/09/2023,06-10958,"1,072.22",Fledglings Pre School
Nottinghamshire County Council,1111/1001,Children and Young People,CYP,Third Party Payments,EGA,05/09/2023,06-10959,612.7,Gotham Pre-School Playgroup
Nottinghamshire County Council,1111/1001,Children and Young People,CYP,Third Party Payments,EGA,05/09/2023,06-10960,919.05,Happy Days Childcare Services Ltd
Nottinghamshire County Council,1111/1001,Children and Young People,CYP,Third Party Payments,EGA,05/09/2023,06-10961,"3,369.82",Hollies Day Nurseries Ltd
Nottinghamshire County Council,1111/1001,Children and Young People,CYP,Third Party Payments,EGA,05/09/2023,06-10962,919.04,Hollies Day Nursery Ltd (Mapperley)
Nottinghamshire County Council,1111/1001,Children and Young People,CYP,Third Party Payments,EGA,05/09/2023,06-10963,"1,531.74",Holly House Nursery (Doncaster) Ltd
Nottinghamshire County Council,1111/1001,Children and Young People,CYP,Third Party Payments,EGA,05/09/2023,06-10964,919.04,Jelly Beans Day Nursery Ltd
Nottinghamshire County Council,1111/1001,Children and Young People,CYP,Third Party Payments,EGA,05/09/2023,06-10965,919.04,Jumacare Ltd T/A Church House Nurse
Nottinghamshire County Council,1111/1001,Children and Young People,CYP,Third Party Payments,EGA,05/09/2023,06-10966,"1,940.20",Killisick Pre-School
Nottinghamshire County Council,1111/1001,Children and Young People,CYP,Third Party Payments,EGA,05/09/2023,06-10967,765.87,Lime Trees Day Nursery Ltd
Nottinghamshire County Council,1111/1001,Children and Young People,CYP,Third Party Payments,EGA,05/09/2023,06-10968,"1,378.57",Little Lambs Day Nursery (Kirkby in
Nottinghamshire County Council,1111/1001,Children and Young People,CYP,Third Party Payments,EGA,05/09/2023,06-10969,612.7,Longdale Nursery School (Cherubs)
Nottinghamshire County Council,1111/1001,Children and Young People,CYP,Third Party Payments,EGA,05/09/2023,06-10970,765.87,CB Pre-School Learning Alliance (HO
Nottinghamshire County Council,1111/1001,Children and Young People,CYP,Third Party Payments,EGA,05/09/2023,06-10971,612.7,Noahs Ark Playgroup
Nottinghamshire County Council,1111/1001,Children and Young People,CYP,Third Party Payments,EGA,05/09/2023,06-10972,919.04,Oceans Day Nursery
Nottinghamshire County Council,1111/1001,Children and Young People,CYP,Third Party Payments,EGA,05/09/2023,06-10973,"5,514.26",Papermoon Day Nursery
Nottinghamshire County Council,1111/1001,Children and Young People,CYP,Third Party Payments,EGA,05/09/2023,06-10974,919.05,Phoenix Park Nursery Ltd
Nottinghamshire County Council,1111/1001,Children and Young People,CYP,Third Party Payments,EGA,05/09/2023,06-10975,"1,225.40",Phoenix Park Nursery (Giltbrook) Lt
Nottinghamshire County Council,1111/1001,Children and Young People,CYP,Third Party Payments,EGA,05/09/2023,06-10976,"1,378.56",Portland Place Pre-School
Nottinghamshire County Council,1111/1001,Children and Young People,CYP,Third Party Payments,EGA,05/09/2023,06-10977,714.81,Puddleducks Pre-School
Nottinghamshire County Council,1111/1001,Children and Young People,CYP,Third Party Payments,EGA,05/09/2023,06-10978,867.99,Radcliffe On Trent Pre School Playg
Nottinghamshire County Council,1111/1001,Children and Young People,CYP,Third Party Payments,EGA,05/09/2023,06-10979,561.64,Rocking Horse Nursery (Hucknall)
Nottinghamshire County Council,1111/1001,Children and Young People,CYP,Third Party Payments,EGA,05/09/2023,06-10980,919.04,Ryan House Day Nursery
Nottinghamshire County Council,1111/1001,Children and Young People,CYP,Third Party Payments,EGA,05/09/2023,06-10981,919.05,Safe Haven Day Nursery
Nottinghamshire County Council,1111/1001,Children and Young People,CYP,Third Party Payments,EGA,05/09/2023,06-10982,"1,225.39",Willow Childcare & Training Ltd
Nottinghamshire County Council,1111/1001,Children and Young People,CYP,Third Party Payments,EGA,05/09/2023,06-10983,919.04,Serendipity's Day Nursery
Nottinghamshire County Council,1111/1001,Children and Young People,CYP,Third Party Payments,EGA,05/09/2023,06-10984,919.04,Shaping Futures Day Nursery
Nottinghamshire County Council,1111/1001,Children and Young People,CYP,Third Party Payments,EGA,05/09/2023,06-10985,919.04,Playroom Nursery
Nottinghamshire County Council,1111/1001,Children and Young People,CYP,Third Party Payments,EGA,05/09/2023,06-10986,919.04,Wolds Childcare Ltd
Nottinghamshire County Council,1111/1001,Children and Young People,CYP,Third Party Payments,EGA,05/09/2023,06-10987,"1,838.10",Zoe's Childcare Ltd
Nottinghamshire County Council,1111/1001,Children and Young People,CYP,Third Party Payments,EGA,05/09/2023,06-10988,634.5,Bingham Day Nursery & Pre School
Nottinghamshire County Council,1111/1001,Children and Young People,CYP,Third Party Payments,EGA,05/09/2023,06-10989,707.62,CB Coteswood House School
Nottinghamshire County Council,1111/1001,Children and Young People,CYP,Third Party Payments,EGA,05/09/2023,06-17745,"9,576.65",Integrated Provision-Witherslack Gr
Nottinghamshire County Council,1111/1001,Children and Young People,CYP,Third Party Payments,EGA,05/09/2023,06-17756,"4,329.46",Anchor Foster Care Services Ltd
Nottinghamshire County Council,1111/1001,Children and Young People,CYP,Third Party Payments,EGA,05/09/2023,06-17757,"4,329.46",Anchor Foster Care Services Ltd
Nottinghamshire County Council,1111/1001,Children and Young People,CYP,Third Party Payments,EGA,05/09/2023,06-17764,"4,329.46",Anchor Foster Care Services Ltd
Nottinghamshire County Council,1111/1001,Children and Young People,CYP,Third Party Payments,EGA,05/09/2023,06-17779,"9,443.30",Forward Thinking Movement & Dance C
Nottinghamshire County Council,1111/1001,Children and Young People,CYP,Third Party Payments,EGA,06/09/2023,06-11036,"6,000.00",Rainbows Day Nursery
Nottinghamshire County Council,1111/1001,Children and Young People,CYP,Third Party Payments,EGA,06/09/2023,06-17743,"31,935.00",Truly Care Services Ltd
Nottinghamshire County Council,1111/1001,Children and Young People,CYP,Third Party Payments,EGA,06/09/2023,06-17750,"7,800.00",Truly Care Services Ltd
Nottinghamshire County Council,1111/1001,Children and Young People,CYP,Third Party Payments,EGA,06/09/2023,06-17751,"27,900.00",Willow Care Group Ltd
Nottinghamshire County Council,1111/1001,Children and Young People,CYP,Third Party Payments,EGA,06/09/2023,06-17782,"25,947.30",Footsteps To Futures
Nottinghamshire County Council,1111/1001,Children and Young People,CYP,Third Party Payments,EGA,06/09/2023,06-17786,"32,195.67",Nevaeh Homes Ltd
Nottinghamshire County Council,1111/1001,Children and Young People,CYP,Third Party Payments,EGA,06/09/2023,06-17787,"274,061.55",Abbey Green Therapeutic Childrens S
Nottinghamshire County Council,1111/1001,Children and Young People,CYP,Third Party Payments,EGA,06/09/2023,06-17790,"13,426.70",Jani Homes Nottingham Ltd (Placemen
Nottinghamshire County Council,1111/1001,Children and Young People,CYP,Third Party Payments,EGA,06/09/2023,06-17792,"78,809.19",Metropolitan Care Solution Ltd (A&M
Nottinghamshire County Council,1111/1001,Children and Young People,CYP,Third Party Payments,EGA,06/09/2023,06-17796,"2,930.00",Safe Haven Accommodation Ltd
Nottinghamshire County Council,1111/1001,Children and Young People,CYP,Third Party Payments,EGA,06/09/2023,06-17802,"13,168.80",Springs of Joy Care Solutions (SOJ)
Nottinghamshire County Council,1111/1001,Children and Young People,CYP,Third Party Payments,EGA,06/09/2023,06-17828,"18,308.18",Star Fostering Ltd
Nottinghamshire County Council,1111/1001,Children and Young People,CYP,Third Party Payments,EGA,06/09/2023,06-17829,"18,308.18",Star Fostering Ltd
Nottinghamshire County Council,1111/1001,Children and Young People,CYP,Third Party Payments,EGA,06/09/2023,06-17831,"18,308.18",Star Fostering Ltd
Nottinghamshire County Council,1111/1001,Children and Young People,CYP,Third Party Payments,EGA,06/09/2023,06-17832,"18,308.18",Star Fostering Ltd
Nottinghamshire County Council,1111/1001,Children and Young People,CYP,Third Party Payments,EGA,07/09/2023,06-11063,"6,325.20",Beeston Nursery
Nottinghamshire County Council,1111/1001,Children and Young People,CYP,Third Party Payments,EGA,07/09/2023,06-11064,"18,186.90",Little Nippers Pre-School
Nottinghamshire County Council,1111/1001,Children and Young People,CYP,Third Party Payments,EGA,07/09/2023,06-17720,"24,715.37",Bramley Care Ltd T/A Apple Orchard
Nottinghamshire County Council,1111/1001,Children and Young People,CYP,Third Party Payments,EGA,07/09/2023,06-17774,"21,788.58",Cornerstone Childrens Home Ltd
Nottinghamshire County Council,1111/1001,Children and Young People,CYP,Third Party Payments,EGA,07/09/2023,06-17775,"21,788.58",Cornerstone Childrens Home Ltd
Nottinghamshire County Council,1111/1001,Children and Young People,CYP,Third Party Payments,EGA,07/09/2023,06-17823,"16,714.20",Acorn Homes UK Ltd
Nottinghamshire County Council,1111/1001,Children and Young People,CYP,Third Party Payments,EGA,07/09/2023,06-17841,"104,062.32",Metropolitan Care Solution Ltd (A&M
Nottinghamshire County Council,1111/1001,Children and Young People,CYP,Third Party Payments,EGA,08/09/2023,06-11315,"2,550.00",Norman Galloway Ltd
Nottinghamshire County Council,1111/1001,Children and Young People,CYP,Third Party Payments,EGA,08/09/2023,06-17835,"47,792.14",Truly Care Services Ltd
Nottinghamshire County Council,1111/1001,Children and Young People,CYP,Third Party Payments,EGA,08/09/2023,06-17869,"18,406.87",East Midlands Care Matters (Head Of
Nottinghamshire County Council,1111/1001,Children and Young People,CYP,Third Party Payments,EGA,08/09/2023,06-17883,"14,142.78",Educ8 (Your Chapter Ltd)
Nottinghamshire County Council,1111/1001,Children and Young People,CYP,Third Party Payments,EGA,08/09/2023,06-17884,"19,956.87",East Midlands Care Matters (Head Of
Nottinghamshire County Council,1111/1001,Children and Young People,CYP,Third Party Payments,EGA,08/09/2023,06-17888,"31,332.92",Sunrise Homes Services Ltd (Head Of
Nottinghamshire County Council,1111/1001,Children and Young People,CYP,Third Party Payments,EGA,08/09/2023,06-17890,931.5,Framework Housing Association(Head
Nottinghamshire County Council,1111/1001,Children and Young People,CYP,Third Party Payments,EGA,08/09/2023,06-17891,"3,199.50",Framework Housing Association(Head
Nottinghamshire County Council,1111/1001,Children and Young People,CYP,Third Party Payments,EGA,08/09/2023,06-17895,"4,673.65",Hope Fostering Services Ltd
Nottinghamshire County Council,1111/1001,Children and Young People,CYP,Third Party Payments,EGA,08/09/2023,06-17904,"17,999.94",Grace Care Ltd
Nottinghamshire County Council,1111/1001,Children and Young People,CYP,Third Party Payments,EGA,11/09/2023,06-17709,"170,604.98",Resolute Care Ltd
Nottinghamshire County Council,1111/1001,Children and Young People,CYP,Third Party Payments,EGA,11/09/2023,06-17717,"7,381.50",Greenfield House (Arnfield Care Ltd
Nottinghamshire County Council,1111/1001,Children and Young People,CYP,Third Party Payments,EGA,11/09/2023,06-17879,"23,142.90",Educ8 (Your Chapter Ltd)
Nottinghamshire County Council,1111/1001,Children and Young People,CYP,Third Party Payments,EGA,11/09/2023,06-17911,"25,829.47",Keys PCE Ltd
Nottinghamshire County Council,1111/1001,Children and Young People,CYP,Third Party Payments,EGA,11/09/2023,06-17923,"36,916.11",Team Fostering
Nottinghamshire County Council,1111/1001,Children and Young People,CYP,Third Party Payments,EGA,11/09/2023,06-17926,"23,304.25",Fosterplus Ltd
Nottinghamshire County Council,1111/1001,Children and Young People,CYP,Third Party Payments,EGA,11/09/2023,06-17931,"3,214.20",True Fostering Ltd
Nottinghamshire County Council,1111/1001,Children and Young People,CYP,Third Party Payments,EGA,11/09/2023,06-17932,"13,426.70",Jani Homes Nottingham Ltd (Placemen
Nottinghamshire County Council,1111/1001,Children and Young People,CYP,Third Party Payments,EGA,11/09/2023,06-17946,"32,694.06",National Fostering Agency
Nottinghamshire County Council,1111/1001,Children and Young People,CYP,Third Party Payments,EGA,12/09/2023,06-17875,"25,714.29",TJY Care Ltd
Nottinghamshire County Council,1111/1001,Children and Young People,CYP,Third Party Payments,EGA,12/09/2023,06-17967,"2,930.00",Safe Haven Accommodation Ltd
Nottinghamshire County Council,1111/1001,Children and Young People,CYP,Third Party Payments,EGA,12/09/2023,06-17980,"3,542.85",Brightside Care Solutions Ltd
Nottinghamshire County Council,1111/1001,Children and Young People,CYP,Third Party Payments,EGA,13/09/2023,06-12843,"1,545.04",Kimie's Little Footprints
Nottinghamshire County Council,1111/1001,Children and Young People,CYP,Third Party Payments,EGA,13/09/2023,06-12844,"7,742.00",Lambley Day Nursery Ltd
Nottinghamshire County Council,1111/1001,Children and Young People,CYP,Third Party Payments,EGA,13/09/2023,06-12848,881,Allsorts Preschool Underwood
Nottinghamshire County Council,1111/1001,Children and Young People,CYP,Third Party Payments,EGA,13/09/2023,06-12849,881,Alphabet House Day Nursery (Chilwel
Nottinghamshire County Council,1111/1001,Children and Young People,CYP,Third Party Payments,EGA,13/09/2023,06-12850,881,Creative Hands Childcare Ltd
Nottinghamshire County Council,1111/1001,Children and Young People,CYP,Third Party Payments,EGA,13/09/2023,06-12851,881,Jumacare Ltd T/A Church House Nurse
Nottinghamshire County Council,1111/1001,Children and Young People,CYP,Third Party Payments,EGA,13/09/2023,06-12852,881,Little Acorns Shireoaks
Nottinghamshire County Council,1111/1001,Children and Young People,CYP,Third Party Payments,EGA,13/09/2023,06-12853,881,Little Beans Playgroup
Nottinghamshire County Council,1111/1001,Children and Young People,CYP,Third Party Payments,EGA,13/09/2023,06-12854,"1,762.00",Little Ducklings Preschool Ltd
Nottinghamshire County Council,1111/1001,Children and Young People,CYP,Third Party Payments,EGA,13/09/2023,06-12855,881,Little Millers Day Nursery
Nottinghamshire County Council,1111/1001,Children and Young People,CYP,Third Party Payments,EGA,13/09/2023,06-12856,881,Tinas Childminding
Nottinghamshire County Council,1111/1001,Children and Young People,CYP,Third Party Payments,EGA,13/09/2023,06-12857,881,Woodborough Village Pre School
Nottinghamshire County Council,1111/1001,Children and Young People,CYP,Third Party Payments,EGA,13/09/2023,06-17999,"3,799.20",Nexus Fostering Ltd
Nottinghamshire County Council,1111/1001,Children and Young People,CYP,Third Party Payments,EGA,13/09/2023,06-18000,"3,799.20",Nexus Fostering Ltd
Nottinghamshire County Council,1111/1001,Children and Young People,CYP,Third Party Payments,EGA,13/09/2023,06-18001,"32,195.67",Nevaeh Homes Ltd
Nottinghamshire County Council,1111/1001,Children and Young People,CYP,Third Party Payments,EGA,13/09/2023,06-18002,"3,763.40",Fostering Dimensions Ltd
Nottinghamshire County Council,1111/1001,Children and Young People,CYP,Third Party Payments,EGA,13/09/2023,06-18004,"37,190.66",Swiis Foster Care Ltd
Nottinghamshire County Council,1111/1001,Children and Young People,CYP,Third Party Payments,EGA,13/09/2023,06-18007,"3,944.14",Thornbury Community Services
Nottinghamshire County Council,1111/1001,Children and Young People,CYP,Third Party Payments,EGA,13/09/2023,06-18015,"3,944.14",Thornbury Community Services
Nottinghamshire County Council,1111/1001,Children and Young People,CYP,Third Party Payments,EGA,13/09/2023,06-18018,"3,763.40",Fostering Dimensions Ltd
Nottinghamshire County Council,1111/1001,Children and Young People,CYP,Third Party Payments,EGA,13/09/2023,06-18026,"3,763.40",Fostering Dimensions Ltd
Nottinghamshire County Council,1111/1001,Children and Young People,CYP,Third Party Payments,EGA,13/09/2023,06-18028,"3,763.40",Fostering Dimensions Ltd
Nottinghamshire County Council,1111/1001,Children and Young People,CYP,Third Party Payments,EGA,13/09/2023,06-18029,"3,763.40",Fostering Dimensions Ltd
Nottinghamshire County Council,1111/1001,Children and Young People,CYP,Third Party Payments,EGA,14/09/2023,06-18046,"3,935.46",National Fostering Agency
Nottinghamshire County Council,1111/1001,Children and Young People,CYP,Third Party Payments,EGA,14/09/2023,06-18050,"20,749.42",Integrated Provision-Witherslack Gr
Nottinghamshire County Council,1111/1001,Children and Young People,CYP,Third Party Payments,EGA,14/09/2023,06-18051,"20,749.42",Integrated Provision-Witherslack Gr
Nottinghamshire County Council,1111/1001,Children and Young People,CYP,Third Party Payments,EGA,14/09/2023,06-18052,"20,749.42",Integrated Provision-Witherslack Gr
Nottinghamshire County Council,1111/1001,Children and Young People,CYP,Third Party Payments,EGA,14/09/2023,06-18055,"20,749.42",Integrated Provision-Witherslack Gr
Nottinghamshire County Council,1111/1001,Children and Young People,CYP,Third Party Payments,EGA,15/09/2023,06-17800,"557,963.73",Homes 2 Inspire Ltd
Nottinghamshire County Council,1111/1001,Children and Young People,CYP,Third Party Payments,EGA,15/09/2023,06-17933,748.33,Homes 2 Inspire Ltd
Nottinghamshire County Council,1111/1001,Children and Young People,CYP,Third Party Payments,EGA,15/09/2023,06-17935,748.33,Homes 2 Inspire Ltd
Nottinghamshire County Council,1111/1001,Children and Young People,CYP,Third Party Payments,EGA,15/09/2023,06-17936,748.33,Homes 2 Inspire Ltd
Nottinghamshire County Council,1111/1001,Children and Young People,CYP,Third Party Payments,EGA,15/09/2023,06-17938,748.33,Homes 2 Inspire Ltd
Nottinghamshire County Council,1111/1001,Children and Young People,CYP,Third Party Payments,EGA,15/09/2023,06-17939,748.33,Homes 2 Inspire Ltd
Nottinghamshire County Council,1111/1001,Children and Young People,CYP,Third Party Payments,EGA,15/09/2023,06-17940,748.33,Homes 2 Inspire Ltd
Nottinghamshire County Council,1111/1001,Children and Young People,CYP,Third Party Payments,EGA,15/09/2023,06-17961,748.33,Homes 2 Inspire Ltd
Nottinghamshire County Council,1111/1001,Children and Young People,CYP,Third Party Payments,EGA,15/09/2023,06-17963,748.33,Homes 2 Inspire Ltd
Nottinghamshire County Council,1111/1001,Children and Young People,CYP,Third Party Payments,EGA,15/09/2023,06-18005,"1,296.00",True Fostering Ltd
Nottinghamshire County Council,1111/1001,Children and Young People,CYP,Third Party Payments,EGA,15/09/2023,06-18057,"1,300.00",Young People First Ltd
Nottinghamshire County Council,1111/1001,Children and Young People,CYP,Third Party Payments,EGA,15/09/2023,06-18063,"10,161.67",Primetime Care Services Ltd
Nottinghamshire County Council,1111/1001,Children and Young People,CYP,Third Party Payments,EGA,15/09/2023,06-18064,"10,161.67",Primetime Care Services Ltd
Nottinghamshire County Council,1111/1001,Children and Young People,CYP,Third Party Payments,EGA,18/09/2023,06-17694,"4,057.24",Fusion Fostering Ltd
Nottinghamshire County Council,1111/1001,Children and Young People,CYP,Third Party Payments,EGA,18/09/2023,06-17697,"4,057.24",Fusion Fostering Ltd
Nottinghamshire County Council,1111/1001,Children and Young People,CYP,Third Party Payments,EGA,18/09/2023,06-17867,"19,089.64",Framework Housing Association(Head
Nottinghamshire County Council,1111/1001,Children and Young People,CYP,Third Party Payments,EGA,18/09/2023,06-17886,"3,199.50",Framework Housing Association(Head
Nottinghamshire County Council,1111/1001,Children and Young People,CYP,Third Party Payments,EGA,18/09/2023,06-17920,"19,089.64",Framework Housing Association(Head
Nottinghamshire County Council,1111/1001,Children and Young People,CYP,Third Party Payments,EGA,18/09/2023,06-17921,931.5,Framework Housing Association(Head
Nottinghamshire County Council,1111/1001,Children and Young People,CYP,Third Party Payments,EGA,18/09/2023,06-17970,"8,800.00",Hallam24 Healthcare Ltd T/A Hallam2
Nottinghamshire County Council,1111/1001,Children and Young People,CYP,Third Party Payments,EGA,18/09/2023,06-17971,"8,800.00",Hallam24 Healthcare Ltd T/A Hallam2
Nottinghamshire County Council,1111/1001,Children and Young People,CYP,Third Party Payments,EGA,18/09/2023,06-17972,"8,800.00",Hallam24 Healthcare Ltd T/A Hallam2
Nottinghamshire County Council,1111/1001,Children and Young People,CYP,Third Party Payments,EGA,18/09/2023,06-17973,"6,600.00",Hallam24 Healthcare Ltd T/A Hallam2
Nottinghamshire County Council,1111/1001,Children and Young People,CYP,Third Party Payments,EGA,18/09/2023,06-18016,"3,944.14",Thornbury Community Services
Nottinghamshire County Council,1111/1001,Children and Young People,CYP,Third Party Payments,EGA,18/09/2023,06-18035,"25,500.00",Thrive Childcare Services Ltd
Nottinghamshire County Council,1111/1001,Children and Young People,CYP,Third Party Payments,EGA,18/09/2023,06-18125,"4,359.89",Nottingham Mencap
Nottinghamshire County Council,1111/1001,Children and Young People,CYP,Third Party Payments,EGA,18/09/2023,06-18126,"4,359.89",Nottingham Mencap
Nottinghamshire County Council,1111/1001,Children and Young People,CYP,Third Party Payments,EGA,18/09/2023,06-18127,"2,133.72",A Place To Call Our Own Ltd
Nottinghamshire County Council,1111/1001,Children and Young People,CYP,Third Party Payments,EGA,18/09/2023,06-18129,"22,543.20",Esland North Ltd
Nottinghamshire County Council,1111/1001,Children and Young People,CYP,Third Party Payments,EGA,18/09/2023,06-18130,"22,543.20",Esland North Ltd
Nottinghamshire County Council,1111/1001,Children and Young People,CYP,Third Party Payments,EGA,18/09/2023,06-18131,"22,543.20",Esland North Ltd
Nottinghamshire County Council,1111/1001,Children and Young People,CYP,Third Party Payments,EGA,18/09/2023,06-18132,"22,543.20",Esland North Ltd
Nottinghamshire County Council,1111/1001,Children and Young People,CYP,Third Party Payments,EGA,18/09/2023,06-18133,"22,543.20",Esland North Ltd
Nottinghamshire County Council,1111/1001,Children and Young People,CYP,Third Party Payments,EGA,18/09/2023,06-18136,"22,543.20",Esland North Ltd
Nottinghamshire County Council,1111/1001,Children and Young People,CYP,Third Party Payments,EGA,18/09/2023,06-18137,"22,543.20",Esland North Ltd
Nottinghamshire County Council,1111/1001,Children and Young People,CYP,Third Party Payments,EGA,18/09/2023,06-18140,"15,577.50",Hexagon Care Services Ltd
Nottinghamshire County Council,1111/1001,Children and Young People,CYP,Third Party Payments,EGA,19/09/2023,06-13352,"1,003.05",[Redacted]
Nottinghamshire County Council,1111/1001,Children and Young People,CYP,Third Party Payments,EGA,19/09/2023,06-18146,"1,456.00",JPAC Ltd (Head Office)
Nottinghamshire County Council,1111/1001,Children and Young People,CYP,Third Party Payments,EGA,19/09/2023,06-18147,"1,456.00",JPAC Ltd (Head Office)
Nottinghamshire County Council,1111/1001,Children and Young People,CYP,Third Party Payments,EGA,19/09/2023,06-18150,"19,757.23",Capstone Care Provider Ltd
Nottinghamshire County Council,1111/1001,Children and Young People,CYP,Third Party Payments,EGA,19/09/2023,06-18154,"4,845.92",Parallel Parents Ltd
Nottinghamshire County Council,1111/1001,Children and Young People,CYP,Third Party Payments,EGA,19/09/2023,06-18155,"4,845.92",Parallel Parents Ltd
Nottinghamshire County Council,1111/1001,Children and Young People,CYP,Third Party Payments,EGA,19/09/2023,06-18158,"4,845.92",Parallel Parents Ltd
Nottinghamshire County Council,1111/1001,Children and Young People,CYP,Third Party Payments,EGA,19/09/2023,06-18159,"4,845.92",Parallel Parents Ltd
Nottinghamshire County Council,1111/1001,Children and Young People,CYP,Third Party Payments,EGA,20/09/2023,06-13462,"5,351.92",Upton Crickets Day Nursery Ltd
Nottinghamshire County Council,1111/1001,Children and Young People,CYP,Third Party Payments,EGA,20/09/2023,06-17734,"19,220.00",Cherry Blossom House (Beeches UK Lt
Nottinghamshire County Council,1111/1001,Children and Young People,CYP,Third Party Payments,EGA,20/09/2023,06-17735,"19,220.00",Cherry Blossom House (Beeches UK Lt
Nottinghamshire County Council,1111/1001,Children and Young People,CYP,Third Party Payments,EGA,20/09/2023,06-17839,"32,520.00",Truly Care Services Ltd
Nottinghamshire County Council,1111/1001,Children and Young People,CYP,Third Party Payments,EGA,20/09/2023,06-18185,"1,111.65",Sams Place CIC
Nottinghamshire County Council,1111/1001,Children and Young People,CYP,Third Party Payments,EGA,20/09/2023,06-18186,"1,111.65",Sams Place CIC
Nottinghamshire County Council,1111/1001,Children and Young People,CYP,Third Party Payments,EGA,20/09/2023,06-18187,"9,443.30",Forward Thinking Movement & Dance C
Nottinghamshire County Council,1111/1001,Children and Young People,CYP,Third Party Payments,EGA,20/09/2023,06-18191,"2,133.72",A Place To Call Our Own Ltd
Nottinghamshire County Council,1111/1001,Children and Young People,CYP,Third Party Payments,EGA,21/09/2023,06-17662,"23,550.00",Prime Nurture Services Ltd
Nottinghamshire County Council,1111/1001,Children and Young People,CYP,Third Party Payments,EGA,21/09/2023,06-17663,"53,400.00",Prime Nurture Services Ltd
Nottinghamshire County Council,1111/1001,Children and Young People,CYP,Third Party Payments,EGA,21/09/2023,06-17698,"5,608.52",Affinity Fostering Service Ltd
Nottinghamshire County Council,1111/1001,Children and Young People,CYP,Third Party Payments,EGA,21/09/2023,06-17699,"5,608.52",Affinity Fostering Service Ltd
Nottinghamshire County Council,1111/1001,Children and Young People,CYP,Third Party Payments,EGA,21/09/2023,06-17700,"5,608.52",Affinity Fostering Service Ltd
Nottinghamshire County Council,1111/1001,Children and Young People,CYP,Third Party Payments,EGA,21/09/2023,06-17758,"3,200.00",Chrysalis Consortium Ltd
Nottinghamshire County Council,1111/1001,Children and Young People,CYP,Third Party Payments,EGA,21/09/2023,06-18207,"16,561.80",Horizon Care & Education Group Ltd
Nottinghamshire County Council,1111/1001,Children and Young People,CYP,Third Party Payments,EGA,21/09/2023,06-18208,"16,561.80",Horizon Care & Education Group Ltd
Nottinghamshire County Council,1111/1001,Children and Young People,CYP,Third Party Payments,EGA,21/09/2023,06-18209,"16,561.80",Horizon Care & Education Group Ltd
Nottinghamshire County Council,1111/1001,Children and Young People,CYP,Third Party Payments,EGA,21/09/2023,06-18211,"15,442.91",Acorn Care & Education Ltd
Nottinghamshire County Council,1111/1001,Children and Young People,CYP,Third Party Payments,EGA,21/09/2023,06-18213,"15,442.91",Acorn Care & Education Ltd
Nottinghamshire County Council,1111/1001,Children and Young People,CYP,Third Party Payments,EGA,21/09/2023,06-18215,"2,690.12",Anglia Fostering Agency Ltd
Nottinghamshire County Council,1111/1001,Children and Young People,CYP,Third Party Payments,EGA,21/09/2023,06-18221,"15,442.91",Acorn Care & Education Ltd
Nottinghamshire County Council,1111/1001,Children and Young People,CYP,Third Party Payments,EGA,21/09/2023,06-18222,"15,442.91",Acorn Care & Education Ltd
Nottinghamshire County Council,1111/1001,Children and Young People,CYP,Third Party Payments,EGA,21/09/2023,06-18223,"15,442.91",Acorn Care & Education Ltd
Nottinghamshire County Council,1111/1001,Children and Young People,CYP,Third Party Payments,EGA,21/09/2023,06-18224,"2,690.12",Anglia Fostering Agency Ltd
Nottinghamshire County Council,1111/1001,Children and Young People,CYP,Third Party Payments,EGA,21/09/2023,06-18226,"33,440.14",Crystal Care Solutions Ltd
Nottinghamshire County Council,1111/1001,Children and Young People,CYP,Third Party Payments,EGA,21/09/2023,06-18227,"31,982.92",By The Bridge Ltd
Nottinghamshire County Council,1111/1001,Children and Young People,CYP,Third Party Payments,EGA,21/09/2023,06-18228,"29,811.25",Capstone Foster Care Ltd
Nottinghamshire County Council,1111/1001,Children and Young People,CYP,Third Party Payments,EGA,22/09/2023,06-18232,"4,329.46",Anchor Foster Care Services Ltd
Nottinghamshire County Council,1111/1001,Children and Young People,CYP,Third Party Payments,EGA,22/09/2023,06-18233,"4,329.46",Anchor Foster Care Services Ltd
Nottinghamshire County Council,1111/1001,Children and Young People,CYP,Third Party Payments,EGA,25/09/2023,06-17661,"3,428.57",Bridging Gaps Ltd T/A Bridging Gaps
Nottinghamshire County Council,1111/1001,Children and Young People,CYP,Third Party Payments,EGA,25/09/2023,06-17664,"18,325.34",First 4 Care Ltd
Nottinghamshire County Council,1111/1001,Children and Young People,CYP,Third Party Payments,EGA,25/09/2023,06-17665,"6,975.00",First 4 Care Ltd
Nottinghamshire County Council,1111/1001,Children and Young People,CYP,Third Party Payments,EGA,25/09/2023,06-17703,"7,528.66",Park Foster Care Ltd
Nottinghamshire County Council,1111/1001,Children and Young People,CYP,Third Party Payments,EGA,25/09/2023,06-17704,"9,468.33",Park Foster Care Ltd
Nottinghamshire County Council,1111/1001,Children and Young People,CYP,Third Party Payments,EGA,25/09/2023,06-17705,"17,035.12",Pasture View Nurturing Homes Ltd
Nottinghamshire County Council,1111/1001,Children and Young People,CYP,Third Party Payments,EGA,25/09/2023,06-17712,"46,714.20",Albrighton Care Ltd
Nottinghamshire County Council,1111/1001,Children and Young People,CYP,Third Party Payments,EGA,25/09/2023,06-17713,"5,130.00",Channels & Choices Therapeutic Fost
Nottinghamshire County Council,1111/1001,Children and Young People,CYP,Third Party Payments,EGA,25/09/2023,06-17718,"39,857.14",Compass Homes Ltd
Nottinghamshire County Council,1111/1001,Children and Young People,CYP,Third Party Payments,EGA,25/09/2023,06-17719,"12,519.64",Compass Homes Ltd
Nottinghamshire County Council,1111/1001,Children and Young People,CYP,Third Party Payments,EGA,25/09/2023,06-17738,"5,130.00",Channels & Choices Therapeutic Fost
Nottinghamshire County Council,1111/1001,Children and Young People,CYP,Third Party Payments,EGA,25/09/2023,06-17739,"38,812.00",Compass Homes Ltd
Nottinghamshire County Council,1111/1001,Children and Young People,CYP,Third Party Payments,EGA,25/09/2023,06-17783,"3,669.65",Ikon Fostering Ltd
Nottinghamshire County Council,1111/1001,Children and Young People,CYP,Third Party Payments,EGA,25/09/2023,06-17822,"13,013.78",Treehouse Care Fostering Solutions
Nottinghamshire County Council,1111/1001,Children and Young People,CYP,Third Party Payments,EGA,25/09/2023,06-17830,"3,669.65",Ikon Fostering Ltd
Nottinghamshire County Council,1111/1001,Children and Young People,CYP,Third Party Payments,EGA,25/09/2023,06-17866,"1,120.00",Nottm Community Housing Assoc (Head
Nottinghamshire County Council,1111/1001,Children and Young People,CYP,Third Party Payments,EGA,25/09/2023,06-17876,"21,499.43",Dove Adolescent Services Ltd
Nottinghamshire County Council,1111/1001,Children and Young People,CYP,Third Party Payments,EGA,25/09/2023,06-17878,"26,571.34",Procure Care Providers Ltd
Nottinghamshire County Council,1111/1001,Children and Young People,CYP,Third Party Payments,EGA,25/09/2023,06-17915,"18,713.15",Orange Grove Fostercare Ltd
Nottinghamshire County Council,1111/1001,Children and Young People,CYP,Third Party Payments,EGA,25/09/2023,06-17925,"4,057.24",Fusion Fostering Ltd
Nottinghamshire County Council,1111/1001,Children and Young People,CYP,Third Party Payments,EGA,25/09/2023,06-17976,"18,799.28",Progressive Care Ltd
Nottinghamshire County Council,1111/1001,Children and Young People,CYP,Third Party Payments,EGA,25/09/2023,06-17977,"18,799.28",Progressive Care Ltd
Nottinghamshire County Council,1111/1001,Children and Young People,CYP,Third Party Payments,EGA,25/09/2023,06-17979,"18,799.28",Progressive Care Ltd
Nottinghamshire County Council,1111/1001,Children and Young People,CYP,Third Party Payments,EGA,25/09/2023,06-17981,"18,799.28",Progressive Care Ltd
Nottinghamshire County Council,1111/1001,Children and Young People,CYP,Third Party Payments,EGA,25/09/2023,06-18014,"3,944.14",Thornbury Community Services
Nottinghamshire County Council,1111/1001,Children and Young People,CYP,Third Party Payments,EGA,25/09/2023,06-18044,"29,173.84",Five Rivers Child Care Ltd
Nottinghamshire County Council,1111/1001,Children and Young People,CYP,Third Party Payments,EGA,25/09/2023,06-18059,"22,364.00",Dudley Lodge
Nottinghamshire County Council,1111/1001,Children and Young People,CYP,Third Party Payments,EGA,25/09/2023,06-18072,"11,412.00",Golfa Hall (Amberleigh Care Ltd)
Nottinghamshire County Council,1111/1001,Children and Young People,CYP,Third Party Payments,EGA,25/09/2023,06-18143,"7,110.00",First 4 Care Ltd
Nottinghamshire County Council,1111/1001,Children and Young People,CYP,Third Party Payments,EGA,25/09/2023,06-18151,"21,984.60",YMCA Robin Hood Group(Head Office)
Nottinghamshire County Council,1111/1001,Children and Young People,CYP,Third Party Payments,EGA,25/09/2023,06-18152,"21,984.60",YMCA Robin Hood Group(Head Office)
Nottinghamshire County Council,1111/1001,Children and Young People,CYP,Third Party Payments,EGA,25/09/2023,06-18153,"21,984.60",YMCA Robin Hood Group(Head Office)
Nottinghamshire County Council,1111/1001,Children and Young People,CYP,Third Party Payments,EGA,25/09/2023,06-18188,"14,614.64",Sunbeam Fostering Agency Ltd
Nottinghamshire County Council,1111/1001,Children and Young People,CYP,Third Party Payments,EGA,25/09/2023,06-18202,"16,561.80",Horizon Care & Education Group Ltd
Nottinghamshire County Council,1111/1001,Children and Young People,CYP,Third Party Payments,EGA,25/09/2023,06-18203,"16,561.80",Horizon Care & Education Group Ltd
Nottinghamshire County Council,1111/1001,Children and Young People,CYP,Third Party Payments,EGA,25/09/2023,06-18204,"16,561.80",Horizon Care & Education Group Ltd
Nottinghamshire County Council,1111/1001,Children and Young People,CYP,Third Party Payments,EGA,25/09/2023,06-18205,"16,561.80",Horizon Care & Education Group Ltd
Nottinghamshire County Council,1111/1001,Children and Young People,CYP,Third Party Payments,EGA,25/09/2023,06-18206,"16,561.80",Horizon Care & Education Group Ltd
Nottinghamshire County Council,1111/1001,Children and Young People,CYP,Third Party Payments,EGA,25/09/2023,06-18212,"5,428.97",Banya Family Placement Agency Ltd
Nottinghamshire County Council,1111/1001,Children and Young People,CYP,Third Party Payments,EGA,25/09/2023,06-18214,"4,343.18",Banya Family Placement Agency Ltd
Nottinghamshire County Council,1111/1001,Children and Young People,CYP,Third Party Payments,EGA,25/09/2023,06-18216,"14,614.64",Sunbeam Fostering Agency Ltd
Nottinghamshire County Council,1111/1001,Children and Young People,CYP,Third Party Payments,EGA,25/09/2023,06-18219,"14,614.64",Sunbeam Fostering Agency Ltd
Nottinghamshire County Council,1111/1001,Children and Young People,CYP,Third Party Payments,EGA,25/09/2023,06-18220,"3,726.46",Sunbeam Fostering Agency Ltd
Nottinghamshire County Council,1111/1001,Children and Young People,CYP,Third Party Payments,EGA,25/09/2023,06-18234,"3,823.38",Sunbeam Fostering Agency Ltd
Nottinghamshire County Council,1111/1001,Children and Young People,CYP,Third Party Payments,EGA,25/09/2023,06-18235,"3,764.28",Sunbeam Fostering Agency Ltd
Nottinghamshire County Council,1111/1001,Children and Young People,CYP,Third Party Payments,EGA,25/09/2023,06-18236,"3,764.28",Sunbeam Fostering Agency Ltd
Nottinghamshire County Council,1111/1001,Children and Young People,CYP,Third Party Payments,EGA,25/09/2023,06-18276,"3,753.48",Anglia Fostering Agency Ltd
Nottinghamshire County Council,1111/1001,Children and Young People,CYP,Third Party Payments,EGA,25/09/2023,06-18277,"56,772.32",Fostering Solutions Ltd (Head Offic
Nottinghamshire County Council,1111/1001,Children and Young People,CYP,Third Party Payments,EGA,25/09/2023,06-18279,"7,200.00",Positive Independence Ltd (Placemen
Nottinghamshire County Council,1111/1001,Children and Young People,CYP,Third Party Payments,EGA,25/09/2023,06-18280,"7,200.00",Positive Independence Ltd (Placemen
Nottinghamshire County Council,1111/1001,Children and Young People,CYP,Third Party Payments,EGA,25/09/2023,06-18281,"7,200.00",Positive Independence Ltd (Placemen
Nottinghamshire County Council,1111/1001,Children and Young People,CYP,Third Party Payments,EGA,25/09/2023,06-18282,"7,200.00",Positive Independence Ltd (Placemen
Nottinghamshire County Council,1111/1001,Children and Young People,CYP,Third Party Payments,EGA,25/09/2023,06-18283,"7,200.00",Positive Independence Ltd (Placemen
Nottinghamshire County Council,1111/1001,Children and Young People,CYP,Third Party Payments,EGA,25/09/2023,06-18284,"7,200.00",Positive Independence Ltd (Placemen
Nottinghamshire County Council,1111/1001,Children and Young People,CYP,Third Party Payments,EGA,25/09/2023,06-18285,"7,200.00",Positive Independence Ltd (Placemen
Nottinghamshire County Council,1111/1001,Children and Young People,CYP,Third Party Payments,EGA,25/09/2023,06-18286,"154,732.89",Fostering People Ltd
Nottinghamshire County Council,1111/1001,Children and Young People,CYP,Third Party Payments,EGA,25/09/2023,06-18288,"13,426.70",Jani Homes Nottingham Ltd (Placemen
Nottinghamshire County Council,1111/1001,Children and Young People,CYP,Third Party Payments,EGA,27/09/2023,06-18184,"10,690.10",Spectrum Wasp
Nottinghamshire County Council,1111/1001,Children and Young People,CYP,Third Party Payments,EGA,28/09/2023,06-16619,968.88,Orange Moon Childcare CIC T/A Home
Nottinghamshire County Council,1111/1001,Children and Young People,CYP,Third Party Payments,EGA,28/09/2023,06-16620,"6,000.00",Rainbows Day Nursery
Nottinghamshire County Council,1111/1001,Children and Young People,CYP,Third Party Payments,EGA,28/09/2023,06-16621,"5,842.15",Little House Childcare of Brinsley
Nottinghamshire County Council,1111/1001,Children and Young People,CYP,Third Party Payments,EGA,28/09/2023,06-16622,622.38,E Alcin (Childminder)
Nottinghamshire County Council,1111/1001,Children and Young People,CYP,Third Party Payments,EGA,28/09/2023,06-16623,"1,826.72",Helping Hands Daycare
Nottinghamshire County Council,1111/1001,Children and Young People,CYP,Third Party Payments,EGA,28/09/2023,06-16624,"12,462.62",All Aboard Nursery Ltd
Nottinghamshire County Council,1111/1001,Children and Young People,CYP,Third Party Payments,EGA,28/09/2023,06-16625,"1,149.01",Jelly Tots
Nottinghamshire County Council,1111/1001,Children and Young People,CYP,Third Party Payments,EGA,28/09/2023,06-16626,"1,823.35",Allsorts Preschool Underwood
Nottinghamshire County Council,1111/1001,Children and Young People,CYP,Third Party Payments,EGA,28/09/2023,06-16627,"7,033.60",Alphabet House Day Nurseries Ltd-Be
Nottinghamshire County Council,1111/1001,Children and Young People,CYP,Third Party Payments,EGA,28/09/2023,06-16628,"12,081.85",Alphabet House Day Nursery (Chilwel
Nottinghamshire County Council,1111/1001,Children and Young People,CYP,Third Party Payments,EGA,28/09/2023,06-16629,"7,733.60",Alphabet House Day Nurseries Ltd-Lo
Nottinghamshire County Council,1111/1001,Children and Young People,CYP,Third Party Payments,EGA,28/09/2023,06-16630,"18,590.88",Alphabet House Day Nurseries Ltd-We
Nottinghamshire County Council,1111/1001,Children and Young People,CYP,Third Party Payments,EGA,28/09/2023,06-16631,"17,602.78",Alphabet House Day Nurseries Ltd-Wh
Nottinghamshire County Council,1111/1001,Children and Young People,CYP,Third Party Payments,EGA,28/09/2023,06-16632,"12,103.84",Applegarth Day Nurseries Ltd
Nottinghamshire County Council,1111/1001,Children and Young People,CYP,Third Party Payments,EGA,28/09/2023,06-16633,"16,833.60",Arnold House Day Nursery
Nottinghamshire County Council,1111/1001,Children and Young People,CYP,Third Party Payments,EGA,28/09/2023,06-16634,"2,800.00",Arnold St Mary's Pre-School
Nottinghamshire County Council,1111/1001,Children and Young People,CYP,Third Party Payments,EGA,28/09/2023,06-16635,"8,618.18",Ashbourne Day Nurseries (New Ollert
Nottinghamshire County Council,1111/1001,Children and Young People,CYP,Third Party Payments,EGA,28/09/2023,06-16636,"6,512.99",Ashfield Plaza Day Nursery
Nottinghamshire County Council,1111/1001,Children and Young People,CYP,Third Party Payments,EGA,28/09/2023,06-16637,"8,090.08",Attenborough Church Pre-School
Nottinghamshire County Council,1111/1001,Children and Young People,CYP,Third Party Payments,EGA,28/09/2023,06-16638,"9,970.24",Aunty Sue's Day Care Ltd
Nottinghamshire County Council,1111/1001,Children and Young People,CYP,Third Party Payments,EGA,28/09/2023,06-16639,"6,700.78",Awsworth Schoolhouse Day Nursery
Nottinghamshire County Council,1111/1001,Children and Young People,CYP,Third Party Payments,EGA,28/09/2023,06-16640,627.48,Mornington Childcare Services
Nottinghamshire County Council,1111/1001,Children and Young People,CYP,Third Party Payments,EGA,28/09/2023,06-16641,634.57,Little Gem's
Nottinghamshire County Council,1111/1001,Children and Young People,CYP,Third Party Payments,EGA,28/09/2023,06-16642,563.36,Baileybugs Childminding
Nottinghamshire County Council,1111/1001,Children and Young People,CYP,Third Party Payments,EGA,28/09/2023,06-16643,"1,545.04",Sarah's Childminding
Nottinghamshire County Council,1111/1001,Children and Young People,CYP,Third Party Payments,EGA,28/09/2023,06-16644,"19,072.71",Balderton Pre-School
Nottinghamshire County Council,1111/1001,Children and Young People,CYP,Third Party Payments,EGA,28/09/2023,06-16645,"4,502.68",Balderton Village Day Nursery
Nottinghamshire County Council,1111/1001,Children and Young People,CYP,Third Party Payments,EGA,28/09/2023,06-16646,"1,050.00",S Hollins (Childminder)
Nottinghamshire County Council,1111/1001,Children and Young People,CYP,Third Party Payments,EGA,28/09/2023,06-16647,"10,550.40",Beacon Hill Day Nursery
Nottinghamshire County Council,1111/1001,Children and Young People,CYP,Third Party Payments,EGA,28/09/2023,06-16648,"11,548.88",Bingham Day Nursery & Pre School
Nottinghamshire County Council,1111/1001,Children and Young People,CYP,Third Party Payments,EGA,28/09/2023,06-16649,"9,242.45",Bircotes Pre-School
Nottinghamshire County Council,1111/1001,Children and Young People,CYP,Third Party Payments,EGA,28/09/2023,06-16650,"1,263.36",Kathryn Birks Childminding Service
Nottinghamshire County Council,1111/1001,Children and Young People,CYP,Third Party Payments,EGA,28/09/2023,06-16651,"14,769.04",Bizzy Kidz
Nottinghamshire County Council,1111/1001,Children and Young People,CYP,Third Party Payments,EGA,28/09/2023,06-16652,751.15,Sunrayz Childcare
Nottinghamshire County Council,1111/1001,Children and Young People,CYP,Third Party Payments,EGA,28/09/2023,06-16653,"6,484.68",Bramcote Pre-School Playgroup
Nottinghamshire County Council,1111/1001,Children and Young People,CYP,Third Party Payments,EGA,28/09/2023,06-16654,981.68,Maple House 4 Child Care
Nottinghamshire County Council,1111/1001,Children and Young People,CYP,Third Party Payments,EGA,28/09/2023,06-16655,"10,413.76",Bright Sparks Day Nursery
Nottinghamshire County Council,1111/1001,Children and Young People,CYP,Third Party Payments,EGA,28/09/2023,06-16656,"22,893.92",Bright Stars Childcare
Nottinghamshire County Council,1111/1001,Children and Young People,CYP,Third Party Payments,EGA,28/09/2023,06-16657,"16,429.73",Brooklyn Day Nursery
Nottinghamshire County Council,1111/1001,Children and Young People,CYP,Third Party Payments,EGA,28/09/2023,06-16658,"1,126.72",L Brown (Childminder)
Nottinghamshire County Council,1111/1001,Children and Young People,CYP,Third Party Payments,EGA,28/09/2023,06-16659,"11,974.37",Bullpit Road Nursery
Nottinghamshire County Council,1111/1001,Children and Young People,CYP,Third Party Payments,EGA,28/09/2023,06-16660,"16,481.25",Busy Bees (Daybrook)
Nottinghamshire County Council,1111/1001,Children and Young People,CYP,Third Party Payments,EGA,28/09/2023,06-16661,"9,882.80",Busy Bees (Edwalton)
Nottinghamshire County Council,1111/1001,Children and Young People,CYP,Third Party Payments,EGA,28/09/2023,06-16662,"9,193.15",Treetops Nursery (Toton)
Nottinghamshire County Council,1111/1001,Children and Young People,CYP,Third Party Payments,EGA,28/09/2023,06-16663,"9,705.36",Busy Bees Nurseries Limited
Nottinghamshire County Council,1111/1001,Children and Young People,CYP,Third Party Payments,EGA,28/09/2023,06-16664,"12,599.26",Treetops Nursery (Clipstone)
Nottinghamshire County Council,1111/1001,Children and Young People,CYP,Third Party Payments,EGA,28/09/2023,06-16665,"24,198.40",Treetops Nurseries (Workop)
Nottinghamshire County Council,1111/1001,Children and Young People,CYP,Third Party Payments,EGA,28/09/2023,06-16666,"7,052.38",Buttercross Pre School
Nottinghamshire County Council,1111/1001,Children and Young People,CYP,Third Party Payments,EGA,28/09/2023,06-16667,"16,372.54",Carlton & Gedling Day Nursery
Nottinghamshire County Council,1111/1001,Children and Young People,CYP,Third Party Payments,EGA,28/09/2023,06-16668,"12,175.32",Carnarvon Pre-School
Nottinghamshire County Council,1111/1001,Children and Young People,CYP,Third Party Payments,EGA,28/09/2023,06-16669,836.64,[Redacted]
Nottinghamshire County Council,1111/1001,Children and Young People,CYP,Third Party Payments,EGA,28/09/2023,06-16670,"13,005.22",Cedar House Day Nursery
Nottinghamshire County Council,1111/1001,Children and Young People,CYP,Third Party Payments,EGA,28/09/2023,06-16671,563.36,K J Channer (Childminder)
Nottinghamshire County Council,1111/1001,Children and Young People,CYP,Third Party Payments,EGA,28/09/2023,06-16672,"4,015.99",Cherubs (Edwinstowe)
Nottinghamshire County Council,1111/1001,Children and Young People,CYP,Third Party Payments,EGA,28/09/2023,06-16673,"11,842.78",Cherubs (Mapperley)
Nottinghamshire County Council,1111/1001,Children and Young People,CYP,Third Party Payments,EGA,28/09/2023,06-16674,"9,522.06",Cherubs (Ruddington)
Nottinghamshire County Council,1111/1001,Children and Young People,CYP,Third Party Payments,EGA,28/09/2023,06-16675,"10,740.02",Cherubs (Sutton In Ashfield)
Nottinghamshire County Council,1111/1001,Children and Young People,CYP,Third Party Payments,EGA,28/09/2023,06-16676,"13,416.26",Cherubs Childrens Centre Wynndale
Nottinghamshire County Council,1111/1001,Children and Young People,CYP,Third Party Payments,EGA,28/09/2023,06-16677,"10,944.76",Cherubs Ryton Park
Nottinghamshire County Council,1111/1001,Children and Young People,CYP,Third Party Payments,EGA,28/09/2023,06-16678,"29,583.76",Cherubs Day Nursery
Nottinghamshire County Council,1111/1001,Children and Young People,CYP,Third Party Payments,EGA,28/09/2023,06-16679,"11,587.43",Child First (Welbeck) Nursery
Nottinghamshire County Council,1111/1001,Children and Young People,CYP,Third Party Payments,EGA,28/09/2023,06-16680,"18,865.33",Children 1st @ Breedon House (Plumt
Nottinghamshire County Council,1111/1001,Children and Young People,CYP,Third Party Payments,EGA,28/09/2023,06-16681,"15,368.26",Children 1st @ Newark Centre
Nottinghamshire County Council,1111/1001,Children and Young People,CYP,Third Party Payments,EGA,28/09/2023,06-16682,"11,385.56",Children 1st @ Breedon House (MayFi
Nottinghamshire County Council,1111/1001,Children and Young People,CYP,Third Party Payments,EGA,28/09/2023,06-16683,"24,923.42",Children 1st @ Breedon House (MayFi
Nottinghamshire County Council,1111/1001,Children and Young People,CYP,Third Party Payments,EGA,28/09/2023,06-16684,"11,376.17",Childrens House Childcare Ltd
Nottinghamshire County Council,1111/1001,Children and Young People,CYP,Third Party Payments,EGA,28/09/2023,06-16685,"12,322.27",Claremont Early Years Ltd
Nottinghamshire County Council,1111/1001,Children and Young People,CYP,Third Party Payments,EGA,28/09/2023,06-16686,563.36,Ruthies Childcare
Nottinghamshire County Council,1111/1001,Children and Young People,CYP,Third Party Payments,EGA,28/09/2023,06-16687,563.36,ABC Childminders
Nottinghamshire County Council,1111/1001,Children and Young People,CYP,Third Party Payments,EGA,28/09/2023,06-16688,780.87,Susan Cochran Childminding Service
Nottinghamshire County Council,1111/1001,Children and Young People,CYP,Third Party Payments,EGA,28/09/2023,06-16689,"5,625.20",Collingham & District Pre-School
Nottinghamshire County Council,1111/1001,Children and Young People,CYP,Third Party Payments,EGA,28/09/2023,06-16690,"2,535.12",Colston Bassett Preparatory School
Nottinghamshire County Council,1111/1001,Children and Young People,CYP,Third Party Payments,EGA,28/09/2023,06-16691,"1,118.32",[Redacted]
Nottinghamshire County Council,1111/1001,Children and Young People,CYP,Third Party Payments,EGA,28/09/2023,06-16692,700,Cooper's Nest Childcare
Nottinghamshire County Council,1111/1001,Children and Young People,CYP,Third Party Payments,EGA,28/09/2023,06-16693,"2,197.11",Costock Pre School
Nottinghamshire County Council,1111/1001,Children and Young People,CYP,Third Party Payments,EGA,28/09/2023,06-16694,"8,870.00",CB Coteswood House School
Nottinghamshire County Council,1111/1001,Children and Young People,CYP,Third Party Payments,EGA,28/09/2023,06-16695,"3,798.48",Country Kids Day Nursery (Kneesall)
Nottinghamshire County Council,1111/1001,Children and Young People,CYP,Third Party Payments,EGA,28/09/2023,06-16696,"5,061.84",Country Kids Day Nursery (Farndon)
Nottinghamshire County Council,1111/1001,Children and Young People,CYP,Third Party Payments,EGA,28/09/2023,06-16697,"7,221.39",Country Kids Day Nursery (Newark)
Nottinghamshire County Council,1111/1001,Children and Young People,CYP,Third Party Payments,EGA,28/09/2023,06-16698,"4,661.95",Country Kids Nursery (Rainworth)
Nottinghamshire County Council,1111/1001,Children and Young People,CYP,Third Party Payments,EGA,28/09/2023,06-16699,992.93,Fingerprints Childminding
Nottinghamshire County Council,1111/1001,Children and Young People,CYP,Third Party Payments,EGA,28/09/2023,06-16700,"5,206.88",Cranmer Pre-School
Nottinghamshire County Council,1111/1001,Children and Young People,CYP,Third Party Payments,EGA,28/09/2023,06-16701,"12,490.78",Creative Hands Childcare Ltd
Nottinghamshire County Council,1111/1001,Children and Young People,CYP,Third Party Payments,EGA,28/09/2023,06-16702,700,Butterflies Childminding Services
Nottinghamshire County Council,1111/1001,Children and Young People,CYP,Third Party Payments,EGA,28/09/2023,06-16703,"19,045.04",Crocodile Rock Day Care Ltd
Nottinghamshire County Council,1111/1001,Children and Young People,CYP,Third Party Payments,EGA,28/09/2023,06-16704,"2,253.44",Kimi D's Tiny Toes Childminding
Nottinghamshire County Council,1111/1001,Children and Young People,CYP,Third Party Payments,EGA,28/09/2023,06-16705,563.36,[Redacted]
Nottinghamshire County Council,1111/1001,Children and Young People,CYP,Third Party Payments,EGA,28/09/2023,06-16706,"2,242.24",Diggory�s Day Nursery Ltd
Nottinghamshire County Council,1111/1001,Children and Young People,CYP,Third Party Payments,EGA,28/09/2023,06-16707,"3,952.91",M Dodgson (Chidminder)
Nottinghamshire County Council,1111/1001,Children and Young People,CYP,Third Party Payments,EGA,28/09/2023,06-16708,"5,629.50",Purley Green Ltd
Nottinghamshire County Council,1111/1001,Children and Young People,CYP,Third Party Payments,EGA,28/09/2023,06-16709,563.36,Daisy Chain Childminding
Nottinghamshire County Council,1111/1001,Children and Young People,CYP,Third Party Payments,EGA,28/09/2023,06-16710,"7,703.41",Early Years Playgroup
Nottinghamshire County Council,1111/1001,Children and Young People,CYP,Third Party Payments,EGA,28/09/2023,06-16711,"15,132.40",East Leake Day Nursery & Pre-School
Nottinghamshire County Council,1111/1001,Children and Young People,CYP,Third Party Payments,EGA,28/09/2023,06-16712,"7,115.60",East Leake Pre-School Playgroup
Nottinghamshire County Council,1111/1001,Children and Young People,CYP,Third Party Payments,EGA,28/09/2023,06-16713,"14,312.03",Edwalton Day Nursery
Nottinghamshire County Council,1111/1001,Children and Young People,CYP,Third Party Payments,EGA,28/09/2023,06-16714,"2,100.00",S Elliott (Childminder)
Nottinghamshire County Council,1111/1001,Children and Young People,CYP,Third Party Payments,EGA,28/09/2023,06-16715,"1,818.32",C Evans (Childminder)
Nottinghamshire County Council,1111/1001,Children and Young People,CYP,Third Party Payments,EGA,28/09/2023,06-16716,582.14,Little Footprints Childcare
Nottinghamshire County Council,1111/1001,Children and Young People,CYP,Third Party Payments,EGA,28/09/2023,06-16717,"1,826.72",Explorers Childcare
Nottinghamshire County Council,1111/1001,Children and Young People,CYP,Third Party Payments,EGA,28/09/2023,06-16718,"3,871.09",Farnsfield Pre-School
Nottinghamshire County Council,1111/1001,Children and Young People,CYP,Third Party Payments,EGA,28/09/2023,06-16719,563.36,Nicola Fenton Childminding Services
Nottinghamshire County Council,1111/1001,Children and Young People,CYP,Third Party Payments,EGA,28/09/2023,06-16720,"16,459.16",Fernwood Day Nursery Ltd
Nottinghamshire County Council,1111/1001,Children and Young People,CYP,Third Party Payments,EGA,28/09/2023,06-16721,"4,343.06",Fledglings Pre School
Nottinghamshire County Council,1111/1001,Children and Young People,CYP,Third Party Payments,EGA,28/09/2023,06-16722,563.36,Kates Childminding Services
Nottinghamshire County Council,1111/1001,Children and Young People,CYP,Third Party Payments,EGA,28/09/2023,06-16723,563.36,[Redacted]
Nottinghamshire County Council,1111/1001,Children and Young People,CYP,Third Party Payments,EGA,28/09/2023,06-16724,"1,344.60",Elphis Little Rainbows
Nottinghamshire County Council,1111/1001,Children and Young People,CYP,Third Party Payments,EGA,28/09/2023,06-16725,700,Dee Dee's Childminding
Nottinghamshire County Council,1111/1001,Children and Young People,CYP,Third Party Payments,EGA,28/09/2023,06-16726,"1,408.40",V Gill (Childminder)
Nottinghamshire County Council,1111/1001,Children and Young People,CYP,Third Party Payments,EGA,28/09/2023,06-16727,"17,658.26",Good Foundations Day Nursery
Nottinghamshire County Council,1111/1001,Children and Young People,CYP,Third Party Payments,EGA,28/09/2023,06-16728,"4,720.48",Good Shepherd Pre-School
Nottinghamshire County Council,1111/1001,Children and Young People,CYP,Third Party Payments,EGA,28/09/2023,06-16729,"3,522.56",Gotham Pre-School Playgroup
Nottinghamshire County Council,1111/1001,Children and Young People,CYP,Third Party Payments,EGA,28/09/2023,06-16730,"15,044.68",Granby House Nursery
Nottinghamshire County Council,1111/1001,Children and Young People,CYP,Third Party Payments,EGA,28/09/2023,06-16731,"1,045.80",S Greger (Childminder)
Nottinghamshire County Council,1111/1001,Children and Young People,CYP,Third Party Payments,EGA,28/09/2023,06-16732,"1,400.00",Jennytots Childcare
Nottinghamshire County Council,1111/1001,Children and Young People,CYP,Third Party Payments,EGA,28/09/2023,06-16733,"1,502.30",[Redacted]
Nottinghamshire County Council,1111/1001,Children and Young People,CYP,Third Party Payments,EGA,28/09/2023,06-16734,"18,169.48",Happy Days Childcare Services Ltd
Nottinghamshire County Council,1111/1001,Children and Young People,CYP,Third Party Payments,EGA,28/09/2023,06-16735,563.36,"Sue Smith, Happy Kids Childminding"
Nottinghamshire County Council,1111/1001,Children and Young People,CYP,Third Party Payments,EGA,28/09/2023,06-16736,"1,003.06",[Redacted]
Nottinghamshire County Council,1111/1001,Children and Young People,CYP,Third Party Payments,EGA,28/09/2023,06-16737,981.68,Rachel & Philip's Home From Home Ch
Nottinghamshire County Council,1111/1001,Children and Young People,CYP,Third Party Payments,EGA,28/09/2023,06-16738,"3,035.44",Haywood Road Pre-School
Nottinghamshire County Council,1111/1001,Children and Young People,CYP,Third Party Payments,EGA,28/09/2023,06-16739,563.36,[Redacted]
Nottinghamshire County Council,1111/1001,Children and Young People,CYP,Third Party Payments,EGA,28/09/2023,06-16740,"1,225.81",Dandelion Daycare
Nottinghamshire County Council,1111/1001,Children and Young People,CYP,Third Party Payments,EGA,28/09/2023,06-16741,"6,064.28",Hermitage Pre-School
Nottinghamshire County Council,1111/1001,Children and Young People,CYP,Third Party Payments,EGA,28/09/2023,06-16742,"3,492.84",Hickling Pre-School
Nottinghamshire County Council,1111/1001,Children and Young People,CYP,Third Party Payments,EGA,28/09/2023,06-16743,"5,527.64",Highfields School & Nursery
Nottinghamshire County Council,1111/1001,Children and Young People,CYP,Third Party Payments,EGA,28/09/2023,06-16744,563.36,S Hingley (Childminder)
Nottinghamshire County Council,1111/1001,Children and Young People,CYP,Third Party Payments,EGA,28/09/2023,06-16745,563.36,[Redacted]
Nottinghamshire County Council,1111/1001,Children and Young People,CYP,Third Party Payments,EGA,28/09/2023,06-16746,"23,780.05",Hollies Day Nurseries Ltd
Nottinghamshire County Council,1111/1001,Children and Young People,CYP,Third Party Payments,EGA,28/09/2023,06-16747,"22,132.46",Hollies Day Nurseries Ltd
Nottinghamshire County Council,1111/1001,Children and Young People,CYP,Third Party Payments,EGA,28/09/2023,06-16748,"15,449.43",Hollies Day Nursery (Loughborough R
Nottinghamshire County Council,1111/1001,Children and Young People,CYP,Third Party Payments,EGA,28/09/2023,06-16749,"15,311.96",Hollies Day Nursery Ltd (Mapperley)
Nottinghamshire County Council,1111/1001,Children and Young People,CYP,Third Party Payments,EGA,28/09/2023,06-16750,"18,267.20",Holly House Nursery (Doncaster) Ltd
Nottinghamshire County Council,1111/1001,Children and Young People,CYP,Third Party Payments,EGA,28/09/2023,06-16751,"11,460.64",Homestead Day Nursery Ltd
Nottinghamshire County Council,1111/1001,Children and Young People,CYP,Third Party Payments,EGA,28/09/2023,06-16752,"5,917.79",Honey Pot Day Private Day Nursery L
Nottinghamshire County Council,1111/1001,Children and Young People,CYP,Third Party Payments,EGA,28/09/2023,06-16753,"4,306.00",Horsendale Playgroup
Nottinghamshire County Council,1111/1001,Children and Young People,CYP,Third Party Payments,EGA,28/09/2023,06-16754,845.04,J Horvath (Childminder)
Nottinghamshire County Council,1111/1001,Children and Young People,CYP,Third Party Payments,EGA,28/09/2023,06-16755,"19,564.16",Hucknall Day Nursery Ltd
Nottinghamshire County Council,1111/1001,Children and Young People,CYP,Third Party Payments,EGA,28/09/2023,06-16756,"5,416.13",Hucknall Pre-School Playgroup
Nottinghamshire County Council,1111/1001,Children and Young People,CYP,Third Party Payments,EGA,28/09/2023,06-16757,563.36,Tracey Hunt Childminding Service
Nottinghamshire County Council,1111/1001,Children and Young People,CYP,Third Party Payments,EGA,28/09/2023,06-16758,563.36,Little Blossoms Childminding
Nottinghamshire County Council,1111/1001,Children and Young People,CYP,Third Party Payments,EGA,28/09/2023,06-16759,"1,954.96",[Redacted]
Nottinghamshire County Council,1111/1001,Children and Young People,CYP,Third Party Payments,EGA,28/09/2023,06-16760,"1,219.10",J James (Childminder)
Nottinghamshire County Council,1111/1001,Children and Young People,CYP,Third Party Payments,EGA,28/09/2023,06-16761,"4,541.23",Jelly Beans Day Nursery Ltd
Nottinghamshire County Council,1111/1001,Children and Young People,CYP,Third Party Payments,EGA,28/09/2023,06-16762,"1,883.06",Emma's Childcare
Nottinghamshire County Council,1111/1001,Children and Young People,CYP,Third Party Payments,EGA,28/09/2023,06-16763,"3,776.49",Jesters Childcare Ltd
Nottinghamshire County Council,1111/1001,Children and Young People,CYP,Third Party Payments,EGA,28/09/2023,06-16764,"3,777.48",[Redacted]
Nottinghamshire County Council,1111/1001,Children and Young People,CYP,Third Party Payments,EGA,28/09/2023,06-16765,"15,932.47",Jumacare Ltd T/A Church House Nurse
Nottinghamshire County Council,1111/1001,Children and Young People,CYP,Third Party Payments,EGA,28/09/2023,06-16766,"18,047.36",Kids Planet Day Nurseries Ltd (Gedl
Nottinghamshire County Council,1111/1001,Children and Young People,CYP,Third Party Payments,EGA,28/09/2023,06-16767,"14,792.23",Kids Planet Day Nurseries Ltd (Lowd
Nottinghamshire County Council,1111/1001,Children and Young People,CYP,Third Party Payments,EGA,28/09/2023,06-16768,"5,628.33",Poppy & Jacks Ltd
Nottinghamshire County Council,1111/1001,Children and Young People,CYP,Third Party Payments,EGA,28/09/2023,06-16769,"16,931.96",Kidzgrove Daycare Ltd
Nottinghamshire County Council,1111/1001,Children and Young People,CYP,Third Party Payments,EGA,28/09/2023,06-16770,"11,825.34",Killisick Pre-School
Nottinghamshire County Council,1111/1001,Children and Young People,CYP,Third Party Payments,EGA,28/09/2023,06-16771,"9,599.97",CB Pre-School Learning Alliance (HO
Nottinghamshire County Council,1111/1001,Children and Young People,CYP,Third Party Payments,EGA,28/09/2023,06-16772,"6,615.74",Kimberley Pre-School Playgroup
Nottinghamshire County Council,1111/1001,Children and Young People,CYP,Third Party Payments,EGA,28/09/2023,06-16773,920.16,Joanne Kirk Childminding Servivces
Nottinghamshire County Council,1111/1001,Children and Young People,CYP,Third Party Payments,EGA,28/09/2023,06-16774,"2,894.97",Lady Bay Pre School Playgroup
Nottinghamshire County Council,1111/1001,Children and Young People,CYP,Third Party Payments,EGA,28/09/2023,06-16775,"7,742.00",Lambley Day Nursery Ltd
Nottinghamshire County Council,1111/1001,Children and Young People,CYP,Third Party Payments,EGA,28/09/2023,06-16776,"3,170.39",Luans Little Stars
Nottinghamshire County Council,1111/1001,Children and Young People,CYP,Third Party Payments,EGA,28/09/2023,06-16777,"5,757.68",CB Pre-School Learning Alliance (HO
Nottinghamshire County Council,1111/1001,Children and Young People,CYP,Third Party Payments,EGA,28/09/2023,06-16778,"10,794.68",Leen Mills Pre School Playgroup
Nottinghamshire County Council,1111/1001,Children and Young People,CYP,Third Party Payments,EGA,28/09/2023,06-16779,563.36,N Lees (Childminder)
Nottinghamshire County Council,1111/1001,Children and Young People,CYP,Third Party Payments,EGA,28/09/2023,06-16780,"15,996.96",Leos Childrens Nurseries Ltd
Nottinghamshire County Council,1111/1001,Children and Young People,CYP,Third Party Payments,EGA,28/09/2023,06-16781,"8,114.78",Leo's Childrens Nurseries Ltd
Nottinghamshire County Council,1111/1001,Children and Young People,CYP,Third Party Payments,EGA,28/09/2023,06-16782,600.92,B Lilley (Childminder)
Nottinghamshire County Council,1111/1001,Children and Young People,CYP,Third Party Payments,EGA,28/09/2023,06-16783,"19,616.80",Lime Trees Day Nursery Ltd
Nottinghamshire County Council,1111/1001,Children and Young People,CYP,Third Party Payments,EGA,28/09/2023,06-16784,"4,324.29",Little Acorns Shireoaks
Nottinghamshire County Council,1111/1001,Children and Young People,CYP,Third Party Payments,EGA,28/09/2023,06-16785,"2,309.78",Little Adventurers Forest School Wa
Nottinghamshire County Council,1111/1001,Children and Young People,CYP,Third Party Payments,EGA,28/09/2023,06-16786,"7,565.44",Little Adventures Forest School Ltd
Nottinghamshire County Council,1111/1001,Children and Young People,CYP,Third Party Payments,EGA,28/09/2023,06-16787,"6,291.60",Little Beans Playgroup
Nottinghamshire County Council,1111/1001,Children and Young People,CYP,Third Party Payments,EGA,28/09/2023,06-16788,"5,890.08",Little Beans Playgroup
Nottinghamshire County Council,1111/1001,Children and Young People,CYP,Third Party Payments,EGA,28/09/2023,06-16789,"9,205.51",Little Ducklings Preschool Ltd
Nottinghamshire County Council,1111/1001,Children and Young People,CYP,Third Party Payments,EGA,28/09/2023,06-16790,"11,677.12",Little Elms Pre-school (Oxton)
Nottinghamshire County Council,1111/1001,Children and Young People,CYP,Third Party Payments,EGA,28/09/2023,06-16791,"7,400.78",Little Friends Day Nursery
Nottinghamshire County Council,1111/1001,Children and Young People,CYP,Third Party Payments,EGA,28/09/2023,06-16792,"3,645.04",Little House Of Horrors
Nottinghamshire County Council,1111/1001,Children and Young People,CYP,Third Party Payments,EGA,28/09/2023,06-16793,"8,963.36",Little Kites Playgroup
Nottinghamshire County Council,1111/1001,Children and Young People,CYP,Third Party Payments,EGA,28/09/2023,06-16794,"11,080.16",Little Lambs Day Nursery
Nottinghamshire County Council,1111/1001,Children and Young People,CYP,Third Party Payments,EGA,28/09/2023,06-16795,"9,537.62",Little Lambs Day Nursery (Kirkby in
Nottinghamshire County Council,1111/1001,Children and Young People,CYP,Third Party Payments,EGA,28/09/2023,06-16796,"11,635.12",Little Lambs Day Nursery (Kirkby in
Nottinghamshire County Council,1111/1001,Children and Young People,CYP,Third Party Payments,EGA,28/09/2023,06-16797,"5,478.01",Little Millers Day Nursery
Nottinghamshire County Council,1111/1001,Children and Young People,CYP,Third Party Payments,EGA,28/09/2023,06-16798,"18,186.89",Little Nippers Pre-School
Nottinghamshire County Council,1111/1001,Children and Young People,CYP,Third Party Payments,EGA,28/09/2023,06-16799,"19,000.63",Little Oaks Nursery
Nottinghamshire County Council,1111/1001,Children and Young People,CYP,Third Party Payments,EGA,28/09/2023,06-16800,"9,510.69",Little Owls Day Nursery
Nottinghamshire County Council,1111/1001,Children and Young People,CYP,Third Party Payments,EGA,28/09/2023,06-16801,"20,632.08",Little Baths Ltd T/A Little PLums D
Nottinghamshire County Council,1111/1001,Children and Young People,CYP,Third Party Payments,EGA,28/09/2023,06-16802,"6,598.48",Little Plums Nursery Stapleford
Nottinghamshire County Council,1111/1001,Children and Young People,CYP,Third Party Payments,EGA,28/09/2023,06-16803,"4,643.52",Little Toes Day Nursery(West Bridgf
Nottinghamshire County Council,1111/1001,Children and Young People,CYP,Third Party Payments,EGA,28/09/2023,06-16804,"2,671.76",Little Toes Day Nursery North Muskh
Nottinghamshire County Council,1111/1001,Children and Young People,CYP,Third Party Payments,EGA,28/09/2023,06-16805,"4,255.88",Little Wrens Day Nursery & Pre Scho
Nottinghamshire County Council,1111/1001,Children and Young People,CYP,Third Party Payments,EGA,28/09/2023,06-16806,"3,864.21",Longdale Nursery School (Cherubs)
Nottinghamshire County Council,1111/1001,Children and Young People,CYP,Third Party Payments,EGA,28/09/2023,06-16807,"1,014.05",R L Lord (Childminder)
Nottinghamshire County Council,1111/1001,Children and Young People,CYP,Third Party Payments,EGA,28/09/2023,06-16808,"6,354.64",Lowdham & Epperstone Pre-School
Nottinghamshire County Council,1111/1001,Children and Young People,CYP,Third Party Payments,EGA,28/09/2023,06-16809,"15,001.69",Luan's Little People Ltd
Nottinghamshire County Council,1111/1001,Children and Young People,CYP,Third Party Payments,EGA,28/09/2023,06-16810,"1,126.72",Michelle Maddock (Childminder)
Nottinghamshire County Council,1111/1001,Children and Young People,CYP,Third Party Payments,EGA,28/09/2023,06-16811,"14,220.64",Mapperley Day Nursery
Nottinghamshire County Council,1111/1001,Children and Young People,CYP,Third Party Payments,EGA,28/09/2023,06-16812,"1,126.72",Elaine Marshall (Childminder)
Nottinghamshire County Council,1111/1001,Children and Young People,CYP,Third Party Payments,EGA,28/09/2023,06-16813,"1,282.14",[Redacted]
Nottinghamshire County Council,1111/1001,Children and Young People,CYP,Third Party Payments,EGA,28/09/2023,06-16814,591.53,S Middlemass (Childminder)
Nottinghamshire County Council,1111/1001,Children and Young People,CYP,Third Party Payments,EGA,28/09/2023,06-16815,"12,419.87",Millfield Nursery School
Nottinghamshire County Council,1111/1001,Children and Young People,CYP,Third Party Payments,EGA,28/09/2023,06-16816,"2,526.72",Tinas Childminding
Nottinghamshire County Council,1111/1001,Children and Young People,CYP,Third Party Payments,EGA,28/09/2023,06-16817,"5,198.48",Little Explorers
Nottinghamshire County Council,1111/1001,Children and Young People,CYP,Third Party Payments,EGA,28/09/2023,06-16818,657.36,Messy Monsters Tiney Home Nurse
Nottinghamshire County Council,1111/1001,Children and Young People,CYP,Third Party Payments,EGA,28/09/2023,06-16819,901.38,L Naylor (Childminding Service)
Nottinghamshire County Council,1111/1001,Children and Young People,CYP,Third Party Payments,EGA,28/09/2023,06-16820,"15,957.71",CB Pre-School Learning Alliance (HO
Nottinghamshire County Council,1111/1001,Children and Young People,CYP,Third Party Payments,EGA,28/09/2023,06-16821,"10,761.75",Noahs Ark Playgroup
Nottinghamshire County Council,1111/1001,Children and Young People,CYP,Third Party Payments,EGA,28/09/2023,06-16822,"2,108.40",Kangaroo Teacher Led Childcare Ltd
Nottinghamshire County Council,1111/1001,Children and Young People,CYP,Third Party Payments,EGA,28/09/2023,06-16823,563.36,J Norrish (Childminder)
Nottinghamshire County Council,1111/1001,Children and Young People,CYP,Third Party Payments,EGA,28/09/2023,06-16824,"3,944.51",North Muskham Playgroup
Nottinghamshire County Council,1111/1001,Children and Young People,CYP,Third Party Payments,EGA,28/09/2023,06-16825,627.48,[Redacted]
Nottinghamshire County Council,1111/1001,Children and Young People,CYP,Third Party Payments,EGA,28/09/2023,06-16826,"14,396.64",Oceans Day Nursery
Nottinghamshire County Council,1111/1001,Children and Young People,CYP,Third Party Payments,EGA,28/09/2023,06-16827,"5,070.24",Old Cooperative Day Nursery
Nottinghamshire County Council,1111/1001,Children and Young People,CYP,Third Party Payments,EGA,28/09/2023,06-16828,563.36,Little Owls (Childminding)
Nottinghamshire County Council,1111/1001,Children and Young People,CYP,Third Party Payments,EGA,28/09/2023,06-16829,"19,454.70",Orchard Day Nursery
Nottinghamshire County Council,1111/1001,Children and Young People,CYP,Third Party Payments,EGA,28/09/2023,06-16830,563.36,E Overton (Childminder)
Nottinghamshire County Council,1111/1001,Children and Young People,CYP,Third Party Payments,EGA,28/09/2023,06-16831,700,Jammie Dodgers Childminding Group
Nottinghamshire County Council,1111/1001,Children and Young People,CYP,Third Party Payments,EGA,28/09/2023,06-16832,"5,770.24",Papermoon Day Nursery
Nottinghamshire County Council,1111/1001,Children and Young People,CYP,Third Party Payments,EGA,28/09/2023,06-16833,"20,191.15",Papermoon Day Nursery
Nottinghamshire County Council,1111/1001,Children and Young People,CYP,Third Party Payments,EGA,28/09/2023,06-16834,"9,278.64",Papermoon Day Nursery
Nottinghamshire County Council,1111/1001,Children and Young People,CYP,Third Party Payments,EGA,28/09/2023,06-16835,"21,183.09",Papermoon Day Nursery Sutton In Ash
Nottinghamshire County Council,1111/1001,Children and Young People,CYP,Third Party Payments,EGA,28/09/2023,06-16836,563.36,Victoria Parr Childminding
Nottinghamshire County Council,1111/1001,Children and Young People,CYP,Third Party Payments,EGA,28/09/2023,06-16837,"6,103.07",Pea Pod Day Nursery Ltd
Nottinghamshire County Council,1111/1001,Children and Young People,CYP,Third Party Payments,EGA,28/09/2023,06-16838,"1,695.27",K Perkins (Childminder)
Nottinghamshire County Council,1111/1001,Children and Young People,CYP,Third Party Payments,EGA,28/09/2023,06-16839,"1,657.72",[Redacted]
Nottinghamshire County Council,1111/1001,Children and Young People,CYP,Third Party Payments,EGA,28/09/2023,06-16840,"24,344.32",Phoenix Park Nursery Ltd
Nottinghamshire County Council,1111/1001,Children and Young People,CYP,Third Party Payments,EGA,28/09/2023,06-16841,"24,182.48",Phoenix Park Nursery (Giltbrook) Lt
Nottinghamshire County Council,1111/1001,Children and Young People,CYP,Third Party Payments,EGA,28/09/2023,06-16842,"6,470.24",Play Days Cottage
Nottinghamshire County Council,1111/1001,Children and Young People,CYP,Third Party Payments,EGA,28/09/2023,06-16843,"6,671.80",Plumtree School
Nottinghamshire County Council,1111/1001,Children and Young People,CYP,Third Party Payments,EGA,28/09/2023,06-16844,"2,808.40",Jenny's Jelly Tots
Nottinghamshire County Council,1111/1001,Children and Young People,CYP,Third Party Payments,EGA,28/09/2023,06-16845,"4,895.92",Portland Place Pre-School
Nottinghamshire County Council,1111/1001,Children and Young People,CYP,Third Party Payments,EGA,28/09/2023,06-16846,"6,553.07",Pre-School 345
Nottinghamshire County Council,1111/1001,Children and Young People,CYP,Third Party Payments,EGA,28/09/2023,06-16847,"8,059.23",Prebend Pre-School Playgroup
Nottinghamshire County Council,1111/1001,Children and Young People,CYP,Third Party Payments,EGA,28/09/2023,06-16848,563.36,Daisy's Childminding
Nottinghamshire County Council,1111/1001,Children and Young People,CYP,Third Party Payments,EGA,28/09/2023,06-16849,"7,874.47",Puddleducks Pre-School
Nottinghamshire County Council,1111/1001,Children and Young People,CYP,Third Party Payments,EGA,28/09/2023,06-16850,"7,281.16",Radcliffe On Trent Pre School Playg
Nottinghamshire County Council,1111/1001,Children and Young People,CYP,Third Party Payments,EGA,28/09/2023,06-16851,"9,923.84",Railway Children Playgroup
Nottinghamshire County Council,1111/1001,Children and Young People,CYP,Third Party Payments,EGA,28/09/2023,06-16852,"1,681.68",Rainbows Day Nursery
Nottinghamshire County Council,1111/1001,Children and Young People,CYP,Third Party Payments,EGA,28/09/2023,06-16853,619.7,Ravenshead Out Of School Club
Nottinghamshire County Council,1111/1001,Children and Young People,CYP,Third Party Payments,EGA,28/09/2023,06-16854,"1,818.32",Ravenshead Pre-School Playgroup
Nottinghamshire County Council,1111/1001,Children and Young People,CYP,Third Party Payments,EGA,28/09/2023,06-16855,"4,289.32",J Redgate
Nottinghamshire County Council,1111/1001,Children and Young People,CYP,Third Party Payments,EGA,28/09/2023,06-16856,"2,526.72",[Redacted]
Nottinghamshire County Council,1111/1001,Children and Young People,CYP,Third Party Payments,EGA,28/09/2023,06-16857,"1,357.26",Little Foxes Hucknall
Nottinghamshire County Council,1111/1001,Children and Young People,CYP,Third Party Payments,EGA,28/09/2023,06-16858,"12,061.84",Rocking Horse Nursery (Kingsway)
Nottinghamshire County Council,1111/1001,Children and Young People,CYP,Third Party Payments,EGA,28/09/2023,06-16859,"9,385.46",Rocking Horse Nursery (Hucknall)
Nottinghamshire County Council,1111/1001,Children and Young People,CYP,Third Party Payments,EGA,28/09/2023,06-16860,"3,798.48",R Durr Rose Lodge Childminding
Nottinghamshire County Council,1111/1001,Children and Young People,CYP,Third Party Payments,EGA,28/09/2023,06-16861,"11,350.10",Ruddington Nursery & Pre-School
Nottinghamshire County Council,1111/1001,Children and Young People,CYP,Third Party Payments,EGA,28/09/2023,06-16862,"7,272.04",Rushcliffe Pre-School (Nottingham)
Nottinghamshire County Council,1111/1001,Children and Young People,CYP,Third Party Payments,EGA,28/09/2023,06-16863,"10,794.94",Ryan House Day Nursery
Nottinghamshire County Council,1111/1001,Children and Young People,CYP,Third Party Payments,EGA,28/09/2023,06-16864,"26,464.60",Safe Haven Day Nursery
Nottinghamshire County Council,1111/1001,Children and Young People,CYP,Third Party Payments,EGA,28/09/2023,06-16865,"2,789.98",Salterford House Private School
Nottinghamshire County Council,1111/1001,Children and Young People,CYP,Third Party Payments,EGA,28/09/2023,06-16866,871.2,K Schofield ( Childminder)
Nottinghamshire County Council,1111/1001,Children and Young People,CYP,Third Party Payments,EGA,28/09/2023,06-16867,"13,171.02",Willow Childcare & Training Ltd
Nottinghamshire County Council,1111/1001,Children and Young People,CYP,Third Party Payments,EGA,28/09/2023,06-16868,"4,828.10",Sconce Hills Pre-School Playgroup
Nottinghamshire County Council,1111/1001,Children and Young People,CYP,Third Party Payments,EGA,28/09/2023,06-16869,"6,055.58",Scottswood Pdn Ltd
Nottinghamshire County Council,1111/1001,Children and Young People,CYP,Third Party Payments,EGA,28/09/2023,06-16870,"5,915.28",Scotts Wood Private Day Nursery
Nottinghamshire County Council,1111/1001,Children and Young People,CYP,Third Party Payments,EGA,28/09/2023,06-16871,"11,583.09",Secret Garden Childcare Ltd
Nottinghamshire County Council,1111/1001,Children and Young People,CYP,Third Party Payments,EGA,28/09/2023,06-16872,"15,017.04",Serendipity's Day Nursery
Nottinghamshire County Council,1111/1001,Children and Young People,CYP,Third Party Payments,EGA,28/09/2023,06-16873,"25,375.16",Serendipity's Day Nursery
Nottinghamshire County Council,1111/1001,Children and Young People,CYP,Third Party Payments,EGA,28/09/2023,06-16874,"8,758.03",Serendipity's Day Nursery
Nottinghamshire County Council,1111/1001,Children and Young People,CYP,Third Party Payments,EGA,28/09/2023,06-16875,"15,932.98",Serendipity's Day Nursery
Nottinghamshire County Council,1111/1001,Children and Young People,CYP,Third Party Payments,EGA,28/09/2023,06-16876,"2,239.85",E Severs (Childminder)
Nottinghamshire County Council,1111/1001,Children and Young People,CYP,Third Party Payments,EGA,28/09/2023,06-16877,"22,911.47",Shaping Futures Day Nursery
Nottinghamshire County Council,1111/1001,Children and Young People,CYP,Third Party Payments,EGA,28/09/2023,06-16878,563.36,K Sharp (Childminding Service)
Nottinghamshire County Council,1111/1001,Children and Young People,CYP,Third Party Payments,EGA,28/09/2023,06-16879,943.63,H Sherburn (Childminder)
Nottinghamshire County Council,1111/1001,Children and Young People,CYP,Third Party Payments,EGA,28/09/2023,06-16880,957.72,D Simpson (Childminder)
Nottinghamshire County Council,1111/1001,Children and Young People,CYP,Third Party Payments,EGA,28/09/2023,06-16881,704.2,S Simpson (Childminder)
Nottinghamshire County Council,1111/1001,Children and Young People,CYP,Third Party Payments,EGA,28/09/2023,06-16882,"14,042.00",Sunnydale Nursery Ltd
Nottinghamshire County Council,1111/1001,Children and Young People,CYP,Third Party Payments,EGA,28/09/2023,06-16883,700,Poppins Childcare
Nottinghamshire County Council,1111/1001,Children and Young People,CYP,Third Party Payments,EGA,28/09/2023,06-16884,"2,035.88",Yew Tree Childcare
Nottinghamshire County Council,1111/1001,Children and Young People,CYP,Third Party Payments,EGA,28/09/2023,06-16885,"9,107.66",Small People Ltd
Nottinghamshire County Council,1111/1001,Children and Young People,CYP,Third Party Payments,EGA,28/09/2023,06-16886,"9,432.08",Smarties Private Day Nursery
Nottinghamshire County Council,1111/1001,Children and Young People,CYP,Third Party Payments,EGA,28/09/2023,06-16887,981.68,E L Smith (Childminder)
Nottinghamshire County Council,1111/1001,Children and Young People,CYP,Third Party Payments,EGA,28/09/2023,06-16888,"1,126.72",Butterflies Childminding Services
Nottinghamshire County Council,1111/1001,Children and Young People,CYP,Third Party Payments,EGA,28/09/2023,06-16889,718.78,Ems Gems
Nottinghamshire County Council,1111/1001,Children and Young People,CYP,Third Party Payments,EGA,28/09/2023,06-16890,"6,985.67",Southfields Pre-School
Nottinghamshire County Council,1111/1001,Children and Young People,CYP,Third Party Payments,EGA,28/09/2023,06-16891,"3,117.26",St Giles Pre-school
Nottinghamshire County Council,1111/1001,Children and Young People,CYP,Third Party Payments,EGA,28/09/2023,06-16892,"7,161.84",St Johns Pre � School Playgroup
Nottinghamshire County Council,1111/1001,Children and Young People,CYP,Third Party Payments,EGA,28/09/2023,06-16893,"12,379.26",St Mary's Pre-School
Nottinghamshire County Council,1111/1001,Children and Young People,CYP,Third Party Payments,EGA,28/09/2023,06-16894,"17,840.48",Stapleford Day Nursery
Nottinghamshire County Council,1111/1001,Children and Young People,CYP,Third Party Payments,EGA,28/09/2023,06-16895,"8,521.96",Staunton Montessori Nursery School
Nottinghamshire County Council,1111/1001,Children and Young People,CYP,Third Party Payments,EGA,28/09/2023,06-16896,"1,263.36",Fun Flamingos Childminding
Nottinghamshire County Council,1111/1001,Children and Young People,CYP,Third Party Payments,EGA,28/09/2023,06-16897,836.64,Hayley�s Home Childcare
Nottinghamshire County Council,1111/1001,Children and Young People,CYP,Third Party Payments,EGA,28/09/2023,06-16898,563.36,Little Storey�s Childminding Servic
Nottinghamshire County Council,1111/1001,Children and Young People,CYP,Third Party Payments,EGA,28/09/2023,06-16899,"1,014.05",[Redacted]
Nottinghamshire County Council,1111/1001,Children and Young People,CYP,Third Party Payments,EGA,28/09/2023,06-16900,892.98,Tracey Streeter Childminding Servic
Nottinghamshire County Council,1111/1001,Children and Young People,CYP,Third Party Payments,EGA,28/09/2023,06-16901,"1,070.39",L Sturman (Childminder)
Nottinghamshire County Council,1111/1001,Children and Young People,CYP,Third Party Payments,EGA,28/09/2023,06-16902,"3,415.04",Sutton Bonington Playgroup
Nottinghamshire County Council,1111/1001,Children and Young People,CYP,Third Party Payments,EGA,28/09/2023,06-16903,"6,026.72",Sutton Centre Under 5'S Playgroup
Nottinghamshire County Council,1111/1001,Children and Young People,CYP,Third Party Payments,EGA,28/09/2023,06-16904,"7,904.52",Ark Pre-School
Nottinghamshire County Council,1111/1001,Children and Young People,CYP,Third Party Payments,EGA,28/09/2023,06-16905,"24,122.56",Quinton Day Nurseries T/A Honey Bee
Nottinghamshire County Council,1111/1001,Children and Young People,CYP,Third Party Payments,EGA,28/09/2023,06-16906,"22,364.16",Enchanted Garden Day Nursery
Nottinghamshire County Council,1111/1001,Children and Young People,CYP,Third Party Payments,EGA,28/09/2023,06-16907,"12,923.68",Learning Tree Nursery
Nottinghamshire County Council,1111/1001,Children and Young People,CYP,Third Party Payments,EGA,28/09/2023,06-16908,"9,535.12",Learning Tree Day Nursery 2
Nottinghamshire County Council,1111/1001,Children and Young People,CYP,Third Party Payments,EGA,28/09/2023,06-16909,"6,171.76",Lime Trees (Kirkby West)
Nottinghamshire County Council,1111/1001,Children and Young People,CYP,Third Party Payments,EGA,28/09/2023,06-16910,"5,864.14",Lime Trees  (Burton Joyce)
Nottinghamshire County Council,1111/1001,Children and Young People,CYP,Third Party Payments,EGA,28/09/2023,06-16911,"6,854.22",Lime Trees (Cropwell Bishop)
Nottinghamshire County Council,1111/1001,Children and Young People,CYP,Third Party Payments,EGA,28/09/2023,06-16912,"51,708.55",Orange Tree Day Nursery
Nottinghamshire County Council,1111/1001,Children and Young People,CYP,Third Party Payments,EGA,28/09/2023,06-16913,"1,577.41",Phoenix Kindergarten CIC
Nottinghamshire County Council,1111/1001,Children and Young People,CYP,Third Party Payments,EGA,28/09/2023,06-16914,"3,013.98",Playroom Nursery
Nottinghamshire County Council,1111/1001,Children and Young People,CYP,Third Party Payments,EGA,28/09/2023,06-16915,"12,959.09",Secret Garden Private Day Nursery
Nottinghamshire County Council,1111/1001,Children and Young People,CYP,Third Party Payments,EGA,28/09/2023,06-16916,"9,456.62",Wolds Childcare Ltd
Nottinghamshire County Council,1111/1001,Children and Young People,CYP,Third Party Payments,EGA,28/09/2023,06-16917,563.36,J Fisher (Childminder)
Nottinghamshire County Council,1111/1001,Children and Young People,CYP,Third Party Payments,EGA,28/09/2023,06-16918,"1,126.72",L Thompson (Childminder)
Nottinghamshire County Council,1111/1001,Children and Young People,CYP,Third Party Payments,EGA,28/09/2023,06-16919,"4,835.56",Thrumpton Kids Clubs
Nottinghamshire County Council,1111/1001,Children and Young People,CYP,Third Party Payments,EGA,28/09/2023,06-16920,824.92,[Redacted]
Nottinghamshire County Council,1111/1001,Children and Young People,CYP,Third Party Payments,EGA,28/09/2023,06-16921,"11,403.84",Tiny Talkers Day Nursery
Nottinghamshire County Council,1111/1001,Children and Young People,CYP,Third Party Payments,EGA,28/09/2023,06-16922,"5,157.72",Tiny Tots Playgroup
Nottinghamshire County Council,1111/1001,Children and Young People,CYP,Third Party Payments,EGA,28/09/2023,06-16923,"15,673.28",Tiny World Mansfield
Nottinghamshire County Council,1111/1001,Children and Young People,CYP,Third Party Payments,EGA,28/09/2023,06-16924,"7,435.12",Toddlers University (Bee)
Nottinghamshire County Council,1111/1001,Children and Young People,CYP,Third Party Payments,EGA,28/09/2023,06-16925,"8,315.25",Tollerton Playgroup
Nottinghamshire County Council,1111/1001,Children and Young People,CYP,Third Party Payments,EGA,28/09/2023,06-16926,"2,518.32",U Tomlinson (Childminder)
Nottinghamshire County Council,1111/1001,Children and Young People,CYP,Third Party Payments,EGA,28/09/2023,06-16927,845.04,Cherry Tree Childminding
Nottinghamshire County Council,1111/1001,Children and Young People,CYP,Third Party Payments,EGA,28/09/2023,06-16928,845.04,[Redacted]
Nottinghamshire County Council,1111/1001,Children and Young People,CYP,Third Party Payments,EGA,28/09/2023,06-16929,"1,754.20",R Townroe (Childminder)
Nottinghamshire County Council,1111/1001,Children and Young People,CYP,Third Party Payments,EGA,28/09/2023,06-16930,563.36,Vickys Childminding
Nottinghamshire County Council,1111/1001,Children and Young People,CYP,Third Party Payments,EGA,28/09/2023,06-16931,"1,408.40",Kate Turner (Childminder)
Nottinghamshire County Council,1111/1001,Children and Young People,CYP,Third Party Payments,EGA,28/09/2023,06-16932,"1,023.44",M Tyreman (Childminder)
Nottinghamshire County Council,1111/1001,Children and Young People,CYP,Third Party Payments,EGA,28/09/2023,06-16933,"5,351.92",Upton Crickets Day Nursery Ltd
Nottinghamshire County Council,1111/1001,Children and Young People,CYP,Third Party Payments,EGA,28/09/2023,06-16934,563.36,P Verma (Childminder)
Nottinghamshire County Council,1111/1001,Children and Young People,CYP,Third Party Payments,EGA,28/09/2023,06-16935,"11,016.84",Village Day Nursery
Nottinghamshire County Council,1111/1001,Children and Young People,CYP,Third Party Payments,EGA,28/09/2023,06-16936,981.68,Hunny Bunny's Childcare
Nottinghamshire County Council,1111/1001,Children and Young People,CYP,Third Party Payments,EGA,28/09/2023,06-16937,724.32,Ami Wallington Childminding Service
Nottinghamshire County Council,1111/1001,Children and Young People,CYP,Third Party Payments,EGA,28/09/2023,06-16938,667.99,Little Scholars
Nottinghamshire County Council,1111/1001,Children and Young People,CYP,Third Party Payments,EGA,28/09/2023,06-16939,563.36,Little Gems Childminding
Nottinghamshire County Council,1111/1001,Children and Young People,CYP,Third Party Payments,EGA,28/09/2023,06-16940,"1,429.88",L Warwick (Childminder)
Nottinghamshire County Council,1111/1001,Children and Young People,CYP,Third Party Payments,EGA,28/09/2023,06-16941,"2,112.60",[Redacted]
Nottinghamshire County Council,1111/1001,Children and Young People,CYP,Third Party Payments,EGA,28/09/2023,06-16942,"2,335.44",Watnall Pre-School Playgroup
Nottinghamshire County Council,1111/1001,Children and Young People,CYP,Third Party Payments,EGA,28/09/2023,06-16943,"7,134.39",Weaverthorpe Pre-School Playgroup
Nottinghamshire County Council,1111/1001,Children and Young People,CYP,Third Party Payments,EGA,28/09/2023,06-16944,"5,244.62",Wellow House School
Nottinghamshire County Council,1111/1001,Children and Young People,CYP,Third Party Payments,EGA,28/09/2023,06-16945,"4,835.27",West Street Pre-School
Nottinghamshire County Council,1111/1001,Children and Young People,CYP,Third Party Payments,EGA,28/09/2023,06-16946,"27,004.60",Westbourne House Nursery School
Nottinghamshire County Council,1111/1001,Children and Young People,CYP,Third Party Payments,EGA,28/09/2023,06-16947,"1,545.04",[Redacted]
Nottinghamshire County Council,1111/1001,Children and Young People,CYP,Third Party Payments,EGA,28/09/2023,06-16948,"11,992.83",Whitehouse Day Nursery
Nottinghamshire County Council,1111/1001,Children and Young People,CYP,Third Party Payments,EGA,28/09/2023,06-16949,535.2,[Redacted]
Nottinghamshire County Council,1111/1001,Children and Young People,CYP,Third Party Payments,EGA,28/09/2023,06-16950,"1,126.72",B Whyman (Childminder)
Nottinghamshire County Council,1111/1001,Children and Young People,CYP,Third Party Payments,EGA,28/09/2023,06-16951,"5,113.80",Wiggles & Giggles Day Nurseries
Nottinghamshire County Council,1111/1001,Children and Young People,CYP,Third Party Payments,EGA,28/09/2023,06-16952,"11,233.60",CB Pre-School Learning Alliance (HO
Nottinghamshire County Council,1111/1001,Children and Young People,CYP,Third Party Payments,EGA,28/09/2023,06-16953,627.48,Becky�s Childminding Service
Nottinghamshire County Council,1111/1001,Children and Young People,CYP,Third Party Payments,EGA,28/09/2023,06-16954,"1,030.15",Willoughby On The Wolds Playgroup
Nottinghamshire County Council,1111/1001,Children and Young People,CYP,Third Party Payments,EGA,28/09/2023,06-16955,"8,687.64",Willow Brook Pre-School
Nottinghamshire County Council,1111/1001,Children and Young People,CYP,Third Party Payments,EGA,28/09/2023,06-16956,"7,255.74",Willow Pre-School Playgroup
Nottinghamshire County Council,1111/1001,Children and Young People,CYP,Third Party Payments,EGA,28/09/2023,06-16957,965.5,[Redacted]
Nottinghamshire County Council,1111/1001,Children and Young People,CYP,Third Party Payments,EGA,28/09/2023,06-16958,"3,380.16",Windmill Kindergarten CIC
Nottinghamshire County Council,1111/1001,Children and Young People,CYP,Third Party Payments,EGA,28/09/2023,06-16959,568.55,Windmills Childcare
Nottinghamshire County Council,1111/1001,Children and Young People,CYP,Third Party Payments,EGA,28/09/2023,06-16960,"2,328.56",Windmills Childcare
Nottinghamshire County Council,1111/1001,Children and Young People,CYP,Third Party Payments,EGA,28/09/2023,06-16961,"8,722.69",Wolds Day Nursery @ Stragglethorpe
Nottinghamshire County Council,1111/1001,Children and Young People,CYP,Third Party Payments,EGA,28/09/2023,06-16962,"5,489.13",Woodborough Village Pre School
Nottinghamshire County Council,1111/1001,Children and Young People,CYP,Third Party Payments,EGA,28/09/2023,06-16963,"20,033.63",Woodthorpe Day Nursery Ltd
Nottinghamshire County Council,1111/1001,Children and Young People,CYP,Third Party Payments,EGA,28/09/2023,06-16964,"14,447.40",Worksop College
Nottinghamshire County Council,1111/1001,Children and Young People,CYP,Third Party Payments,EGA,28/09/2023,06-16965,563.36,L Wragg (Childminder)
Nottinghamshire County Council,1111/1001,Children and Young People,CYP,Third Party Payments,EGA,28/09/2023,06-16966,"9,560.32",Yellow Brick Road Pump Farm (Tuxfor
Nottinghamshire County Council,1111/1001,Children and Young People,CYP,Third Party Payments,EGA,28/09/2023,06-16967,"4,361.84",YMCA Nursery at the Village
Nottinghamshire County Council,1111/1001,Children and Young People,CYP,Third Party Payments,EGA,28/09/2023,06-16968,981.68,[Redacted]
Nottinghamshire County Council,1111/1001,Children and Young People,CYP,Third Party Payments,EGA,28/09/2023,06-16969,"13,600.66",Zoe's Childcare Ltd
Nottinghamshire County Council,1111/1001,Children and Young People,CYP,Third Party Payments,EGA,28/09/2023,06-16970,"8,182.44",Zoes Childcare Ltd
Nottinghamshire County Council,1111/1001,Children and Young People,CYP,Third Party Payments,EGA,28/09/2023,06-18166,"47,078.50",Nottm & Notts Youth Support Ltd
Nottinghamshire County Council,1111/1001,Children and Young People,CYP,Third Party Payments,EGA,29/09/2023,06-17840,"31,635.00",Greenfield House (Arnfield Care Ltd
Nottinghamshire County Council,1111/1001,Children and Young People,CYP,Third Party Payments,EGA,29/09/2023,06-17871,"20,022.96",TACT
Nottinghamshire County Council,1111/1001,Children and Young People,CYP,Third Party Payments,EGA,29/09/2023,06-18048,"61,100.00",DKM Healthcare Ltd
Nottinghamshire County Council,1111/1001,Children and Young People,CYP,Third Party Payments,EGA,29/09/2023,06-18128,"404,563.78",Blue Mountain Homes Ltd
Nottinghamshire County Council,1111/1001,Children and Young People,CYP,Third Party Payments,EGA,29/09/2023,06-18139,"47,142.86",Soteria Children's Services Group L
Nottinghamshire County Council,1111/1001,Children and Young People,CYP,Third Party Payments,EHA,04/09/2023,06-17601,"23,491.00",Adopters for Adoption Ltd
Nottinghamshire County Council,1111/1001,Children and Young People,CYP,Third Party Payments,EHA,08/09/2023,06-17899,553.57,Framework Housing Association(Head
Nottinghamshire County Council,1111/1001,Children and Young People,CYP,Third Party Payments,EHA,11/09/2023,06-17898,"4,854.08",Framework Housing Association(Head
Nottinghamshire County Council,1111/1001,Children and Young People,CYP,Third Party Payments,EHA,20/09/2023,06-18172,"35,565.00",Family Society � Adoption Focus
Nottinghamshire County Council,1111/1001,Children and Young People,CYP,Third Party Payments,EHA,25/09/2023,06-18177,"1,304.06",Adopters for Adoption Ltd
Nottinghamshire County Council,1111/1001,Children and Young People,CYP,Transfer Payments,GAA,01/09/2023,06-10145,781.39,Jamie Smith Trust
